{"text_format":"1","workbook":"xlsx","n_sheets":12,"sheets":["Prompt","C100","C101","C102","C200","C300","C336","C400","C500","C700","C800","Enviar"],"not_rendered":{"charts":0,"images":7,"macros":1,"external_links":0,"defined_names":1,"comments":2,"pivot_tables":0},"unopened":[],"bounds":{"document_bytes":16777216,"sheet_cells":100000,"rows_first":2000,"rows_last":500,"rows_between":2000,"halvings":0,"cell_chars":16384,"cell_head_chars":4096},"cells_cut":0,"cells_raw":0,"read":"whole","date_system":"1900"}

{"sheet":"Prompt","index":0,"n_rows":79,"n_cols":4,"rows_kept":79,"cut":false,"hidden":true,"merged":[[1,3,2,6],[4,1,6,8],[43,1,44,8],[78,1,79,8],[9,1,10,8]]}
[]
[null,null,null,"¡ATENCIÓN!"]
[]
[]
[null,"Para hacer uso de las funcionalidades de esta Cédula Electrónica debe habilitar macros"]
[]
[]
[]
[]
[null,"Si utiliza Excel 2013 siga el siguiente procedimiento:"]
[]
[]
[]
[]
[]
[]
[]
[]
[]
[]
[]
[]
[]
[]
[]
[]
[]
[]
[]
[]
[]
[]
[]
[]
[]
[]
[]
[]
[]
[]
[]
[]
[]
[null,"Si utiliza Excel 2007 siga el siguiente procedimiento:"]
[]
[]
[]
[]
[]
[]
[]
[]
[]
[]
[]
[]
[]
[]
[]
[]
[]
[]
[]
[]
[]
[]
[]
[]
[]
[]
[]
[]
[]
[]
[]
[]
[]
[]
[null,"Si utiliza Excel 2000, 2002, 2003 siga el siguiente procedimiento:"]

{"sheet":"C100","index":1,"n_rows":338,"n_cols":40,"rows_kept":338,"cut":false,"hidden":false,"merged":[[65,28,65,36],[72,28,72,36],[96,29,96,36],[106,26,106,31],[331,18,331,19],[332,18,332,19],[333,18,333,19],[334,18,334,19],[304,32,304,34],[305,29,305,31],[305,32,305,34],[325,18,325,19],[326,18,326,19],[327,18,327,19],[328,18,328,19],[329,18,329,19],[330,18,330,19],[304,29,304,31],[239,35,239,36],[247,29,247,36],[254,17,254,18],[255,35,255,36],[256,17,256,18],[266,32,266,33],[281,14,281,15],[281,16,281,17],[281,32,281,33],[282,14,282,15],[282,16,282,17],[283,6,283,13],[283,14,283,15],[283,16,283,17],[300,29,301,31],[300,32,301,34],[276,14,276,15],[276,16,276,17],[277,14,277,15],[277,16,277,17],[278,14,278,15],[278,16,278,17],[279,14,279,15],[279,16,279,17],[280,14,280,15],[280,16,280,17],[272,14,272,15],[272,16,272,17],[273,14,273,15],[273,16,273,17],[273,34,273,35],[274,14,274,15],[274,16,274,17],[275,14,275,15],[275,16,275,17],[268,12,270,15],[268,16,270,18],[271,14,271,15],[271,16,271,17],[271,34,271,35],[207,36,210,36],[207,37,210,37],[210,32,210,33],[211,30,211,31],[211,32,211,33],[212,30,212,31],[212,32,212,33],[215,7,215,15],[224,27,224,35],[187,9,187,14],[187,17,187,18],[198,28,198,35],[202,8,202,16],[207,22,209,29],[207,30,209,31],[207,32,209,33],[207,34,210,34],[207,35,210,35],[179,34,179,35],[180,34,180,35],[181,34,181,35],[182,34,182,35],[183,16,184,18],[183,34,183,35],[184,25,184,33],[184,34,184,35],[186,17,186,18],[169,34,169,35],[170,34,170,35],[173,34,173,35],[174,34,174,35],[175,34,175,35],[172,34,172,35],[176,34,176,35],[177,34,177,35],[178,34,178,35],[166,14,166,16],[166,17,166,19],[166,34,166,35],[167,11,167,13],[167,14,167,16],[167,17,167,19],[167,34,167,35],[168,11,168,13],[168,14,168,16],[168,17,168,19],[168,34,168,35],[158,36,160,37],[161,34,161,35],[161,36,161,37],[162,34,162,35],[163,34,163,35],[164,11,164,13],[164,14,164,16],[164,17,164,19],[164,34,164,35],[80,11,80,13],[57,11,57,13],[1,34,1,37],[257,17,257,18],[46,33,46,34],[117,9,117,17],[26,34,26,37],[28,11,28,37],[44,21,44,24],[44,33,44,34],[45,21,45,24],[45,30,45,31],[45,26,45,27],[44,30,44,31],[1,7,1,31],[2,7,2,31],[37,2,37,38],[44,18,44,19],[44,9,44,12],[2,34,4,37],[43,3,43,4],[44,14,44,15],[43,30,43,36],[43,18,43,27],[30,30,30,37],[30,11,30,25],[3,7,3,31],[43,6,43,15],[44,26,44,27],[44,6,44,7],[45,3,45,4],[26,11,26,15],[45,6,45,7],[45,9,45,12],[46,21,46,24],[47,33,47,34],[46,3,46,4],[98,10,98,18],[46,14,46,15],[46,9,46,12],[47,6,47,7],[45,18,45,19],[45,33,45,34],[47,3,47,4],[48,33,48,34],[48,30,48,31],[48,26,48,27],[47,26,47,27],[47,21,47,24],[47,30,47,31],[46,26,46,27],[46,30,46,31],[45,14,45,15],[48,14,48,15],[48,21,48,24],[48,9,48,12],[48,3,48,4],[65,16,65,17],[66,16,66,17],[103,34,103,37],[104,34,104,37],[105,34,105,37],[106,34,106,37],[82,34,82,35],[83,34,83,35],[84,34,84,35],[85,34,85,35],[82,25,82,33],[47,18,47,19],[48,6,48,7],[47,9,47,12],[47,14,47,15],[46,18,46,19],[48,18,48,19],[46,6,46,7],[63,16,63,17],[64,16,64,17],[302,29,302,31],[302,32,302,34],[303,29,303,31],[303,32,303,34],[112,32,112,34],[111,35,112,36],[118,25,118,31],[111,32,111,34],[131,5,134,9],[131,10,133,10],[131,11,133,12],[131,13,133,15],[131,16,134,18],[134,11,134,12],[134,13,134,15],[137,7,137,10],[137,11,137,12],[137,13,137,15],[137,16,137,18],[140,33,140,35],[150,7,150,14],[155,11,155,12],[155,13,155,14],[155,15,155,16],[104,12,104,15],[109,12,109,15],[171,34,171,35],[135,11,135,12],[135,13,135,15],[135,16,135,18],[136,11,136,12],[136,13,136,15],[136,16,136,18],[156,11,156,12],[156,13,156,14],[156,15,156,16],[157,11,157,12],[157,13,157,14],[157,15,157,16],[158,11,158,12],[158,13,158,14],[158,15,158,16],[158,34,160,35],[165,11,165,13],[165,14,165,16],[165,17,165,19],[165,34,165,35],[166,11,166,13]]}
[]
[null,null,null,null,null,null,null,"CENSO EDUCATIVO 2024",null,null,null,null,null,null,null,null,null,null,null,null,null,null,null,null,null,null,null,null,null,null,null,null,null,null,"CÉDULA"]
[null,null,null,null,null,null,null,"EDUCACIÓN BÁSICA ALTERNATIVA",null,null,null,null,null,null,null,null,null,null,null,null,null,null,null,null,null,null,null,null,null,null,null,null,null,null,"4AI"]
[null,null,null,null,null,null,null,"(INICIAL - INTERMEDIO)"]
[null,null,"Version :",null,"GA - 1"]
[null,null,"INSTRUCCIONES DEL FORMATO ELECTRÓNICO "]
[]
[]
[]
[]
[]
[]
[]
[]
[]
[]
[]
[]
[]
[]
[]
[]
[]
[null,null,"IDENTIFICACIÓN DEL SERVICIO EDUCATIVO"]
[]
[]
[null,null,null,"1. CÓDIGO MODULAR :",null,null,null,null,null,null,null,null,null,null,null,null,null,null,null,null,null,null,null,null,null,null,null,null,null,null,null,null,"2. CÓDIGO DE LOCAL EDUCATIVO :"]
[]
[null,null,null,"3. NOMBRE DEL SERVICIO/NIVEL :"]
[]
[null,null,null,"4. DISTRITO :",null,null,null,null,null,null,null,null,null,null,null,null,null,null,null,null,null,null,null,null,null,null,null,"LOCALIDAD :"]
[]
[]
["GESTIÓN"]
[{"$f":"CONCATENATE(TRIM(UPPER(O35)),TRIM(UPPER(X35)),TRIM(UPPER(AG35)))","v":""},null,null,"Esta Institución Educativa es de Gestión : ",null,null,null,null,null,null,null,null,null,null,null," 1 - Pública de gestión directa",null,null,null,null,null,null,null,""," 2 - Pública de gestión privada",null,null,null,null,null,null,null,""," 3 - Privada"]
[]
[]
[null,null,"100. CARACTERÍSTICA DEL SERVICIO EDUCATIVO"]
[]
[null,null,null,"A. CARACTERÍSTICA DE LA ENSEÑANZA"]
[null,null,null,"101.A INDIQUE, ¿CUÁNTOS PERÍODOS PROMOCIONALES HA PREVISTO EN EL PRESENTE AÑO?"]
[null,null,null,"Anote la respuesta en los casilleros correspondientes"]
[]
[null,null,null,{"$f":"SUM(D46:E49)","v":0},null,null,"INICIO (*)",null,null,null,null,null,null,null,null,null,null,null,"FINALIZACIÓN (*)",null,null,null,null,null,null,null,null,null,null,null,"TURNO"]
[null,null,null,"Periodo",null,null,"Dia",null,null,"Mes",null,null,null,null,"Año",null,null,null,"Dia",null,null,"Mes",null,null,null,null,"Año",null,null,null,"Mañana",null,null,"Tarde",null,null,"Noche"]
[{"$f":"COUNTIF($D$46:$E$49,$D46)","v":0},null,null,null,null,null,null,null,null,null,null,null,null,null,null,null,{"$f":"IF(AND(G46<>\"\",J46<>\"\",O46<>\"\"),0,1)","v":1},null,null,null,null,null,null,null,null,null,null,null,{"$f":"IF(AND(S46<>\"\",V46<>\"\",AA46<>\"\"),0,1)","v":1},null,null,null,null,null,null,null,null,{"$f":"IF(OR(AE46<>\"\",AH46<>\"\",AK46<>\"\"),0,1)","v":1}]
[{"$f":"COUNTIF($D$46:$E$49,$D47)","v":0},null,null,null,null,null,null,null,null,null,null,null,null,null,null,null,{"$f":"IF(AND(G47<>\"\",J47<>\"\",O47<>\"\"),0,1)","v":1},null,null,null,null,null,null,null,null,null,null,null,{"$f":"IF(AND(S47<>\"\",V47<>\"\",AA47<>\"\"),0,1)","v":1},null,null,null,null,null,null,null,null,{"$f":"IF(OR(AE47<>\"\",AH47<>\"\",AK47<>\"\"),0,1)","v":1}]
[{"$f":"COUNTIF($D$46:$E$49,$D48)","v":0},null,null,null,null,null,null,null,null,null,null,null,null,null,null,null,{"$f":"IF(AND(G48<>\"\",J48<>\"\",O48<>\"\"),0,1)","v":1},null,null,null,null,null,null,null,null,null,null,null,{"$f":"IF(AND(S48<>\"\",V48<>\"\",AA48<>\"\"),0,1)","v":1},null,null,null,null,null,null,null,null,{"$f":"IF(OR(AE48<>\"\",AH48<>\"\",AK48<>\"\"),0,1)","v":1}]
[{"$f":"COUNTIF($D$46:$E$49,$D49)","v":0},null,null,null,null,null,null,null,null,null,null,null,null,null,null,null,{"$f":"IF(AND(G49<>\"\",J49<>\"\",O49<>\"\"),0,1)","v":1},null,null,null,null,null,null,null,null,null,null,null,{"$f":"IF(AND(S49<>\"\",V49<>\"\",AA49<>\"\"),0,1)","v":1},null,null,null,null,null,null,null,null,{"$f":"IF(OR(AE49<>\"\",AH49<>\"\",AK49<>\"\"),0,1)","v":1}]
[null,null,null,"(*) Inicio y finalización puede corresponder al 2023 y 2024 respectivamente."]
[]
[null,null,null,"102.A ¿ EL CEBA TIENE PERIFÉRICOS A CARGO ?",null,null,null,null,null,null,null,null,null,null,null,null,null,null,null,null,null,null,"104.A ¿CUÁNTOS PERIFÉRICOS FUNCIONAN DURANTE LA SEMANA?"]
[null,null,null,null,null,null,null,null,null,null,null,null,null,null,null,null,null,null,null,null,null,null,null,"Marque con un aspa “X” los días y anote en los casilleros el número de"]
[null,null,null,null,"Sí",null,null,null,null,null,null,"No",null,null,null,"Pase a la pregunta 105.A",null,null,null,null,null,null,null,"periféricos según corresponda"]
[{"$f":"CONCATENATE(F54,M54)","v":""}]
[null,null,null,"103.A ¿ CUÁNTOS PERIFÉRICOS ESTÁN ASOCIADOS AL CEBA ?",null,null,null,null,null,null,null,null,null,null,null,null,null,null,null,null,null,null,null,null,null,null,null,null,null,"Lu","Ma","Mi","Ju","Vi","Sa","Do"]
[null,null,null,null,null,null,null,null,null,null,null,null,null,null,null,null,null,null,null,null,null,null,null,"Dias de la semana"]
[null,null,null,null,null,"Cuantos",null,null,null,null,null,null,null,null,null,null,null,null,null,null,null,null,null,"Nº de Perifericos"]
[]
[]
[null,null,null,"105.A. ¿ESTE SERVICIO/NIVEL EDUCATIVO BRINDA EL SERVICIO DE ALIMENTACIÓN",null,null,null,null,null,null,null,null,null,null,null,null,null,null,null,null,null,null,"114.A ¿EL CEBA HA ELABORADO MATERIALES EDUCATIVOS PROPIOS COMO?"]
[null,null,null,null,"QUIOSCO Y/O COMEDOR?",null,null,null,null,null,null,null,null,null,null,null,null,null,null,null,null,null,null,"Marque con una “X”, una o más opciones"]
[null,null,null,null,null,null,null,null,null,"Precise si cuenta con los siguientes servicios:",null,null,null,null,null,null,null,null,null,null,null,null,null,null,null,"Módulos de Auto Aprendizaje"]
[null,null,null,null,"Sí",null,null,null,null,"Servicios",null,null,null,null,null,null,"Sí - No",null,null,null,null,null,null,null,null,"Textos"]
[null,null,null,null,null,null,null,null,null,1,null,"Agua",null,null,null,null,"",null,null,null,null,null,null,null,null,"Fascículos"]
[null,null,null,null,null,null,null,null,null,2,null,"Desague",null,null,null,null,"",null,null,null,null,null,null,null,null,"Otros"]
[null,null,null,null,"No",null,null,null,null,3,null,"Electricidad",null,null,null,null,""]
[null,null,null,null,null,null,null,null,null,null,null,null,null,null,null,null,null,{"$f":"COUNTIF(Q65:Q67,\"SI\")+COUNTIF(Q65:Q67,\"NO\")","v":0},null,null,null,null,"115.A EL LOCAL DONDE FUNCIONA EL CEBA REFERENCIAL ES:"]
[null,null,null,"106.A. ¿REALIZÓ LA RESERVA COMO MÍNIMO DE (02) VACANTES POR CADA AULA",null,null,null,null,null,null,null,null,null,null,null,null,null,null,null,null,null,null,null,"Marque con un aspa “X” solo un casillero"]
[null,null,null,null,"PARA ESTUDIANTES CON NECESIDADES EDUCATIVAS ESPECIALES ASOCIADA",null,null,null,null,null,null,null,null,null,null,null,null,null,null,null,null,null,null,null,null,"Propio"]
[null,null,null,null,"A DISCAPACIDAD LEVE O MODERADA?",null,null,null,null,null,null,null,null,null,null,null,null,null,null,null,null,null,null,null,null,"Alquilado"]
[null,null,null,null,null,null,null,null,null,null,null,null,null,null,null,null,null,null,null,null,null,null,null,null,null,"Prestado"]
[null,null,null,null,"Sí",null,null,null,null,null,null,"No",null,null,null,null,null,null,null,null,null,null,null,null,null,"Otros"]
[]
[null,null,null,"107.A. ¿EL CEBA CUENTA CON CÍRCULOS DE APRENDIZAJE?",null,null,null,null,null,null,null,null,null,null,null,null,null,null,null,null,null,null,"116.A EL LOCAL QUE OCUPA EL CEBA REFERENCIAL ES:"]
[null,null,null,null,null,null,null,null,null,null,null,null,null,null,null,null,null,null,null,null,null,null,null,"Marque con un aspa “X” solo un casillero"]
[null,null,null,null,"Sí",null,null,null,null,null,null,"No",null,null,null,"Pase a la pregunta 110.A",null,null,null,null,null,null,null,null,null,"De uso exclusivo"]
[null,null,null,null,null,null,null,null,null,null,null,null,null,null,null,null,null,null,null,null,null,null,null,null,null,"De uso compartido"]
[null,null,null,"108.A ¿CUÁNTOS CÍRCULOS DE APRENDIZAJE ESTÁN ADSCRITOS AL CEBA?"]
[null,null,null,null,null,null,null,null,null,null,null,null,null,null,null,null,null,null,null,null,null,null,"117.A. ¿EL SERVICIO/NIVEL EDUCATIVO, HA DESARROLLADO UNA O ALGUNAS"]
[null,null,null,null,null,"Cuántos",null,null,null,null,null,null,null,null,null,null,null,null,null,null,null,null,null,"DE LAS ACTIVIDADES PROPUESTAS PARA LA IMPLEMENTACIÓN DE LA EIT?"]
[null,null,null,null,null,null,null,null,null,null,null,null,null,null,null,null,null,null,null,null,null,null,null,"Educación Intercultural para Todos y Todas"]
[null,null,null,"109.A. ¿CUÁNTOS CÍRCULOS DE APRENDIZAJE FUNCIONAN DURANTE LA SEMANA?",null,null,null,null,null,null,null,null,null,null,null,null,null,null,null,null,null,null,null,null,null,"Activivades EIT",null,null,null,null,null,null,null,null,"Si - No"]
[null,null,null,null,"Marque con un aspa “X” los dias y anote en los casilleros el número de",null,null,null,null,null,null,null,null,null,null,null,null,null,null,null,null,null,null,null,"01","Descubriendo nuevos orígenes"]
[null,null,null,null,"círculos de aprendizaje según corresponda",null,null,null,null,null,null,null,null,null,null,null,null,null,null,null,null,null,null,null,"02","Encuentro con nuestra diversidad"]
[null,null,null,null,null,null,null,null,null,null,null,null,"Lu","Ma","Mi","Ju","Vi","Sa","Do",null,null,null,null,null,"03","Feria de la diversidad"]
[null,null,null,null,"Dias de la semana",null,null,null,null,null,null,null,null,null,null,null,null,null,null,null,null,null,null,null,null,null,null,null,null,null,null,null,null,null,{"$f":"COUNTIF(AI84:AJ86,\"SI\") + COUNTIF(AI84:AJ86,\"NO\")","v":0}]
[null,null,null,null,"Nº de Círculos de Aprendizaje",null,null,null,null,null,null,null,null,null,null,null,null,null,null,null,null,null,"118.A EN LOS ÚLTIMOS TRES MESES, ¿SE COORDINÓ U OFRECIO ALGÚN PROGRAMA"]
[null,null,null,null,null,null,null,null,null,null,null,null,null,null,null,null,null,null,null,null,null,null,null,"O SERVICIO, CÓMO?:",null,null,null,null,"Marque con una “X”, una o más opciones"]
[null,null,null,"110.A ¿EL CEBA TIENE CONVENIO CON...?"]
[null,null,null,null,"Marque con una “X”, una o más opciones",null,null,null,null,null,null,null,null,null,null,null,null,null,null,null,null,null,null,null,null,"Programa Qali Warma"]
[null,null,null,null,null,null,"Intitutos o Escuelas de Educación Superior",null,null,null,null,null,null,null,null,null,null,null,null,null,null,null,null,null,null,"Campaña de vacunación"]
[null,null,null,null,null,null,"Centro de Educación Técnico Productiva (CETPRO)",null,null,null,null,null,null,null,null,null,null,null,null,null,null,null,null,null,null,"Control de crecimiento y desarrollo"]
[null,null,null,null,null,null,"Instituto Nacional Penitenciario (INPE)",null,null,null,null,null,null,null,null,null,null,null,null,null,null,null,null,null,null,"SAANEE"]
[null,null,null,null,null,null,"Gobierno Local",null,null,null,null,null,null,null,null,null,null,null,null,null,null,null,null,null,null,"Programa de Intervención temprana (PRITE)"]
[null,null,null,null,null,null,"Gobierno Regional",null,null,null,null,null,null,null,null,null,null,null,null,null,null,null,null,null,null,"Servicio de Apoyo Educativo Virtual (SAEV)"]
[null,null,null,null,null,null,"Empresas",null,null,null,null,null,null,null,null,null,null,null,null,null,null,null,null,null,null,"Otro especifique"]
[null,null,null,null,null,null,"Centros juveniles de diagnóstico y rehabilitación (CJDR)",null,null,null,null,null,null,null,null,null,null,null,null,null,null,null,null,null,null,"Ninguno"]
[null,null,null,null,null,null,"Otro  - especificar"]
[null,null,null,null,null,null,"Ninguno",null,null,null,null,null,null,null,null,null,null,null,null,null,null,null,"119.A. DURANTE EL AÑO 2023 ¿QUÉ ACTIVIDADES CON FAMILIAS SE HAN"]
[null,null,null,null,null,null,null,null,null,null,null,null,null,null,null,null,null,null,null,null,null,null,null,"REALIZADO DESDE ESTE SERVICIO/NIVEL EDUCATIVO?"]
[null,null,null,"111.A ¿EL CEBA TIENE EL CONSEJO DE PARTICIPACIÓN DE ESTUDIANTES",null,null,null,null,null,null,null,null,null,null,null,null,null,null,null,null,null,null,null,"Marque con una “X” Si o No realizó cada actividad"]
[null,null,null,null,"(COPAE) RECONOCIDO CON RESOLUCIÓN DIRECTORAL?",null,null,null,null,null,null,null,null,null,null,null,null,null,null,null,null,null,null,"Entidad que Organizó",null,null,null,null,null,null,null,{"$f":"COUNTIF(AG104:AH108,\"X\")","v":0}," SI"," NO","Nro. de actividades"]
[null,null,null,null,null,null,null,null,null,null,null,null,null,null,null,null,null,null,null,null,null,null,null,1,"Encuentros y Jornadas"]
[null,null,null,null,"Sí",null,null,"Nº de resolución : ",null,null,null,null,"",null,null,null,null,"No",null,null,null,null,null,2,"Talleres"]
[null,null,null,null,null,null,null,null,null,null,null,null,null,null,null,null,null,null,null,null,null,null,null,3,"Reuniones"]
[null,null,null,"112.A. ¿EL CEBA TIENE EL CONSEJO EDUCATIVO INSTITUCIONAL (CONEI)",null,null,null,null,null,null,null,null,null,null,null,null,null,null,null,null,null,null,null,4,"Otros"]
[null,null,null,null,"RECONOCIDO CON RESOLUCIÓN DIRECTORAL?",null,null,null,null,null,null,null,null,null,null,null,null,null,null,null,null,null,null,5,"Ninguna",null,null,null,null,null,null,null,null,{"$f":"COUNTIF(AG104:AH107,\"X\")","v":0}]
[]
[null,null,null,null,"Sí",null,null,"Nº de resolución : ",null,null,null,null,"",null,null,null,null,"No",null,null,null,null,"120.A. EL CEBA REFERENCIAL O ALGÚN PERIFÉRICO, ¿ATIENDE LA POBLACIÓN MATRICULADA EN:?"]
[null,null,null,null,null,null,null,null,null,null,null,null,null,null,null,null,null,null,null,null,null,null,null,"Marque con una “X” uno o más casilleros"]
[null,null,null,"113.A. EL CEBA HA IMPLEMENTADO LAS PROPUESTAS PEDAGÓGICAS SIGUIENTES :",null,null,null,null,null,null,null,null,null,null,null,null,null,null,null,null,null,null,null,null,null,"Centro / Dependencia",null,null,null,null,null,null,"CEBA",null,null,"Periférico"]
[null,null,null,null,"Marque con una “X”, una o más opciones",null,null,null,null,null,null,null,null,null,null,null,null,null,null,null,null,null,null,null,null,null,null,null,null,null,null,{"$f":"COUNTIF(AH114:AK119,\"X\")","v":0},"Referencial"]
[null,null,null,null,null,null,null,null,null,null,null,null,null,null,null,null,null,null,null,null,null,null,1,"Centro Penitenciario"]
[null,null,null,null,null,null,"Personas Adulto Mayor (PAM)",null,null,null,null,null,null,null,null,null,null,null,null,null,null,null,2,"Muelle o Caleta"]
[null,null,null,null,null,null,"Personas Privadas de Libertad (PPL)",null,null,null,null,null,null,null,null,null,null,null,null,null,null,null,3,"Dependencia de FF.AA. (cuarteles)"]
[null,null,null,null,null,null,"Personas dedicadas a la Pesca Artesanal",null,null,null,null,null,null,null,null,null,null,null,null,null,null,null,4,"Centro de Adulto Mayor"]
[null,null,null,null,null,null,"Otros",null,null,null,null,null,null,null,null,null,null,null,null,null,null,null,5,"Centros Juveniles de Diagnóstico"]
[null,null,null,null,null,null,null,null,null,null,null,null,null,null,null,null,null,null,null,null,null,null,6,"Otro",null,null,null,null,null,null,null,null,{"$f":"CONCATENATE(AH119,AK119)","v":""}]
[]
[null," "]
[null,null,"B. TUTORÍA , ORIENTACIÓN EDUCATIVA Y CONVIVENCIA ESCOLAR"]
[null,null,null,"101.B  EN ESTE SERVICIO/NIVEL EDUCATIVO ¿SE DESARROLLAN PROGRAMAS QUE",null,null,null,null,null,null,null,null,null,null,null,null,null,null,null,null,null,null,"104.B  EL SERVICIO/NIVEL EDUCATIVO, ¿CUENTA CON PLAN DE TUTORÍA, ORIENTACIÓN"]
["1: Semanal",null,null,null,"PROMUEVAN LA ÉTICA INTEGRIDAD Y VALORES?",null,null,null,null,null,null,null,null,null,null,null,null,null,null,null,null,null,null,"EDUCATIVA Y CONVIVENCIA ESCOLAR?"]
["2: Quincenal"]
["3: Mensual",null,null,null,"Sí",null,null,null,null,null,null," No  ",null,null,null,null,null,null,null,null,null,null,null,"Sí",null,null,null,null,null," No  ",null,null,null,"Pase a la pregunta 106.B"]
["4: Bimensual"]
["5: Trimestral",null,null,"102.B   INDIQUE,  ¿CON CUALES DE LOS SIGUIENTES COMITÉS CUENTA ESTE SERVICIO"]
["6: Semestral",null,null,null,"NIVEL EDUCATIVO Y CON QUE FRECUENCIA SE REUNEN?",null,null,null,null,null,null,null,null,null,null,null,null,null,null,null,null,null,"105.B  ¿SE HA ACTUALIZADO EL PLAN DE TUTORÍA, CON RELACIÓN A LO ELABORADO "]
["7: No se reunen",null,null,null,null,null,null,null,null,null,null,null,null,null,null,null,null,null,null,null,null,null,null,"EN EL AÑO 2023?"]
[null,null,null,null,"Selecciones SI o No en la o las alternativas que correspondan",null,null,null,null,null,null,null,null,null,null,null,null,null,null,null,null,null,""]
[null,null,null,null,null,"Detalle de los comités en el  Servicio/Nivel Educativo",null,null,null,null,null,"Cuenta con este comité",null,"¿Está conformado mediante \n (RD)?",null,null,"Frecuencia de las reuniones",null,null,null,null,null,null,"Sí",null,null,null,null,null," No  "]
[]
[]
[null,null,null,null,null,null,null,null,null,null,{"$f":"COUNTIF(L136:L138,\"SI\")+COUNTIF(L136:L138,\"NO\")","v":3},"SI - NO",null,"SI - NO",null,null,null,null,null,null,null,null,"106.B. ESTE SERVICIO/NIVEL EDUCATIVO, ¿INCLUYE ACTIVIDADES DEL PLAN DE TUTORÍA,"]
[null,null,null,null,1,"Comité de Tutoría",null,null,null,null,null,"NO",null,"",null,null,"",null,null,null,null,null,null,"ORIENTACIÓN EDUCATIVA Y CONVIVENCIA ESCOLAR RELACIONADAS A LA PROMOCIÓN DE"]
[null,null,null,null,2,"Comité de Gestión del Bienestar",null,null,null,null,null,"NO",null,"",null,null,"",null,null,null,null,null,null,"LA CONVIVENCIA ESCOLAR, LA PREVENCIÓN Y LA ATENCIÓN DE LA VIOLENCIA ESCOLAR?"]
[null,null,null,null,3,"Otros",null,null,null,null,null,"NO",null,"",null,null,""]
[null,null,null,null,null,null,null,null,null,null,null,null,null,null,null,null,null,null,null,null,null,null,null,"Sí",null,null,null,null,null," No  ",null,null,null,"Pase a la pregunta 110.B"]
[null,null,null,"103.B. SOLO SI MARCO QUE CUENTA CON “COMITE DE GESTIÓN DEL BIENESTAR”,"]
[null,null,null,null,"DE LOS SIGUIENTES ACTORES, ¿QUIÉNES LO CONFORMAN?",null,null,null,null,null,null,null,null,null,null,null,null,null,null,null,null,null,null,null,null,null,null,"¿Qué cantidad realizó?"]
[null,null,null,null,"Marque con una “X”, una o más opciones"]
[]
[null,null,null,null,null,"Director/a de la IIEE",null,null,null,null,null,null,null,null,null,null,null,null,null,null,null,null,"107.B. ESTE SERVICIO/NIVEL EDUCATIVO, ¿IMPLEMENTA AL MENOS TRES ACTIVIDADES"]
[null,null,null,null,null,"El/la coordinador/a de tutoría",null,null,null,null,null,null,null,null,null,null,null,null,null,null,null,null,null,"DEL PLAN DE TUTORÍA, ORIENTACIÓN EDUCATIVA Y CONVIVENCIA ESCOLAR"]
[null,null,null,null,null,"El/la responsable de convivencia",null,null,null,null,null,null,null,null,null,null,null,null,null,null,null,null,null,"RELACIONADAS A LA PROMOCIÓN DE LA CONVIVENCIA ESCOLAR, LA PREVENCIÓN Y LA"]
[null,null,null,null,null,"El/la responsable de inclusión",null,null,null,null,null,null,null,null,null,null,null,null,null,null,null,null,null,"ATENCIÓN DE LA VIOLENCIA ESCOLAR?NCIÓN DE LA VIOLENCIA ESCOLAR?"]
[null,null,null,null,null,"Un/a (1) representante de los padres y madres de familia, tutores legales"]
[null,null,null,null,null,"Un/a (1) representante de las y los estudiantes",null,null,null,null,null,null,null,null,null,null,null,null,null,null,null,null,null,"Sí",null,null,null,null,null," No  ",null,null,null,"Pase a la pregunta 110.B"]
[{"$f":"CONCATENATE(Y139,Y149)","v":""},null,null,null,null,"Un/a (1) psicólogo, cuando exista el cargo en la IIEE"]
[{"$f":"CONCATENATE(AE139,AE149)","v":""},null,null,null,null,"Otros",null,""]
[]
[]
[null,null,null,"108.B. ESTE SERVICIO/NIVEL EDUCATIVO, ¿EN QUE FECHAS REALIZÓ LAS TRES ACTIVIDADES?",null,null,null,null,null,null,null,null,null,null,null,null,null,null,null,null,null,null,"113.B. DE LAS SIGUIENTES ACCIONES, ¿CUÁLES SE HAN IMPLEMENTADO EN ESTE SERVICIO/NIVEL"]
[null,null,null,null,null,null,null,null,null,null,null,null,null,null,null,null,null,null,null,null,null,null,null,"EDUCATIVO, DURANTE EL AÑO 2024, SEGÚN LAS NECESIDADES DE LOS ESTUDIANTES?"]
[null,null,null,null,null,null,null,null,null,null,{"$f":"SUM(K157:K159)","v":0},"Día",null,"Mes",null,"Año"]
[null,null,null,{"$f":"IF(K157>0,\"X\",\"\")","v":""},"01","Actividad N° 01",null,null,null,null,{"$f":"SUM(L157:Q157)","v":0},null,null,null,null,null,null,{"$f":"CONCATENATE(L157,\"-\",N157,\"-\",P157)","v":"--"},null,null,null,null,null,"Seleccione “Si” o “No” según corresponda para cada tema"]
[null,null,null,{"$f":"IF(K158>0,\"X\",\"\")","v":""},"02","Actividad N° 02",null,null,null,null,{"$f":"SUM(L158:Q158)","v":0},null,null,null,null,null,null,{"$f":"CONCATENATE(L158,\"-\",N158,\"-\",P158)","v":"--"}]
[null,null,null,{"$f":"IF(K159>0,\"X\",\"\")","v":""},"03","Actividad N° 03",null,null,null,null,{"$f":"SUM(L159:Q159)","v":0},null,null,null,null,null,null,{"$f":"CONCATENATE(L159,\"-\",N159,\"-\",P159)","v":"--"},null,null,null,null,null,null,null,null,null,null,null,null,null,null,null,null,"¿Ha sido impemen- tado?",null,"¿Ha recibido asistencia técnica?"]
[null,null,null,null,null,null,null,null,null,null,null,null,null,null,null,null,null,null,null,null,null,null,"NRO.",null,null,null,null,"ACCIONES"]
[null,null,null,"109.B. EN ESTE SERVICIO/NIVEL EDUCATIVO, ¿QUIÉNES FUERON LOS PARTICIPANTES"]
[null,null,null,null,"Y LA CANTIDAD DEL PÚBLICO OBJETIVO EN LAS ACTIVIDADES QUE REALIZÓ?",null,null,null,null,null,null,null,null,null,null,null,null,null,null,null,null,null,null,null,null,null,null,null,null,null,null,null,null,null,"SI/NO",null,"SI/NO"]
[null,null,null,null,null,null,null,null,null,null,null,null,null,null,null,null,null,null,null,null,null,{"$f":"COUNTIF(AI163:AI185,\"NO\")","v":0},"01","Prevención de la violencia escolar"]
[null,null,null,null,null,null,null,null,null,null,null,"Cantidad de participantes",null,null,null,null,null,null,null,null,null,null,"02","Prevención del embarazo a temprana edad"]
[null,null,null,null,null,null,null,null,null,null,{"$f":"SUM(K166:K169)","v":0},"Actividad 01",null,null,"Actividad 02",null,null,"Actividad 03",null,null,null,null,"03","Promoción de la salud mental"]
[null,null,null,null,"01","Docentes",null,null,null,null,{"$f":"SUM(L166:T166)","v":0},null,null,null,null,null,null,null,null,null,null,null,"04","Prevención de trata de personas"]
[null,null,null,null,"02","Estudiantes",null,null,null,null,{"$f":"SUM(L167:T167)","v":0},null,null,null,null,null,null,null,null,null,null,null,"05","Prevención del consumo de drogas"]
[null,null,null,null,"03","Familia",null,null,null,null,{"$f":"SUM(L168:T168)","v":0},null,null,null,null,null,null,null,null,null,null,null,"06","Prevención de trabajo infantil forzoso"]
[null,null,null,null,"04","Personal Administrativo",null,null,null,null,{"$f":"SUM(L169:T169)","v":0},null,null,null,null,null,null,null,null,null,null,null,"07","Prevención de la violencia familiar"]
[null,null,null,null,null,null,null,null,null,null,null,{"$f":"SUM(L166:N169)","v":0},null,null,{"$f":"SUM(O166:Q169)","v":0},null,null,{"$f":"SUM(R166:T169)","v":0},null,null,null,null,"08","Prevención de la violencia sexual"]
[null,null,null,"110.B. ACTUALMENTE LOS DOCENTES, ¿INCORPORAN EN LA PLANIFICACIÓN ANUAL DE AULA",null,null,null,null,null,null,null,null,null,null,null,null,null,null,null,null,null,null,"09","Prevención de trastornos alimenticios"]
[null,null,null,null,"LAS ACTIVIDADES RELACIONADAS CON LA TUTORÍA Y ORIENTACIÓN EDUCATIVA?",null,null,null,null,null,null,null,null,null,null,null,null,null,null,null,null,null,"10","Prevención ante fenómenos naturales"]
[null,null,null,null,"Marque con una “X”, una opción",null,null,null,null,null,null,null,null,null,null,null,null,null,null,null,null,null,"11","Prevención de VIH, TBC, Hepatitis B, Papiloma Humano y …"]
[null,null,null,null,null,null,null,null,null,null,null,null,null,null,null,null,null,null,null,null,null,null,"12","Uso responsable de video juegos"]
[null,null,null,null,null,"Sí, todos los docentes",null,null,null,null,null,null,null,null,null,null,null,null,null,null,null,null,"13","Uso responsable de redes sociales digitales"]
[null,null,null,null,null,"Sí, algunos docentes",null,null,null,null,null,null,null,null,null,null,null,null,null,null,null,null,"14","Educación Vial"]
[null,null,null,null,null,"Ninguno",null,null,null,null,null,null,null,null,null,null,null,null,null,null,null,null,"15","Habilidades socioemocionales"]
[null,null,null,null,null,null,null,null,null,null,null,null,null,null,null,null,null,null,null,null,null,null,"16","Igualdad de género"]
[null,null,null,"111.B. ESTE SERVICIO/NIVEL EDUCATIVO, ¿RECIBE ASISTENCIA TÉCNICA SOBRE",null,null,null,null,null,null,null,null,null,null,null,null,null,null,null,null,null,null,"17","Educación Sexual Integral según RVM 169-2021-MINEDU"]
[null,null,null,null,"CONVIVENCIA ESCOLAR, LA PREVENCIÓN Y ATENCIÓN DE LA VIOLENCIA ESCOLAR?",null,null,null,null,null,null,null,null,null,null,null,null,null,null,null,null,null,"18","Promoción de la convivencia escolar"]
[null,null,null,null,null,null,null,null,null,null,null,null,null,null,null,null,null,null,null,null,null,null,"19","Acciones de proyecto de vida y orientación vocacional"]
[null,null,null,null,"Sí",null,null,null,null,null," No  ",null,null,null,"Pase a la pregunta 113.B",null,null,null,null,null,null,null,"20","Liderazgo"]
[null,null,null,null,null,null,null,null,null,null,null,null,null,null,null,null,null,null,null,null,null,null,"21","Acompañamiento en duelo"]
[null,null,null,null,null,null,null,null,null,null,null,null,null,null,null,null,"¿Cantidad de\nveces en el año?",null,null,null,null,null,"22","Prevención del suicidio"]
[null,null,null,null,null,null,null,null,null,null,null,null,null,null,null,null,null,null,null,null,null,null,"23","Otro",null,null,null,null,null,null,null,null,null,null,null,null,null,{"$f":"CONCATENATE(AI185,AK185)","v":""}]
[null,null,null,null,null,null,null,null,null,null,null,null,null,null,null,null,null,null,null,null,null,null,null,null,null,null,null,null,null,null,null,null,null,null,{"$f":"COUNTIF(AI163:AI185,\"SI\")+COUNTIF(AI163:AI185,\"NO\")","v":0},null,{"$f":"COUNTIF(AK163:AK185,\"SI\")+COUNTIF(AK163:AK185,\"NO\")","v":0},null,null,"  "]
[null,null,null,null,null,null,"Especialista de convivencia de la UGEL"]
[null,null,null,null,null,null,"Otro actor"]
[null,null,null,null,null,null,null,null,null,null,null,null,null,null,null,null,null,null,null,null,null,null,"114.B. EN ESTE SERVICIO/NIVEL EDUCATIVO, ¿QUÉ ESTRATEGIAS DE TUTORÍA Y"]
[null,null,null,"112.B. EN ESTE SERVICIO/NIVEL EDUCATIVO, ¿QUÉ TEMAS HAN SIDO ABORDADOS",null,null,null,null,null,null,null,null,null,null,null,null,null,null,null,null,null,null,null,"ORIENTACIÓN EDUCATIVA SE VIENE IMPLEMENTANDO DE MANERA PERMANENTE?"]
[null,null,null,null,"EN LA ASISTENCIA TÉCNICA?",null,null,null,null,null,null,null,null,null,null,null,null,null,null,null,null,null,null,"Marque con una “X”, una o más opciones"]
[null,null,null,null,"Marque con una “X”, una o más opciones"]
[]
[null,null,null,null,null,"Disciplina con enfoque de derechos y medidas correctivas en el aula",null,null,null,null,null,null,null,null,null,null,null,null,null,null,null,null,null,null,null,"Tutoría Individual"]
[null,null,null,null,null,"Normas de convivencia concertadas en la escuela",null,null,null,null,null,null,null,null,null,null,null,null,null,null,null,null,null,null,null,"Tutoría grupal"]
[null,null,null,null,null,"Habilidades socioemocionales en las/los docentes y escolares",null,null,null,null,null,null,null,null,null,null,null,null,null,null,null,null,null,null,null,"Participación estudiantil"]
[null,null,null,null,null,"Participación estudiantil para la prevención de la violencia",null,null,null,null,null,null,null,null,null,null,null,null,null,null,null,null,null,null,null,"Trabajo con las familias y la comunidad"]
[null,null,null,null,null,"Educación Sexual Integral para la prevención de la violencia",null,null,null,null,null,null,null,null,null,null,null,null,null,null,null,null,null,null,null,"Orientación Educativa permanente"]
[null,null,null,null,null,"Tipos de violencia, señales de alerta y cultura de reporte",null,null,null,null,null,null,null,null,null,null,null,null,null,null,null,null,null,null,null,"Otro"]
[null,null,null,null,null,"Protocolos de atención a la violencia hacia niñas, niños y adolescentes",null,null,null,null,null,null,null,null,null,null,null,null,null,null,null,null,null,null,null,"Ninguno"]
[null,null,null,null,null,"Orientaciones para prevención de la violencia"]
[null,null,null,null,null,"Promoción de la convivencia"]
[null,null,null,null,null,"Otros"]
[]
[]
[null,null,null,null,null,null,null,null,null,null,null,null,null,null,null,null,null,null,null,null,null,null,"121.B. ESTE SERVICIO/NIVEL EDUCATIVO, REALIZA ACTIVIDADES PARA:"]
[null,null,null,"115.B. DE ACUERDO CON LA RVM 212-2020-MINEDU, ¿DE QUÉ MANERA VIENE REALIZANDO"]
[null,null,null,null,"EL ACOMPAÑAMIENTO Y MONITOREO DE LA IMPLEMENTACIÓN DE LAS ACCIONES",null,null,null,null,null,null,null,null,null,null,null,null,null,null,null,null,null,"Detalle de los comités en el  Servicio/Nivel Educativo",null,null,null,null,null,null,null,"SI - NO",null,"¿Cuenta con\nmedios de\nverificación?",null,"Informe de actividades","Fotografias","Videos","Otros"]
[null,null,null,null,"DE LA TUTORÍA Y ORIENTACIÓN EDUCATIVA?"]
[null,null,null,null,"Marque con una “X”, una o más opciones"]
[null,null,null,null,null,null,null,null,null,null,null,null,null,null,null,null,null,null,null,null,null,null,null,null,null,null,null,null,null,null,null,null,"SI - NO"]
[null,null,null,null,null,"Visita inopinada a las aulas durante la hora de tutoría.",null,null,null,null,null,null,null,null,null,null,null,null,null,null,null,null,"Convivencia escolar democrática"]
[null,null,null,null,null,"Revisión de reportes realizados por los docentes.",null,null,null,null,null,null,null,null,null,null,null,null,null,null,null,null,"Prevención de la violencia contra niñas-niños"]
[null,null,null,null,null,"Encuestas a estudiantes y familias.",null,null,null,null,null,null,null,null,null,null,null,null,null,null,null,null,null,null,null,null,null,null,null,null,{"$f":"COUNTIF(AE212:AE213,\"SI\")+COUNTIF(AE212:AE213,\"NO\")","v":0}]
[null,null,null,null,null,"Monitoreo a la implementación del Plan TOECE.",null,null,null,null,null,null,null,null,null,null,null,null,null,null,null,null,"122.B. SOLO SI MARCO QUE REALIZA “LA PREVENCIÓN DE LA VIOLENCIA CONTRA"]
[null,null,null,null,null,"Otros",null,null,null,null,null,null,null,null,null,null,null,null,null,null,null,null,null,"NIÑAS(OS) ADOLESCENTES”, ¿CUÁLES SON LAS ACTIVIDADES QUE REALIZA ESTE"]
[null,null,null,null,null,null,null,null,null,null,null,null,null,null,null,null,null,null,null,null,null,null,null,"SERVICIO/NIVEL EDUCATIVO?"]
[null,null,null,"116.B. EL SERVICIO/NIVEL EDUCATIVO, ¿CUENTA CON NORMAS DE CONVIVENCIA",null,null,null,null,null,null,null,null,null,null,null,null,null,null,null,null,null,null,null,"Marque con una “X”, una o más opciones"]
[null,null,null,null,"ESCOLAR ACTUALIZADAS PARA EL PRESENTE AÑO?",null,null,null,null,null,null,null,null,null,null,null,null,null,null,null,null,null,null,null,null,"Gestión de talleres o reuniones con estudiantes."]
["Dias",null,null,null,null,null,null,null,null,null,null,null,null,null,null,null,null,null,null,null,null,null,null,null,null,"Capacitación a docentes para prevenir y/o atender casos de riesgo."]
[1,null,null,null,"Sí",null,null,null,null,null," No  ",null,null,null,"Pase a la pregunta 118.B",null,null,null,null,null,null,null,null,null,null,"Envío de orientaciones a apoderados/as."]
[2,null,null,null,null,null,null,null,null,null,null,null,null,null,null,null,null,null,null,null,null,null,null,null,null,"Gestión de talleres o reuniones con apoderados/as."]
[3,null,null,null,null,null,null,"¿Están incorporadas al reglamento interno?",null,null,null,null,null,null,null,null,null,null,null,null,null,null,null,null,null,"Gestión de estrategias en conjunto con otras organizaciones."]
[4,null,null,null,null,null,null,null,null,null,null,null,null,null,null,null,null,null,null,null,null,null,null,null,null,"Monitoreo de situación emocional y familiar de estudiantes."]
[5,null,null,null,null,null,null,null,"Sí  ",null,null,null,null,"No",null,null,null,null,null,null,null,null,null,null,null,"Otro"]
[6]
[7,null,null,"117.B. ¿LAS NORMAS DE CONVIVENCIA ESCOLAR HAN SIDO CONSTRUIDAS CON LA"]
[8,null,null,null,"PARTICIPACIÓN DE REPRESENTANTES DE LAS/LOS ESTUDIANTES?",null,null,null,null,null,null,null,null,null,null,null,null,null,null,null,null,null,"123.B  USTED, SEÑOR(A) DIRECTOR(A), ¿CONOCE EL PORTAL SÍSEVE?"]
[9]
[10,null,null,null,"Sí",null,null,null,null,null," No  ",null,null,null,null,null,null,null,null,null,null,null,null,null," Sí",null,null,null,null,null," No  ",null,null,null,"Pase a la pregunta 126.B"]
[11]
[12,null,null,"118.B. ESTE SERVICIO/NIVEL EDUCATIVO, ¿CUENTA CON AL MENOS UNA/UN",null,null,null,null,null,null,null,null,null,null,null,null,null,null,null,null,null,null,null,null,null,null,null,"¿Ha sido capacitado por algún integrante de la UGEL/DRE"]
[13,null,null,null,"RESPONSABLE DE CONVIVENCIA ESCOLAR ASIGNADO PARA EL PRESENTE AÑO?",null,null,null,null,null,null,null,null,null,null,null,null,null,null,null,null,null,null,null,null,null,null,"en el uso del Portal SíseVe? "]
[14]
[15,null,null,null,"Sí",null,null,null,null,null," No  ",null,null,null,null,null,null,null,null,null,null,null,null,null,null,null,null," Sí   ",null,null,null,null,null," No  "]
[16]
[17,null,null,null,null,null,null,"¿Se encuentra registrado en el portal SíseVe?"]
[18,null,null,null,null,null,null,null,null,null,null,null,null,null,null,null,null,null,null,null,null,null,"124.B. ESTE SERVICIO/NIVEL EDUCATIVO, ¿SE ENCUENTRA AFILIADO AL SÍSEVE?"]
[19,null,null,null,null,null,null,null,"Sí  ",null,null,null,null,"No"]
[20,null,null,null,null,null,null,null,null,null,null,null,null,null,null,null,null,null,null,null,null,null,null,"Sí",null,null,null,null,"¿Cuántos casos han sido reportados?"]
[21,null,null,"119.B  EL SERVICIO/NIVEL EDUCATIVO, ¿CUENTA CON LIBRO DE REGISTRO DE INCIDENCIAS "]
[22,null,null,null,"SOBRE VIOLENCIA Y ACOSO ESCOLAR EN EL MARCO DE LA LEY 29719?",null,null,null,null,null,null,null,null,null,null,null,null,null,null,null,null,null,null,"No"]
[23,null,null,null,null,null,null,null,null,null,null,null,null,null,null,null,null,null,null,null,null,null,null,null,null,null,"¿Porque razón el servicio y/o nivel educativo no está afiliado al SÍSEVE?"]
[24,null,null,null,"Sí",null,null,null,null,null," No  ",null,null,null,"Pase a la pregunta 121.B",null,null,null,null,null,null,null,null,null,null,null,"Marque con una “X”, una opción"]
[25,null,null,null,null,null,null,null,null,null,null,null,null,null,null,null,null,null,null,null,null,null,null,null,null,null,null,"Por falta de internet"]
[26,null,null,null,null,null,null,"¿El libro de registro se encuentra en un lugar visible?",null,null,null,null,null,null,null,null,null,null,null,null,null,null,null,null,null,null,null,"Lo conoce y no le parece importante afiliarse"]
[27,null,null,null,null,null,null,null,null,null,null,null,null,null,null,null,null,null,null,null,null,null,null,null,null,null,null,"Le parece importante, pero no lo ve necesario para su I.E."]
[28,null,null,null,null,null,null,null,"Sí  ",null,null,null,null,"No",null,null,null,null,null,null,null,null,null,null,null,null,null,"Otro"]
[29]
[30,null,null,"120.B. EN ESTE SERVICIO/NIVEL EDUCATIVO, EN EL AÑO 2023, ¿SE HIZO USO DEL",null,null,null,null,null,null,null,null,null,null,null,null,null,null,null,null,null,null,null,""]
[31,null,null,null,"LIBRO DE REGISTRO DE INCIDENCIAS?",null,null,null,null,null,null,null,null,null,null,null,null,null,null,null,null,null,"125.B. EN ESTE SERVICIO/NIVEL EDUCATIVO, EN EL AÑO 2023, ¿USTED HA REPORTADO"]
[null,null,null,null,null,null,null,null,null,null,null,null,null,null,null,null,null,null,null,null,null,null,null,"ALGÚN HECHO DE VIOLENCIA EN EL PORTAL SÍSEVE?"]
["Meses",null,null,null,"Sí",null,null,null,null,null," No  ",null,null,null,null,null,null,null,null,null,null,null,null,"Sistema Especializado en Reporte de casos sobre Violencia Escolar"]
["01: Enero"]
["02: Febrero",null,null,null,null,null,null,"¿Cuántas incidencias se registraron en el año 2023?",null,null,null,null,null,null,null,null,null,null,null,null,null,null,null," Sí",null,null,null,null,"  Para el año 2023"]
["03: Marzo",null,null,null,null,null,null,null,null,null,null,null,null,null,null,null,null,null,null,null,null,null,null,null,null,null,null,null,"¿Cuántos casos fueron reportados?"]
["04: Abril",null,null,null,null,null,null,"Anote la fecha en la que el Servicio/Nivel",null,null,null,null,null,null,null,"DÍA","MES","AÑO"]
["05: Mayo",null,null,null,null,null,null,"registró la última incidencia de violencia.",null,null,null,null,null,null,null,null,null,null,null,null,null,null,null,"No"]
["06: Junio",null,null,null,null,null,null,null,null,null,{"$f":"IF(F253<>\"\",CONCATENATE(P258,\"-\",Q258,\"-\",R258),\"\")","v":""},null,null,null,null,null,{"$f":"CONCATENATE(P258,\"-\",Q258,\"-\",R258)","v":"--"}]
["07: Julio"]
["08: Agosto"]
["09: Septiembre",null,null,"126.B. ESTE SERVICIO/NIVEL EDUCATIVO, ¿CUENTA CON UN MAPA O DIRECTORIO",null,null,null,null,null,null,null,null,null,null,null,null,null,null,null,null,null,null,"132.B  SEÑOR(A) DIRECTOR(A), DURANTE EL PRESENTE AÑO, ¿HA RECIBIDO DENUNCIAS"]
["10: Octubre",null,null,null,"DE ALIADOS ESTRATÉGICOS?",null,null,null,null,null,null,null,null,null,null,null,null,null,null,null,null,null,null,"CONTRA EL PERSONAL DOCENTE DE ESTE SERVICIO/NIVEL EDUCATIVO?"]
["11: Noviembre"]
["12: Diciembre",null,null,null," Sí",null,null,null,null,null," No  ",null,null,null,"Pase a la pregunta 128.B",null,null,null,null,null,null,null,null," Sí",null,null,null,null,null," No  ",null,null,null,"Pase a la pregunta 134.B"]
["01: Enero"]
[null,null,null,null,null,null,null,null,null,null,null,null,null,null,null,null,null,null,null,null,null,null,null,null,null,null,"¿Cuántas?"]
["Años",null,null,null,"En caso de que cuente con un mapa o directorio de aliados estratégicos"]
[2016,null,null,null,null,null,null,null,null,null,null,null,"Prevención y\natención de casos\nde violencia escolar",null,null,null,"Promover el bienestar socioemocinal de los estudiantes",null,null,null,null,null,"133.B  SOBRE LA ATENCIÓN A LAS DENUNCIAS RECIBIDAS CONTRA EL PERSONAL DOCENTE"]
[2017,null,null,null,null,null,"Aliados estratégicos",null,null,null,null,null,null,null,null,null,null,null,null,null,null,null,null,"EN EL PRESENTE AÑO, INDIQUE USTED:"]
[2018]
[2019,null,null,null,"01","DEMUNA",null,null,null,null,null,null,null,null,null,null,null,null,{"$f":"CONCATENATE(O272,Q272)","v":""},null,null,null,null,null,"A.   ¿ CUÁNTAS DERIVÓ A LA CPPADD ?"]
[2020,null,null,null,"02","Defensoría del pueblo",null,null,null,null,null,null,null,null,null,null,null,null,"",null,null,null,null,null,"B.   ¿CUÁNTAS ASUMIÓ LA INVESTIGACIÓN"]
[2021,null,null,null,"03","Centro de emergencia Mujer (CEM)",null,null,null,null,null,null,null,null,null,null,null,null,"",null,null,null,null,null,"        POR SER DE SU COMPETENCIA?"]
[2022,null,null,null,"04","Centro o posta de salud",null,null,null,null,null,null,null,null,null,null,null,null,""]
[2023,null,null,null,"05","Iglesia",null,null,null,null,null,null,null,null,null,null,null,null,"",null,null,null,"134.B. SEÑOR(A) DIRECTOR(A), DURANTE EL PRESENTE AÑO, ¿USTED HA SIDO"]
[2024,null,null,null,"06","Comisaría",null,null,null,null,null,null,null,null,null,null,null,null,"",null,null,null,null,"OBJETO DE DENUNCIAS POR ADOPTAR MEDIDAS EN PROTECCIÓN DEL"]
[null,null,null,null,"07","Centro de Salud Mental Comunitario (CSMC)",null,null,null,null,null,null,null,null,null,null,null,null,"",null,null,null,null,"DIANTE O DENUNCIAS DE CORRUPCIÓN?"]
[null,null,null,null,"08","Centro o posta de salud",null,null,null,null,null,null,null,null,null,null,null,null,""]
[null,null,null,null,"09","Municipalidad",null,null,null,null,null,null,null,null,null,null,null,null,"",null,null,null,null," Sí",null,null,null,null,null," No  "]
[null,null,null,null,"10","Gobierno regional",null,null,null,null,null,null,null,null,null,null,null,null,""]
[null,null,null,null,"11","Universidad",null,null,null,null,null,null,null,null,null,null,null,null,"",null,null,null,null,null,null,null,"¿Cuántas?"]
[null,null,null,null,"12","ONG",null,null,null,null,null,null,null,null,null,null,null,null,""]
[null,null,null,null,"13","Otro",null,null,null,null,null,null,null,null,null,null,null,null,"",null,null,null,"135.B  SEÑOR(A) DIRECTOR(A), EN ESTE SERVICIO/NIVEL EDUCATIVO, ¿SE TIENEN"]
[null,null,null,null,null,null,null,null,null,null,null,null,null,null,null,null,{"$f":"COUNTIF(O272:R284,\"SI\")+COUNTIF(O272:R284,\"NO\")","v":0},null,null,null,null,null,null,"IMPLEMENTADAS MEDIDAS DE SEGURIDAD PARA EL TRATAMIENTO DE LOS DATOS"]
[null,null,null,null,null,null,null,null,null,null,null,null,null,null,null,null,null,null,null,null,null,null,null,"PERSONALES QUE ADMINISTRAN?"]
[null,null,null,"127.B  ¿EL SERVICIO/NIVEL EDUCATIVO HA REALIZADO ALGUNA ACTIVIDAD COORDINADA",null,null,null,null,null,null,null,null,null,null,null,null,null,null,null,null,null,null,null,"(Ya sea de alumnos, profesores, personal administrativo o terceros. En cumplimiento de la"]
[null,null,null,null,"CON ALGUNO DE LOS ALIADOS ESTRATÉGICOS?",null,null,null,null,null,null,null,null,null,null,null,null,null,null,null,null,null,null," ley N° 29733 y su reglamento)"]
[]
[null,null,null,null,"Sí",null,null,null,null,null," No  ",null,null,null,null,null,null,null,null,null,null,null,null," Sí",null,null,null,null,null," No  "]
[]
[null,null,null,"128.B  SEÑOR(A) DIRECTOR(A,) ¿EMPLEA USTED HERRAMIENTAS DE CONSULTA PARA",null,null,null,null,null,null,null,null,null,null,null,null,null,null,null,null,null,null,"136.B. USTED SEÑOR(A) DIRECTOR(A), ¿TIENE AULA A CARGO U HORAS LECTIVAS"]
[null,null,null,null,"VERIFICAR LA SITUACIÓN DEL PERSONAL DE ESTE SERVICIO/NIVEL EDUCATIVO, TAL COMO",null,null,null,null,null,null,null,null,null,null,null,null,null,null,null,null,null,null,"PARA EL PRESENTE AÑO?"]
[null,null,null,null,"EL REGISTRO NACIONAL DE SANCIONES CONTRA SERVIDORES CIVILES – RNSSC?"]
[null,null,null,null,null,null,null,null,null,null,null,null,null,null,null,null,null,null,null,null,null,null,null," Sí",null,null,null,null,null," No  ",null,null,null,"Pase a la pregunta 140.B"]
[null,null,null,null,"Sí",null,null,null,null,null," No  "]
[null,null,null,null,null,null,null,null,null,null,null,null,null,null,null,null,null,null,null,null,null,null,"137.B. SEÑOR DIRECTOR, ¿EN QUÉ NIVEL EDUCATIVO TIENE ASIGNADA EL AULA U"]
[null,null,null,"129.B  SEÑOR(A) DIRECTOR(A) ¿CONOCE USTED QUE PUEDE PRESENTAR DENUNCIAS SOBRE",null,null,null,null,null,null,null,null,null,null,null,null,null,null,null,null,null,null,null,"HORAS Y LA ESPECIALIDAD QUE HA ESTUDIADO?"]
[null,null,null,null,"POSIBLE ACTOS DE SOBORNO DE MANERA ANÓNIMA, CON LA FINALIDAD DE PROTEGER"]
[null,null,null,null,"SU IDENTIDAD?",null,null,null,null,null,null,null,null,null,null,null,null,null,null,null,null,null,null,null,"Selecciones SI o No en la o las alternativas que correspondan"]
[null,null,null,null,null,null,null,null,null,null,null,null,null,null,null,null,null,null,null,null,null,null,null,null,null,null,null,null,null,"Asignada el\naula u horas",null,null,"Especialidad que ha estudiado"]
[null,null,null,null,"Sí",null,null,null,null,null," No  ",null,null,null,null,null,null,null,null,null,null,null,null,null,null,null,"NIVEL"]
[null,null,null,null,null,null,null,null,null,null,null,null,null,null,null,null,null,null,null,null,null,null,null,null,null,null,null,null,{"$f":"COUNTIF(AD304:AI306,\"SI\")+COUNTIF(AD304:AI306,\"NO\")","v":0},"SI - NO",null,null,"SI - NO"]
[null,null,null,"130.B  SEÑOR(A) DIRECTOR(A) ¿TIENE CONOCIMIENTO QUE LOS HECHOS DE VIOLENCIA,",null,null,null,null,null,null,null,null,null,null,null,null,null,null,null,null,null,null,null,null,1,"Inicial",null,null,null,"",null,null,""]
[null,null,null,null,"ADEMÁS DE SER REPORTADOS EN EL PORTAL DEL SÍSEVE, DEBEN SER REPORTADOS",null,null,null,null,null,null,null,null,null,null,null,null,null,null,null,null,null,null,null,2,"Primaria",null,null,null,"",null,null,""]
[null,null,null,null,"A LA UGEL?",null,null,null,null,null,null,null,null,null,null,null,null,null,null,null,null,null,null,null,3,"Secundaria",null,null,null,"",null,null,""]
[]
[null,null,null,null,"Sí",null,null,null,null,null," No  ",null,null,null,null,null,null,null,null,null,null,null,"138.B. ¿CUÁL DE LAS SIGUIENTES AFIRMACIONES CONSIDERA QUE EXPRESA MEJOR"]
[null,null,null,null,null,null,null,null,null,null,null,null,null,null,null,null,null,null,null,null,null,null,null,"SU OPINIÓN RESPECTO A QUE EL DIRECTOR(A) DE ESTE SERVICIO/NIVEL EDUCATIVO"]
[null,null,null,null,null,null,null,null,null,null,null,null,null,null,null,null,null,null,null,null,null,null,null,"TENGA ASIGNADA AULA A CARGO U HORAS LECTIVAS?"]
[null,null,null,"131.B  SEÑOR(A) DIRECTOR(A) ¿CONOCE USTED EN QUE CASOS TIENE COMPETENCIA PARA",null,null,null,null,null,null,null,null,null,null,null,null,null,null,null,null,null,null,null,"Marque con una “X”, solo una opción"]
[null,null,null,null,"INVESTIGAR UNA DENUNCIA QUE HAYA SIDO PRESENTADA EN CONTRA DE PROFESORES,"]
[null,null,null,null,"PERSONAL JERÁRQUICO Y SUBDIRECTOR DE ESTE SERVICIO/NIVEL EDUCATIVO QUE DIRIGE?\n",null,null,null,null,null,null,null,null,null,null,null,null,null,null,null,null,null,null,null,"Es beneficiosa para el cumplimiento de mis funciones como director de IE."]
[null,null,null,null,null,null,null,null,null,null,null,null,null,null,null,null,null,null,null,null,null,null,null,null,"Es indiferente para el cumplimiento de mis funciones como director de IE."]
[null,null,null,null,"Sí",null,null,null,null,null," No  ",null,null,null,null,null,null,null,null,null,null,null,null,null,"Es perjudicial para el cumplimiento de mis funciones como director de IE"]
[]
[]
[]
[null,null,null,null,null,null,null,null,null,null,null,null,null,null,null,null,null,null,null,null,null,null,"140.B. EN SU OPINIÓN, SI A UN DIRECTOR(A) SE LE QUIERE ASIGNAR AULA A CARGO"]
[null,null,null,"139.B. EN ESTE SERVICIO/NIVEL EDUCATIVO, ¿SE HA EXPERIMENTADO ALGUNA DE",null,null,null,null,null,null,null,null,null,null,null,null,null,null,null,null,null,null,null,"Marque con una “X”, solo una opción"]
[null,null,null,null,"LAS SIGUIENTES DIFICULTADES RELACIONADAS A QUE EL DIRECTOR(A) TENGA"]
[null,null,null,null,"AULA A CARGO?",null,null,null,null,null,null,null,null,null,null,null,null,null,null,null,null,null,null,null,null,"1 sección",null,null,null,null,null,"5 sección"]
[null,null,null,null,null,null,null,null,null,null,null,null,null,null,null,null,null,null,null,null,null,null,null,null,null,"2 sección",null,null,null,null,null,"6 sección"]
[null,null,null,null,"Seleccione “Si” o “No” según corresponda en cada acción",null,null,null,null,null,null,null,null,null,null,null,null,null,null,null,null,null,null,null,null,"3 sección",null,null,null,null,null,"7 sección"]
[null,null,null,null,null,null,null,null,null,null,null,null,null,null,null,null,null,null,null,null,null,null,null,null,null,"4 sección",null,null,null,null,null,"Ninguna"]
[null,null,null,null,"NRO.","ACCIONES",null,null,null,null,null,null,null,null,null,null,null,null," SI - NO"]
[null,null,null,null,1,"Se dificulta realizar el monitoreo a la práctica pedagógica.",null,null,null,null,null,null,null,null,null,null,null,null,null,null,null,null,"141.B. SEÑOR(A) DIRECTOR(A), ¿LOS DOCENTES DEL ÁREA DE EDUCACIÓN PARA EL TRABAJO"]
[null,null,null,null,2,"Se dificulta realizar gestiones con aliados para la mejora de la IE."]
[null,null,null,null,3,"Se dificulta la gestión de la convivencia escolar.",null,null,null,null,null,null,null,null,null,null,null,null,null,null,null,null,null,"Sí",null,null,null,null,null," No  "]
[null,null,null,null,4,"Se interrumpe las clases para atender funciones de dirección."]
[null,null,null,null,5,"Se debe dejar solos a los niños en el aula para atender tareas de la …",null,null,null,null,null,null,null,null,null,null,null,null,null,null,null,null,"142.B. DE LAS ACTIVIDADES QUE REALIZA CON FAMILIAS Y COMUNIDAD, ¿POR LO"]
[null,null,null,null,6,"Se experimenta sobrecarga laboral, se debe laborar fuera del horario."]
[null,null,null,null,7,"Se experimenta problemas de salud",null,null,null,null,null,null,null,null,null,null,null,null,null,null,null,null,null,"Sí",null,null,null,null,null," No  "]
[null,null,null,null,8,"Se experimenta malestar psicosocial, estrés o agotamiento laboral."]
[null,null,null,null,9,"Se experimenta problemas personales, pasar menos tiempo con la ...",null,null,null,null,null,null,null,null,null,null,null,null,null,null,null,null,"143.B. ACTUALMENTE, ¿LAS DOS HORAS PEDAGÓGICAS DE LA TUTORÍA GRUPAL SE"]
[null,null,null,null,null,null,null,null,null,null,null,null,null,null,null,null,null,null,{"$f":"COUNTIF(S327:T335,\"SI\")+COUNTIF(S327:T335,\"NO\")","v":0},null,null,null,null,"DESARROLLAN DE MANERA SECUENCIAL?"]
[]
[null,null,null,null,null,null,null,null,null,null,null,null,null,null,null,null,null,null,null,null,null,null,null,"Sí",null,null,null,null,null," No  "]

{"sheet":"C101","index":2,"n_rows":600,"n_cols":24,"rows_kept":600,"cut":false,"hidden":false,"merged":[[582,5,582,7],[588,4,590,6],[588,8,589,9],[588,10,589,11],[598,5,598,7],[542,18,542,19],[548,9,548,11],[562,17,562,21],[563,9,563,11],[569,4,571,6],[569,8,570,9],[569,10,570,11],[541,18,541,19],[456,11,457,11],[461,11,462,11],[463,11,464,11],[463,17,463,21],[502,19,502,21],[516,17,516,21],[517,7,517,11],[527,6,527,10],[540,18,540,19],[496,22,498,22],[501,19,501,21],[445,11,446,11],[447,11,448,11],[449,11,450,11],[452,11,453,11],[452,17,452,21],[454,11,455,11],[443,11,444,11],[1,6,1,20],[2,6,2,20],[439,17,439,20],[440,17,440,20],[442,4,442,10]]}
[]
[null,null,null,null,null,null,"CENSO EDUCATIVO 2024"]
[null,null,null,null,null,null,"MATRÍCULA, DOCENTES Y MATERIALES EDUCATIVOS"]
[]
[]
[]
[]
[]
[]
[]
[]
[]
[]
[]
[]
[]
[]
[]
[]
[]
[]
[]
[]
[]
[]
[]
[]
[]
[]
[]
[]
[]
[]
[]
[]
[]
[]
[]
[]
[]
[]
[]
[]
[]
[]
[]
[]
[]
[]
[]
[]
[]
[]
[]
[]
[]
[]
[]
[]
[]
[]
[]
[]
[]
[]
[]
[]
[]
[]
[]
[]
[]
[]
[]
[]
[]
[]
[]
[]
[]
[]
[]
[]
[]
[]
[]
[]
[]
[]
[]
[]
[]
[]
[]
[]
[]
[]
[]
[]
[]
[]
[]
[]
[]
[]
[]
[]
[]
[]
[]
[]
[]
[]
[]
[]
[]
[]
[]
[]
[]
[]
[]
[]
[]
[]
[]
[]
[]
[]
[]
[]
[]
[]
[]
[]
[]
[]
[]
[]
[]
[]
[]
[]
[]
[]
[]
[]
[]
[]
[]
[]
[]
[]
[]
[]
[]
[]
[]
[]
[]
[]
[]
[]
[]
[]
[]
[]
[]
[]
[]
[]
[]
[]
[]
[]
[]
[]
[]
[]
[]
[]
[]
[]
[]
[]
[]
[]
[]
[]
[]
[]
[]
[]
[]
[]
[]
[]
[]
[]
[]
[]
[]
[]
[]
[]
[]
[]
[]
[]
[]
[]
[]
[]
[]
[]
[]
[]
[]
[]
[]
[]
[]
[]
[]
[]
[]
[]
[]
[]
[]
[]
[]
[]
[]
[]
[]
[]
[]
[]
[]
[]
[]
[]
[]
[]
[]
[]
[]
[]
[]
[]
[]
[]
[]
[]
[]
[]
[]
[]
[]
[]
[]
[]
[]
[]
[]
[]
[]
[]
[]
[]
[]
[]
[]
[]
[]
[]
[]
[]
[]
[]
[]
[]
[]
[]
[]
[]
[]
[]
[]
[]
[]
[]
[]
[]
[]
[]
[]
[]
[]
[]
[]
[]
[]
[]
[]
[]
[]
[]
[]
[]
[]
[]
[]
[]
[]
[]
[]
[]
[]
[]
[]
[]
[]
[]
[]
[]
[]
[]
[]
[]
[]
[]
[]
[]
[]
[]
[]
[]
[]
[]
[]
[]
[]
[]
[]
[]
[]
[]
[]
[]
[]
[]
[]
[]
[]
[]
[]
[]
[]
[]
[]
[]
[]
[]
[]
[]
[]
[]
[]
[]
[]
[]
[]
[]
[]
[]
[]
[]
[]
[]
[]
[]
[]
[]
[]
[]
[]
[]
[]
[]
[]
[]
[]
[]
[]
[]
[]
[]
[]
[]
[]
[]
[]
[]
[]
[]
[]
[]
[]
[]
[]
[]
[]
[]
[]
[]
[]
[]
[]
[]
[]
[]
[]
[]
[]
[null,null,"C. ACOMPAÑAMIENTO Y SOPORTE PEDAGÓGICO"]
[null,null,"101.C  DESDE EL INICIO DEL AÑO ESCOLAR 2021 HASTA LA FECHA DE REPORTE DEL CENSO",null,null,null,null,null,null,null,null,null,null,"103.C  DURANTE EL AÑO 2022 Y HASTA EL REPORTE DEL CENSO EDUCATIVO 2023, EL"]
[null,null,null,"EDUCATIVO EL SERVICIO/NIVEL EDUCATIVO, ¿HA RECIBIDO COMUNICACIÓN O PARTICIPACIÓN",null,null,null,null,null,null,null,null,null,null,"EL SERVICIO/NIVEL EDUCATIVO, ¿HA RECIBIDO ALGÚN TIPO DE ACOMPAÑAMIENTO"]
[null,null,null,"PRESENCIAL O VIRTUAL/REMOTA DEL ESPECIALISTA PEDAGÓGICO DE LA UGEL,",null,null,null,null,null,null,null,null,null,null,"DIRIGIDO AL DIRECTIVO?"]
[null,null,null,"CON LA FINALIDAD DE BRINDAR ASISTENCIA TÉCNICA?"]
[null,null,null,null,null,null,null,null,null,null,null,null,null,null,"Sí",null," No  ",null,null,null,"Pase a la pregunta 105.C"]
[null,null,null,"Sí",null,null,"¿Cuántas veces?"]
[null,null,null,null,null,null,null,"Presencial:",null,null,null,null,null,null,null,null,"¿Que Institución le brindó el acompañamiento?"]
[null,null,null,null,null,null,null,"Virtual/Remota:",null,null,null,null,null,null,null,null,"Marque con una “X” una o más opciones"]
[]
[null,null,null," No  ",null,null,"Pase a la pregunta 103.C",null,null,null,null,null,null,null,"Nro.",null,"Institución",null,null,null,{"$f":"COUNTIF(V438:V441,\"X\")","v":0},"GESTIÓN"]
[null,null,null,null,null,null,null,null,null,null,null,null,null,null,1,"DRE"]
[null,null,"102.C  ¿CUÁLES DE LAS SIGUIENTES ACCIONES HA REALIZADO EL ESPECIALISTA PEDAGÓGICO AL",null,null,null,null,null,null,null,null,null,null,null,2,"UGEL"]
[null,null,null,"MOMENTO DE BRINDAR LA ASISTENCIA TÉCNICA AL SERVICIO/NIVEL EDUCATIVO?",null,null,null,null,null,null,null,null,null,null,3,"MINEDU"]
[null,null,null,"Seleccione “Si” o “No” según corresponda en cada acción",null,null,null,null,null,null,null,null,null,null,4,"Otros"]
[null,null,null,null,null,null,null,null,null,null,null,null,null,null,null,null,null,null,null,null,null,{"$f":"CONCATENATE(V438,V439)","v":""}]
[null,null,null,"NRO.","ACCIONES",null,null,null,null,null,null," SI - NO",null,null,null,"“Sólo si marco DRE o UGEL”"]
[null,null,{"$f":"COUNTIF(L444:L465,\"NO\")","v":0},1,"Pregunto sobre las necesidades y demandas pedagógicas del",null,null,null,null,null,null,null,null,null,null,"¿Sobre qué temas recibió acompañamiento como director por parte de la DRE/UGEL?"]
[null,null,null,null,"servicio/nivel educativo",null,null,null,null,null,null,null,null,null,null,"Marque con una “X”, una o más opciones"]
[null,null,null,2,"Observó alguna sesión o actividades de aprendizaje, ya sea de"]
[null,null,null,null,"manera presencial o virtual/remota (por lo menos una vez)",null,null,null,null,null,null,null,null,null,null,"Liderazgo directivo"]
[null,null,null,3,"Sostuvó un clima de confianza y proximidad durante sus acciones",null,null,null,null,null,null,null,null,null,null,"Temas administrativos"]
[null,null,null,null,"de asistencia técnica con este servicio/ nivel educativo",null,null,null,null,null,null,null,null,null,null,"Temas estratégicos"]
[null,null,null,4,"Generó algún espacio para que el director(a) del servicio/nivel",null,null,null,null,null,null,null,null,null,null,"Temas pedagógicos"]
[null,null,null,null,"educativo autoevalúe su práctica",null,null,null,null,null,null,null,null,null,null,"Temas comunitarios"]
[null,null,null,5,"Escuchó y respondió las dudas y consultas realizadas por usted",null,null,null,null,null,null,null,null,null,null,"Círculo de Interaprendizaje de Directivos (CID)"]
[null,null,null,6,"Las orientaciones brindadas atendieron las necesidades y",null,null,null,null,null,null,null,null,null,null,"Otros"]
[null,null,null,null,"demandas señaladas"]
[null,null,null,7,"Brindó orientaciones para la mejora de las prácticas pedagógicas",null,null,null,null,null,null,null,null,"104.C. EN EL CASO DE QUE SU RESPUESTA DE LA PREGUNTA ANTERIOR, SEA DRE/UGEL,"]
[null,null,null,null,"y de gestión acorde al enfoque por competencias.",null,null,null,null,null,null,null,null,null,"INDIQUE : ¿QUÉ TIPO DE ACOMPAÑAMIENTO HA RECIBIDO DE LA DRE/UGEL?"]
[null,null,null,8,"Sugirió estrategias pedagógicas contextualizadas para mejorar las"]
[null,null,null,null,"prácticas docentes",null,null,null,null,null,null,null,null,null,"Marque con una “X”, una o más opciones"]
[null,null,null,9,"Dio a conocer las fortalezas del servicio / nivel educativo"]
[null,null,null,10,"Durante las orientaciones utiliza alguna herramienta curricular",null,null,null,null,null,null,null,null,null,null,"Mentoría a directivos/Coaching"]
[null,null,null,11,"Se asumieron compromisos y/o acuerdos para la mejora",null,null,null,null,null,null,null,null,null,null,"Asistencia técnica para implementar (CID)"]
[null,null,null,12,"Brindó orientaciones y/o acompañamientos periódicos para la",null,null,null,null,null,null,null,null,null,null,"Webinar"]
[null,null,null,null,"Implementación de la metodología CAP en la IE.",null,null,null,null,null,null,null,null,null,null,"Talleres"]
[null,null,null,13,"Brindó orientaciones y/o acompañamientos periódicos para la Implem…",null,null,null,null,null,null,null,null,null,null,"Otros - Especificar"]
[null,null,null,null,"de la metod.Círculo de Interaprendizaje de Directivo (CID)"]
[null,null,null,null,null,null,null,null,null,null,null,{"$f":"COUNTIF(L444:L465,\"SI\")+COUNTIF(L444:L465,\"NO\")","v":0}]
[]
[null,null,"105.C. DURANTE EL AÑO 2023, EL EQUIPO DIRECTIVO DE ESTE SERVICIO/NIVEL EDUCATIVO",null,null,null,null,null,null,null,null,null,null,"111.C. EL CEBA, ¿INFORMÓ A LAS FAMILIAS SOBRE EL PROGRESO DE LOS ESTUDIANTES?"]
[null,null,null,"¿HA REALIZADO EL MONITOREO A LA PRÁCTICA PEDAGÓGICA DE LOS DOCENTES?"]
[null,null,null,null,null,null,null,null,null,null,null,null,null,null,"Sí",null," No  "]
[null,null,null," Sí",null,null," No  ",null,null,null,"Pase a la pregunta 107.C"]
[null,null,null,null,null,null,null,null,null,null,null,null,null,null,null,null,"¿Con qué frecuencia?"]
[]
[null,null,null,null,"¿Con qué frecuencia monitorea a cada docente durante el año escolar?",null,null,null,null,null,null,null,null,null,null,null,null,null,"Mensual"]
[null,null,null,null,"Marque con una “X” una opción",null,null,null,null,null,null,null,null,null,null,null,null,null,"Cada 2 meses"]
[null,null,null,null,null,"Al menos 1 vez al año",null,null,null,null,null,null,null,null,null,null,null,null,"Cada 3 meses"]
[null,null,null,null,null,"2 veces al año",null,null,null,null,null,null,null,null,null,null,null,null,"Cada 6 meses"]
[null,null,null,null,null,"3 vces al año",null,null,null,null,null,null,null,null,null,null,null,null,"Al finalizar el año"]
[null,null,null,null,null,"4 veces 2 veces al año"]
[null,null,null,null,null,null,null,null,null,null,null,null,null,"112.C. USTED SEÑOR(A) DIRECTOR(A), ¿HA VISITADO EL PORTAL WEB PARA DIRECTIVOS "]
[null,null,null,null,null,null,null,null,null,null,null,null,null,null,"LOS ÚLTIMOS TRES MESES?",null,null,"(https://directivos.minedu.gob.pe/)"]
[null,null,null,{"$f":"CONCATENATE(E478,E479)","v":""},"En caso haya señalado \"3 veces al año\" o “4 veces al año o más”, indique el motivo"]
[null,null,null,null,null,"El monitoreo es una actividad obligatoria.",null,null,null,null,null,null,null,null,"Sí",null," No  "]
[null,null,null,null,null,"En clases me enseñaron que es necesario el monitoreo."]
[null,null,null,null,null,"El monitoreo permite dialogar sobre la práctica docente",null,null,null,null,null,null,null,null,null,null,"¿La información encontrada en el portal web para directivos"]
[null,null,null,null,null,"y fortalece el logro de aprendizajes",null,null,null,null,null,null,null,null,null,null,"le resultó de utilidad?"]
[]
[null,null,"106.C. DURANTE EL AÑO 2023, EN PROMEDIO, ¿CUÁNTAS REUNIONES POR SEMANA DE TRABAJO",null,null,null,null,null,null,null,null,null,null,null,null,null,"Sí  ",null,null,"No"]
[null,null,null,"COLEGIADO O FORMACIÓN REALIZÓ CON EL PERSONAL DE ESTE SERVICIO/NIVEL EDUCATIVO?"]
[null,null,null,null,null,null,null,null,null,null,null,null,null,"113.C. SR(A). DIRECTOR(A), DURANTE EL AÑO 2023 Y HASTA LA APLICACIÓN DEL CENSO EDUCATIVO "]
[null,null,null,null,"Promedio de reuniones por semana",null,null,null,null,null,null,null,null,null,"2024, EN SU CONDICIÓN DE DIRECTOR(A), ¿UD. HA RECIBIDO ALGÚN TIPO DE ASIST. PEDAGÓGICA?"]
[]
[null,null,"107.C. DURANTE EL ÚLTIMO MES, EN PROMEDIO, ¿CUÁNTAS HORAS SEMANALES, ADICIONALES A",null,null,null,null,null,null,null,null,null,null,null," Sí",null," No  ",null,null,null,"Pase a la pregunta 115.C"]
[null,null,null,"SU JORNADA LABORAL, USTED CONSIDERA QUE HA DESTINADO PARA REALIZAR ACTIVIDADES"]
[null,null,null,"RELACIONADAS A SU TRABAJO COMO DIRECTOR?",null,null,null,null,null,null,null,null,null,null,null,null,null,"Marque con una “X”, una o más opciones"]
[]
[null,null,null,null,"Horas Semanales adicionales",null,null,null,null,null,null,null,null,null,null,null,null,null,null,null,null,null,"Tipo de acompaña- miento"]
[null,null,null,null,null,null,null,null,null,null,null,null,null,null,null,null,"Nro.",null,null,"Institución",null,{"$f":"COUNTIF(W500:W503,\"X\")","v":0}]
[null,null,"108.C  EN EL PRESENTE AÑO, EL PERSONAL DIRECTIVO DE ESTE SERVICIO/NIVEL EDUCATIVO"]
[null,null,null,"¿BRINDA SOPORTE Y APOYO A LOS DOCENTES EN TORNO A SU DESEMPEÑO EN EL MARCO",null,null,null,null,null,null,null,null,null,null,null,null,1,"DRE"]
[null,null,null,"DEL ACOMPAÑAMIENTO PEDAGÓGICO Y ESPACIOS DE TRABAJO COLEGIADO?",null,null,null,null,null,null,null,null,null,null,null,null,2,"UGEL"]
[null,null,null,null,null,null,null,null,null,null,null,null,null,null,null,null,3,"MINEDU"]
[null,null,null,"Sí",null,null," No  ",null,null,null,"Pase a la pregunta 110.C",null,null,null,null,null,4,"Otros"]
[]
[null,null,"109.C  ¿QUÉ TEMAS HAN SIDO ABORDADOS MAYORITARIAMENTE POR EL EQUIPO DIRECTIVO DURANTE",null,null,null,null,null,null,null,null,null,null,"114.C. ¿QUÉ TEMÁTICAS SE HAN ABORDADO EN LAS ASISTENCIAS PEDAGÓGICAS"]
[null,null,null,"LAS SESIONES DE SOPORTE Y APOYO A LOS DOCENTES EN EL MARCO DEL ACOMPAÑAMIENTO",null,null,null,null,null,null,null,null,null,null,"QUE HA RECIBIDO POR PARTE DE LOS ESPECIALISTAS DE DRE/UGEL?"]
[null,null,null,"PEDAGÓGICO Y ESPACIOS DE TRABAJO COLEGIADO?"]
[null,null,null,null,null,null,null,null,null,null,null,null,null,null,null,"Marque con una  “X” una o más opciones"]
[null,null,null,null,"Marque con una  “X” una o más opciones",null,null,null,null,null,null,null,null,null,null,null,"Planificación curricular"]
[null,null,null,null,null,"Planificación curricular",null,null,null,null,null,null,null,null,null,null,"Metodología y estrategias didácticas"]
[null,null,null,null,null,"Conducción de los aprendizajes",null,null,null,null,null,null,null,null,null,null,"Retroalimentación, criterios e instrumentos de evaluación"]
[null,null,null,null,null,"Como brindar acompañamiento socioafectivo y cognitivo",null,null,null,null,null,null,null,null,null,null,"Soporte emocional"]
[null,null,null,null,null,"Uso de los recursos y materiales educativos para atender la diversidad",null,null,null,null,null,null,null,null,null,null,"Experiencias pedagógicas innovadoras"]
[null,null,null,null,null,"Evaluación formativa y retroalimentación",null,null,null,null,null,null,null,null,null,null,"Acompañamiento pedagógico"]
[null,null,null,null,null,"Fortalecimiento del uso de TIC",null,null,null,null,null,null,null,null,null,null,"Implementación de Refuerzo Escolar"]
[null,null,null,null,null,"Competencia de las áreas curriculares",null,null,null,null,null,null,null,null,null,null,"Atención Diferenciada"]
[null,null,null,null,null,"Conclusiones descriptivas",null,null,null,null,null,null,null,null,null,null,"Otros"]
[null,null,null,null,null,"Otros temas",null,null,null,null,null,null,null,null,null,null,"Ninguna"]
[]
[null,null,"110.C  EL SERVICIO/NIVEL EDUCATIVO, ¿ DESARROLLA LAS SIGUIENTES ESTRATEGIAS",null,null,null,null,null,null,null,null,null,null,"115.C. SEÑOR(A) DIRECTOR(A), ¿USTED CONOCE EL SISTEMA INTEGRADO DE FORMACIÓN"]
[null,null,null,"DE ACOMPAÑAMIENTO ?",null,null,null,null,null,null,null,null,null,null,"  DOCENTE EN SERVICIO (SIFODS)?"]
[null,null,null,null,null,null,null,null,null,"¿Cuántos?"]
[null,null,null,"Marque con una “X”, una o más opciones",null,null,null,null,null,"Marque con una  “X” una opción",null,null,null,"","","","","","","","","","",""]
[null,null,null,null,null,null,null,null,null,null,"de 1 a 4 por área",null,null,"","Sí",null,null,"¿Qué módulo(s) ha utilizado del SIFODS?",null,null,null,null,"",""]
[null,null,null,null,"Visita en aula",null,null,null,null,null,"de 4 a 8 por área",null,null,"","","","","Marque con una “X”, una o más opciones",null,null,null,null,null,""]
[null,null,null,null,"Grupos de Interaprendizaje (GIA)",null,null,null,null,null,"Más de 8 por área",null,null,null," No  ",null,null,null,null,"File Docente"]
[null,null,null,null,"Talleres",null,null,null,null,null,null,null,null,null,null,null,null,null,null,"Docente al Día"]
[null,null,null,null,"Otros","Especificar",null,null,null,null,null,null,null,null,null,null,null,null,null,"Portafolio de la Oferta Formativa"]
[null,null,null,null,null,null,null,null,null,null,null,null,null,null,null,null,null,null,null,"Centro de Recursos"]
[null,null,null,null,null,null,null,null,null,null,null,null,null,null,null,null,null,null,null,"Guías docentes AeC"]
[null,null,null,null,null,null,null,null,null,null,null,null,null,null,null,null,null,null,null,"Asistencia Virtual Docente"]
[null,null,null,null,null,null,null,null,null,null,null,null,null,null,null,null,null,null,null,"Comunidades"]
[null,null,null,null,null,null,null,null,null,null,null,null,null,null,null,null,null,null,null,"Entorno Personal"]
[]
[]
[null,null,"116.C. SEÑOR(A) DIRECTOR(A), ¿SE HA IDENTIFICADO LAS NECESIDADES FORMATIVAS",null,null,null,null,null,null,null,null,null,null,"120.C. EN LOS ÚLTIMOS CINCO (05) AÑOS, ¿ALGUNA VEZ EN ESTE CEBA SE IMPLEMENTÓ"]
[null,null,null,"PARA EL PERSONAL DOCENTE DE ESTE CEBA?",null,null,null,null,null,null,null,null,null,null,"UN PROYECTO DE INNOVACIÓN EDUCATIVA O BUENA PRÁCTICA PEDAGÓGICA?"]
[]
[null,null,null,"Sí",null," No  ",null,null,null,"Pase a la pregunta 118.C"]
[]
[null,null,null,null,null,null,null,null,null,null,null,null,null,null,"(Referencia: ENDO 2021)",null,null,null,"Sí - No"]
[null,null,null,null,null,null,"¿Cómo identificó las necesidades formativas?",null,null,null,null,null,null,null,1,"Innovación educativa"]
[null,null,null,null,null,null,null,null,null,null,null,null,null,null,2,"Buena práctica pedagógica"]
[null,null,null,null,null,null,"Marque con una “X”, una o más opciones"]
[]
[null,null,null,null,null,null,null,"Observación en aula"]
[null,null,null,null,null,null,null,"Cuestionario de autodiagnóstico",null,null,null,null,null,"121.C. EN ESTE CEBA, ¿SE GENERAN ESPACIOS PARA LA COLABORACIÓN ENTRE DOCENTES"]
[null,null,null,null,null,null,null,"Monitoreo pedagógico",null,null,null,null,null,null,"Y/O DIRECTIVO PARA LA IMPLEMENTACIÓN DE MEJORAS EN LA PRÁCTICA PEDAGÓGICA ",null,null,null,null,null,null,null,null,"136. C"]
[null,null,null,null,null,null,null,"Otros",null,"",null,null,null,null,"(BUENAS PRÁCTICAS O INNOVACIÓN EDUCATIVA)?"]
[]
[null,null,"117.C. SEÑOR(A) DIRECTOR (A), EN ESTE CEBA, ¿SE HA GESTIONADO ALGÚN TIPO DE ACCIÓN",null,null,null,null,null,null,null,null,null,null,null,"Sí",null," No  ",null,null,null,"Pase a la pregunta 123.C"]
[null,null,null," FORMATIVA PARA ATENDER DICHAS NECESIDADES DEL PERSONAL DOCENTE ?"]
[]
[]
[null,null,null,"Sí",null," No  ",null,null,null,null,null,null,null,"122.C. EN RELACIÓN CON EL DESARROLLO DEL PROYECTO DE INNOVACIÓN O BUENA PRÁCTICA "]
[null,null,null,null,null,null,null,null,null,null,null,null,null,null,"PEDAGÓGICA, ¿QUÉ ASPECTOS LIMITAN LA IMPLEMENTACIÓN DE MEJORAS?"]
[null,null,null,null,null,null,null,null,null,null,null,null,null,null,"Marque con una “X”, una o más opciones"]
[null,null,null,null,null,"¿Qué tipo de acciones formativas gestionó para atender dichas"]
[null,null,null,null,null,"necesidades del personal docente de este Servicio/Nivel Educativo?",null,null,null,null,null,null,null,null,null,"Institucionalización de la práctica"]
[null,null,null,null,null,null,null,null,null,null,null,null,null,null,null,"Reflexionar sobre los resultados de la práctica"]
[null,null,null,null,null,null,"Marque con una “X”, una o más opciones",null,null,null,null,null,null,null,null,"Tener recursos limitados para mejorar su desarrollo"]
[null,null,null,null,null,null,null,"Cursos virtuales",null,null,null,null,null,null,null,"Contar con poco respaldo del equipo directivo y de los docentes."]
[null,null,null,null,null,null,null,"Programas formativos",null,null,null,null,null,null,null,"Otro"]
[null,null,null,null,null,null,null,"Otros"]
[]
[null,null,"118.C. EN LOS ÚLTIMOS DOCE (12) MESES, ¿ESTE CEBA CONTÓ CON ALGÚN PROYECTO DE INNOVACIÓN"]
[null,null,null," EDUCATIVA O BUENA PRÁCTICA PEDAGÓGICA ENMARCADOS EN ALGUNA DE LAS SIGUIENTES ",null,null,null,null,null,null,null,null,null,"123.C. ¿QUÉ FACTORES LE AYUDARÍAN A MEJORAR SU INNOVACIÓN O PRÁCTICA PEDAGÓGICA?"]
[null,null,null,"TEMÁTICAS/EJES?",null,null,null,null,null,null,null,null,null,null,"Marque con una “X”, una o más opciones"]
[]
[null,null,null,null,"Temática / Eje",null,null,null,"Innovación educativa",null,"Buena práctica pedagógica",null,null,null,null,"Acceso a tecnología/internet"]
[null,null,null,null,null,null,null,null,null,null,null,null,null,null,null,"Acceso a material pedagógico"]
[null,null,null,null,null,null,null,null,"SI","NO","SI","NO",null,null,null,"Tiempo para reflexionar y sistematizar la práctica"]
[null,null,null,"01","Gestión escolar",null,null,null,null,null,null,null,{"$f":"CONCATENATE(I573,J573,K573,L573)","v":""},null,null,"Asistencia técnica o asesoría personalizada"]
[null,null,null,"02","Mejoramiento del Servicio Educativo",null,null,null,null,null,null,null,"",null,null,"Talleres de intercambio de experiencia"]
[null,null,null,"03","Humanidades",null,null,null,null,null,null,null,"",null,null,"Becas de estudio"]
[null,null,null,"04","Ciencias",null,null,null,null,null,null,null,"",null,null,"Pasantias"]
[null,null,null,"05","Medio ambiente",null,null,null,null,null,null,null,""]
[null,null,null,"06","Violencia escolar (Bullying, acoso)",null,null,null,null,null,null,null,""]
[null,null,null,"07","Emprendimientos, productivos",null,null,null,null,null,null,null,""]
[null,null,null,"08","Inclusión",null,null,null,null,null,null,null,"","124.C. POSTERIOR AL MONITOREO, ¿QUÉ TIPO DE RETROALIMENTACIÓN BRINDA A"]
[null,null,null,"09","Nuevas tecnologías",null,null,null,null,null,null,null,"",null,"CADA DOCENTE?"]
[null,null,null,"10","Vida activa y saludable",null,null,null,null,null,null,null,"",null,"Marque con una “X”, una opción"]
[null,null,null,"11","Otro",null,null,null,null,null,null,null,""]
[null,null,null,null,null,null,null,null,null,{"$f":"COUNTIF(I573:J583,\"X\")","v":0},null,{"$f":"COUNTIF(K573:L583,\"X\")","v":0},null,null,null,"Descriptiva"]
[null,null,"119.C. EN LOS ÚLTIMOS DOCE (12) MESES, ¿HA CONTADO CON ALIADOS ESTRATÉGICOS QUE LE HAN",null,null,null,null,null,null,null,null,null,null,null,null,"Elemental"]
[null,null,null,"CON ALGÚN INCENTIVO ECONÓMICO PARA LA IMPLEMENTACIÓN Y/O SOSTENIBILIDAD DE",null,null,null,null,null,null,null,null,null,null,null,"Reflexiva o por descubrimiento"]
[null,null,null,"SU INNOVACIÓN O BUENA PRÁCTICA PEDAGÓGICA?",null,null,null,null,null,null,null,null,null,null,null,"No brinda retroalimentación por falta de tiempo"]
[]
[null,null,null,null,"Aliados Estratégicos",null,null,null,"Innovación Educativa",null,"Buena práctica pedagógica"]
[]
[null,null,null,null,null,null,null,null,"SI","NO","SI","NO"]
[null,null,null,"01","Gobierno regional",null,null,null,null,null,null,null,{"$f":"CONCATENATE(I592,J592,K592,L592)","v":""}]
[null,null,null,"02","DRE/UGEL",null,null,null,null,null,null,null,""]
[null,null,null,"03","Gobierno local",null,null,null,null,null,null,null,""]
[null,null,null,"04","Aliados privados",null,null,null,null,null,null,null,""]
[null,null,null,"05","MINEDU-FONDEP",null,null,null,null,null,null,null,""]
[null,null,null,"06","Padres y madres de familia",null,null,null,null,null,null,null,""]
[null,null,null,"07","Recursos propios de la IE",null,null,null,null,null,null,null,""]
[null,null,null,"08","Otro",null,null,null,null,null,null,null,""]
[null,null,null,null,null,null,null,null,null,{"$f":"COUNTIF(I592:J599,\"X\")","v":0},null,{"$f":"COUNTIF(K592:L599,\"X\")","v":0}]

{"sheet":"C102","index":3,"n_rows":158,"n_cols":22,"rows_kept":158,"cut":false,"hidden":false,"merged":[[70,20,70,22],[104,20,104,22],[109,6,109,10],[1,6,1,20],[2,6,2,20],[9,14,11,21],[11,4,11,9],[17,19,17,20],[18,17,20,22],[20,6,20,10],[46,17,46,21],[62,20,62,22],[136,8,136,11],[85,6,85,10],[122,21,122,22],[123,21,123,22],[126,6,126,10],[134,10,134,11],[134,17,134,22],[137,8,137,11],[138,17,138,22],[139,8,139,10],[139,17,139,22],[140,8,140,11],[140,17,140,20]]}
[]
[null,null,null,null,null,null,"CENSO EDUCATIVO 2024"]
[null,null,null,null,null,null,"MATRÍCULA, DOCENTES Y MATERIALES EDUCATIVOS"]
[]
[]
["GESTIÓN"]
["",null,"D. SOBRE LA BASE DEL CENSO DE POBLACIÓN Y VIVIENDA 2017 DEL INEI"]
[{"$f":"IF('C100'!AG35<>\"\",\"X\",\"\")","v":""},null,"101.D  SEGÚN LAS COSTUMBRES Y EL ORIGEN FAMILIAR, ¿USTED CONSIDERA QUE SU"]
[null,null,null,"SERVICIO/NIVEL EDUCATIVO CUENTA CON ESTUDIANTES PERTENECIENTES A LOS"]
[null,null,null,"SIGUIENTES GRUPOS ÉTNICOS?",null,null,null,null,null,null,null,null,null,null,"SOLO SI MARCÓ DOS O MÁS ALTERNATIVAS EN LA PREGUNTA ANTERIOR, RESPONDA:"]
[]
[null,null,null,"COD.","GRUPO ÉTNICO",null,null,null,null,null,{"$f":"COUNTIF(L13:L21,\"SI\")","v":0}," SI - NO"]
[null,null,null,1,"Quechua",null,null,null,null,null,null,null,{"$f":"IF(L13=\"SI\",1,0)","v":0}]
[null,null,null,2,"Aimara",null,null,null,null,null,null,null,{"$f":"IF(L14=\"SI\",1,0)","v":0}]
[null,null,null,3,"Nativo o indígena de la Amazonía",null,null,null,null,null,null,null,0]
[null,null,null,4,"Perteneciente o parte de otro pueblo indígena u originario",null,null,null,null,null,null,null,0,"102.D  ¿EXISTE UN GRUPO QUE TENGA MAYOR CANTIDAD DE ESTUDIANTES?"]
[null,null,null,5,"Negro moreno, zambo, mulato/Pueblo afroperuano o afrodescendiente",null,null,null,null,null,null,null,0]
[null,null,null,6,"Blanco",null,null,null,null,null,null,null,0,null,"Sí",null,null,"Código",null,6]
[null,null,null,7,"Mestizo",null,null,null,null,null,null,null,0,null,null,null,null,"Indique el grupo étnico en el que identifica mayor cantidad de estudiantes utilizando el COD. seleccionado en la pregunta 101.D"]
[null,null,null,8,"Asiático peruano",null,null,null,null,null,null,null,0,null,"No"]
[null,null,null,9,"Otro  especifique",null,null,null,null,null,null,null,0]
[null,null,null,null,null,null,null,null,null,null,{"$f":"IF(K12>1,\"X\",\"\")","v":""},{"$f":"COUNTIF(L13:L21,\"SI\")+COUNTIF(L13:L21,\"NO\")","v":0}]
[]
[]
[null,null,"E. ATENCIÓN A LA DIVERSIDAD Y SOBRE EL SERVICIO DE APOYO Y ASESORAMIENTO A LAS NECESIDADES EDUCATIVAS ESPECIALES - SAANEE"]
[null,null,"101.E. ESTE CEBA ¿TIENE TECNOLOGÍA SUFICIENTE PARA RESPONDER A LAS",null,null,null,null,null,null,null,null,null,null,"109.E. ESTE CEBA, ¿CUENTA CON RESPONSABLE DE INCLUSIÓN?"]
["Lengua originaria",null,null,"NECESIDADES EDUCATIVAS ESPECIALES (NEE) DE LOS ESTUDIANTES?"]
["0200: Achuar",null,null,null,null,null,null,null,null,null,null,null,null,null,"Sí",null,null,null,null,"No"]
["0300: Aimara",null,null,"Sí","",null,null,null,"No"]
["0400: Amahuaca",null,null,null,null,null,null,null,null,null,null,null,null,null,null,null,"¿Este personal labora a tiempo completo?"]
["0500: Arabela",null,"102.E. ESTE CEBA ¿CUENTA CON MATERIALES EDUCATIVOS PARA ATENDER A"]
["0600: Asháninka",null,null,"ESTUDIANTES CON NECESIDADES EDUCATIVAS ESPECIALES (NEE)?",null,null,null,null,null,null,null,null,null,null,null,null,"Sí  ",null,null,"No"]
["0610: Asheninka"]
["0700: Awajún",null,null,"Sí","",null,null,null,"No",null,null,null,null,"110.E. EN ESTE CEBA, DESDE ESLí AÑO 2021 HASTAN oLA FECHA DE APLICACIÓN DEL"]
["0800: Bora",null,null,null,null,null,null,null,null,null,null,null,null,null,"CENSO EDUCATIVO 2024, ¿HA IMPLEMENTADO MEDIDAS Y ACCIONES EN FAVOR DE LA "]
["0900: Kapanawa",null,"103.E. EL LOCAL DONDE OPERA ESTE CEBA, ¿CUENTA CON INFRAESTRUCTURA PARA RESPONDER",null,null,null,null,null,null,null,null,null,null,null,"INCLUSIÓN Y ATENCIÓN A LA DIVERSIDAD DE LAS/OS ESTUDIANTES Y/O DOCENTES? "]
["1000: Cashinahua",null,null,"  A LA DIVERSIDAD O LAS NEE,   (RAMPA, SEÑALÉTICA, ENTRE OTROS) ?",null,null,null,null,null,null,null,null,null,null,"(EN CUMPLIMIENTO DEL D.S. N° 007-2021-MINEDU)"]
[]
["1100: Kawki",null,null,"Sí","",null,null,null,"No",null,null,null,null,null,"Sí",null,null,"No",""]
["1200: Chamikuro"]
["1300: Ese eja",null,null,null,null,"                 ¿Es suficiente? "]
["1400: Harakbut",null,null,null,null,null,null,null,null,null,null,null,null,null,null,null,null,null,"¿Por qué?"]
["1500: Iñapari",null,null,null,null,"Sí  ","",null,"No","",null,null,null,null,null,"Marque con una “X”, una o más opciones"]
["1600: Ikuitu",null,null,null,null,null,null,null,null,null,null,null,null,null,null,"","Aún no cuentan con responsable de inclusión."]
["1700: Iskonawa",null,"104.E. ESTE CEBA, ¿CUENTA CON UN ESPECIALISTA DEL EQUIPO DE SERVICIO DE APOYO",null,null,null,null,null,null,null,null,null,null,null,null,"","Aún desconocen sobre el D.S. 007-2021-MINEDU"]
["1800: Jaqaru",null,null,"Y ASESORAMIENTO DE LAS NECESIDADES EDUCATIVAS ESPECIALES (SAANEE) QUE",null,null,null,null,null,null,null,null,null,null,null,"","Aún no cuentan con orientaciones para implementar la educación inclusiva."]
["1900: Kakataibo",null,null,"LE HAYA SIDO ASIGNADO?",null,null,null,null,null,null,null,null,null,null,null,"","Otro motivo"]
["2000: Kakinte (caquinte)"]
["2110: Kandozi (Chapra)",null,null,"Sí","",null,null,null,"No",null,null,null,null,"111.E   DE LAS ACTIVIDADES QUE REALIZA CON FAMILIAS Y COMUNIDAD, ¿POR LO MENOS"]
["2120: Kandozi (Kandozi)",null,null,null,null,null,null,null,null,null,null,null,null,null,"UNA DE ELLAS TIENE COMO EJE PRINCIPAL LA EDUCACIÓN INCLUSIVA?"]
["2200: Kukama-kukamiria",null,"105.E. DURANTE EL PRESENTE AÑO, ESTE CEBA ¿HA RECIBIDO ASISTENCIA Y ORIENTACIÓN PARA "]
["2300: Madija (culina)",null,null,"LA ATENCIÓN EDUCATIVA DE ESTUDIANTES CON DISCAPACIDAD DE PARTE DEL EQUIPO DE",null,null,null,null,null,null,null,null,null,null,"Sí",null,null,"No",""]
["2400: Maijiki",null,null,"SERVICIO DE APOYO Y ASESORAMIENTO DE LAS NECESIDADES EDUCATIVAS ESPECIALES "]
["2500: Matsés",null,null,"(SAANEE)?",null,null,null,null,null,null,null,null,null,"112.E. ESTE CEBA, ¿CUENTA CON EL SERVICIO DE APOYO EDUCATIVO INTERNO (SAEI)?"]
["2600: Matsigenka"]
["2700: Munichi",null,null,"Sí","","No  ",null,null,null,null,null,null,null,null,"Sí",null,"                 ¿Cuántas personas lo integran?",null,null,null,null,""]
["2800: Murui-muinani"]
["2900: Matsigenka-montetokunirira",null,null,null,null,"¿Cuántas asesorías (presenciales o virtuales) ha brindado"]
["3000: Nomatsigenga",null,null,null,null," el equipo SAANEE a este CEBA en el 2024?",null,null,null,null,null,null,null,null,null,null,null,"¿Quiénes lo conforman?"]
["3100: Ocaina"]
["3200: Omagua",null,null,null,null,null,null,"Cantidad :",null,null,null,null,null,null,null,null,null,"","Coordinador SAEI"]
["3310: Quechua amazónico (Kichwa)",null,null,null,null,null,null,null,null,null,null,null,null,null,null,null,null,"","Docente de Apoyo SAEI."]
["3321: Quechua central (Ancash)",null,null,null,null,null,null,null,null,null,null,null,null,null,null,null,null,"","Otro",null,""]
["3322: Quechua central (Huánuco)",null,null,null,null,"¿Cuántas docentes de este CEBA han recibido asistencia"]
["3323: Quechua central (Wanka)",null,null,null,null,"y orientación por el equipo SAANEE ?"]
["3324: Quechua central (Pasco)",null,null,null,null,null,null,null,null,null,null,null,null,null,"No","","¿Por qué?"]
["3331: Quechua norteño (Cajamarca)",null,null,null,null,null,null,"Cantidad :",null,null,null,null,null,null,null,null,"                     Marque con una “X”, una o más opciones"]
["3332: Quechua norteño (Inkawasi Kañaris)"]
["3341: Quechua sureño (Chanka)",null,"106.E. ¿ALGUNO DE LOS DOCENTES DE ESTE CEBA HAN RECIBIDO O RECIBEN CAPACITACIÓN O ",null,null,null,null,null,null,null,null,null,null,null,null,null,null,"","Aún no cuentan con lineamientos …"]
["3342: Quechua sureño (Collao)",null,null,"SOPORTE EN TEMAS RELACIONADOS A INCLUSIÓN Y ATENCIÓN A LA DIVERSIDAD EN LOS",null,null,null,null,null,null,null,null,null,null,null,null,null,"","Aún desconocen las funciones del SAEI."]
["3400: Resígaro",null,null,"ÚLTIMOS DOS (02) AÑOS, POR PARTE DEL SAE EXTERNO DE LA UGEL/DRE/GRE, O ALGUNA",null,null,null,null,null,null,null,null,null,null,null,null,null,"","Otro",null,""]
["3500: Secoya",null,null,"OTRA INSTITUCIÓN EN EL MARCO DE UNA EDUCACIÓN INCLUSIVA?"]
["3600: Sharanahua",null,null,null,null,null,null,null,null,null,null,null,null,"113.E. ESTE CEBA, DE ACUERDO AL DIAGNÓSTICO DE LOGROS DE APRENDIZAJE DE LAS/OS "]
["3700: Shawi",null,null,"Sí","",null,"No  ",null,null,null,null,null,null,null,"ESTUDIANTES QUE REQUIEREN MAYORES APOYOS EDUCATIVOS, ¿HA ELABORADO PLANES "]
["3800: Shipibo-Konibo",null,null,null,null,null,null,null,null,null,null,null,null,null,"EDUCATIVOS PERSONALIZADOS (PEP)?"]
["3900: Shiwilu",null,null,null,null,"¿De quién recibieron o reciben?"]
["4000: Taushiro",null,null,null,"Marque con una “X”, una o más opciones",null,null,null,null,null,null,null,null,null,"Sí","",null,"No"]
["4100: Ticuna"]
["4200: Urarina",null,null,null,"","Minedu",null,null,null,null,null,null,null,null,null,null,"¿Todos los/as estudiantes con alguna necesidad"]
["4300: Wampis",null,null,null,"","DRE/GRE",null,null,null,null,null,null,null,null,null,null,"educativa cuentan con un PEP?"]
["4400: Yagua",null,null,null,"","UGEL"]
["4500: Yaminahua",null,null,null,"","Organizaciones sin fines de lucro ONG",null,null,null,null,null,null,null,null,null,null,"Sí  ","",null,"No",""]
["4600: Yanesha",null,null,null,"","Entidad privada, como auspicio"]
["4700: Yine",null,null,null,"","Entidad privada, como convenio"]
["4800: Nahua",null,null,null,"","Inversión propia",null,null,null,null,null,null,null,"114.E.  ¿EN LOS PLANES TUTORIALES SE HA PRIORIZADO ALGÚN TEMA SOBRE EL EJE DE"]
[null,null,null,null,"","Otros",null,null,null,null,null,null,null,null,"  INCLUSIÓN Y ATENCIÓN A LA DIVERSIDAD?"]
["LENGUA EXTRANJERA: "]
["5100: Alemán",null,"107.E. ESTE CEBA, ¿HA RECIBIDO ASISTENCIA Y ORIENTACIÓN PARA LA ATENCION",null,null,null,null,null,null,null,null,null,null,null,"Sí","",null,"No"]
["5200: Inglés",null,null,"EDUCATIVA DE ESTUDIANTES CON DISCAPACIDAD, DE PARTE DEL SERVICIO"]
[null,null,null,"DE APOYO EDUCATIVO VIRTUAL (SAEV)?"]
[null,null,null,null,null,null,null,null,null,null,null,null,null,"115.E. EN EL AÑO 2023 Y HASTA LA FECHA DE APLICACIÓN DEL CENSO EDUCATIVO 2024, "]
[null,null,null,"Sí","",null,"No",null,null,null,null,null,null,null,"ESTE CEBA, ¿HA INCORPORADO ACCIONES Y CAMBIOS EN LA GESTIÓN PARA ATENDER A LA"]
[null,null,null,null,null,null,null,null,null,null,null,null,null,null,"DIVERSIDAD Y BRINDAR UNA EDUCACIÓN INCLUSIVA SEGÚN LAS NORMATIVAS VIGENTES?"]
[null,null,null,null,null,null,"¿Cuántos estudiantes con discapacidad están a cargo de"]
[null,null,null,null,null,null,"los docentes que han recibido asistencia y orientación"]
[null,null,null,null,null,null,"por el Servicio de Apoyo Educa􀆟vo Virtual (SAEV)?",null,null,null,null,null,null,null,"Sí","",null,"No"]
[]
[null,null,null,null,null,null,"Cantidad",null,null,null,null,null,null,null,null,null,"¿Precise los documentos de gestión?"]
[null,null,null,null,null,null,null,null,null,null,null,null,null,null,null,null,"Marque con una “X”, una o más opciones"]
[null,null,"108.E. ¿QUÉ ESTRATEGIAS FORMATIVAS VIRTUALES PRIORIZARÍA SOBRE TEMAS"]
[null,null,null,"DE EDUCACIÓN INCLUSIVA O ATENCIÓN A LA DIVERSIDAD?",null,null,null,null,null,null,null,null,null,null,null,null,null,"","Proyecto Educativo Institucional (PEI)"]
[null,null,null,null,null,null,null,null,null,null,null,null,null,null,null,null,null,"","Plan Anual de Trabajo (PAT)"]
[null,null,null,null,"Marque con una “X”, una o más opciones",null,null,null,null,null,null,null,null,null,null,null,null,"","Proyecto Curricular Institucional (PCI)"]
[null,null,null,null,null,"Curso virtual tutorado",null,null,null,null,null,null,null,null,null,null,null,"","Reglamento Interno (RI)"]
[null,null,null,null,null,"Curso virtual autoformativo",null,null,null,null,null,null,null,null,null,null,null,"","Otros"]
[null,null,null,null,null,"Grupo o círculo de interaprendizaje"]
[null,null,null,null,null,"Comunidades profesionales de apendizaje"]
[null,null,null,null,null,"Asesoría personalizada"]
[null,null,null,null,null,"Pasantia"]
[null,null,null,null,null,"Otros "]
[]
[]
[]
[]
[]
[]
[]
[null,null,"F. SUPERVISIÓN DE LA PRESTACIÓN DEL SERVICIO EDUCATIVO - SOLO GESTIÓN PRIVADA"]
[null,null,"101.F.  EN EL PRESENTE AÑO 2022, ¿ESTE NIVEL/SERVICIO EDUCATIVO FUE SUPERVISADO",null,null,null,null,null,null,null,null,null,null,"103.F.  FORMA DE CONSTITUCIÓN (Sólo para personas jurídicas)"]
[null,null,null,"  POR LA UGEL A LA QUE PERTENECE?",null,null,null,null,null,null,null,null,null,null,"Marque con un aspa ‘’x’’ y registra la información solicitada según corresponda"]
[]
[null,null,null," Sí",null,null,null," No  ",null,null,null,null,null,null,null,"  Sociedad"]
[null,null,null,null,null,null,null,null,null,null,null,null,null,null,null,null,null,"N° de Partida Regristral  "]
[null,null,null,null,null,"¿Qué aspectos fueron supervisados?",null,null,null,null,null,null,null,null,null,null,null,"N° de Asiento Registral  "]
[null,null,null,null,null,"Entrega de información a los usuarios(as) respecto del servicio educativo"]
[null,null,null,null,null,"Infraestructura educativa",null,null,null,null,null,null,null,null,null,"  Asociación"]
[null,null,null,null,null,"Otros"]
[]
[null,null,null,null,null,null,null,null,null,null,null,null,null,"104.F. ¿ESTE SERVICIO/NIVEL EDUCATIVO PERTENECE A ALGUNA ASOCIACIÓN"]
[null,null,"102.F. COMPLETE LOS SIGUIENTES DATOS SOBRE LA PROMOTORÍA DE ESTE NIVEL",null,null,null,null,null,null,null,null,null,null,null,"QUE AGRUPE A II.EE. PRIVADAS?"]
[null,null,null,"SERVICIO EDUCATIVO DE GESTIÓN PRIVADA"]
[null,null,null,"Marque con un aspa ‘’X’’ y registra la información solicitada según corresponda",null,null,null,null,null,null,null,null,null,null," Sí",null,null,null," No  "]
[null,null,null,"TIpo de persona:"]
[]
[null,null,null,null,null,"  Natural",null,"DNI/CE  ",null,":",null,null,null,null,"Nombre de la asociación :"]
[]
[null,null,null,null,null,null,null,"Nombres  ",null,null,null,null,null,null,"Datos de contacto de la asociación:"]
[null,null,null,null,null,null,null,"Apellidos  "]
[null,null,null,null,null,null,null,null,null,null,null,null,null,null,null,null,"Web "]
[null,null,null,null,null,"  Jurídica",null,"RUC  ",null,null,null,null,null,null,null,null,"Correo electrónico "]
[null,null,null,null,null,null,null,"Razón social  ",null,null,null,null,null,null,null,null,"Teléfono/celular "]
[]
[]
[]
[null,null,null,"105.F.   ¿ CUÁNTO ES EL COSTO DE LA PENSIÓN DE ENSEÑANZA (EN MONEDA NACIONAL) ?"]
[]
[null,null,null,null,null,null,"ESCALA :"]
[]
[null,null,null,null,null,null,null,null," Única",null,null,null,"Pensión"]
[]
[]
[null,null,null,null,null,null,null,null,null,null,null,null,"Escala Mínima"]
[null,null,null,null,null,null,null,null,"Varias"]
[null,null,null,null,null,null,null,null,null,null,null,null,"Escala Máxima"]
[]
[null,null,null,null,null,null,"Nota: Si señala que fue escala “Unica”, rellena el recuadro Pensión. Caso contrario, si selecciona"]
[null,null,null,null,null,null,"“Varias” (diferenciado por grado por ejemplo, etc.), completa los recuadros de Escala Mínima y"]
[null,null,null,null,null,null,"Escala Máxima solamente."]

{"sheet":"C200","index":4,"n_rows":306,"n_cols":28,"rows_kept":306,"cut":false,"hidden":false,"merged":[[173,11,174,13],[296,3,296,18],[270,3,270,17],[284,3,284,17],[287,11,287,12],[299,6,299,8],[298,9,298,13],[293,2,293,3],[290,2,290,3],[287,9,287,10],[272,15,272,18],[273,17,273,18],[298,14,298,18],[298,3,300,3],[299,4,299,5],[299,16,299,18],[299,14,299,15],[299,9,299,10],[299,11,299,13],[298,2,300,2],[298,4,298,8],[281,2,281,3],[273,9,273,10],[279,2,279,3],[286,7,286,10],[199,7,199,8],[225,2,225,3],[224,2,224,3],[220,2,222,3],[220,5,221,6],[220,11,220,14],[221,13,221,14],[204,11,204,14],[214,3,214,4],[272,4,273,4],[286,2,288,4],[273,13,273,14],[272,11,272,14],[221,7,221,8],[278,2,278,3],[277,2,277,3],[276,2,276,3],[272,5,273,6],[272,2,274,3],[272,7,272,10],[280,2,280,3],[287,13,287,14],[221,11,221,12],[221,17,221,18],[198,9,198,10],[231,12,232,12],[201,2,201,12],[204,5,205,6],[204,15,204,18],[221,15,221,16],[220,7,220,10],[221,9,221,10],[204,2,206,4],[205,7,205,8],[220,15,220,18],[205,17,205,18],[199,17,199,18],[198,13,198,14],[10,15,10,24],[194,15,194,18],[286,5,287,6],[286,15,286,18],[287,7,287,8],[287,17,287,18],[10,3,12,4],[12,17,12,18],[286,11,286,14],[91,11,91,20],[44,7,44,8],[78,14,78,15],[273,7,273,8],[93,15,93,16],[273,15,273,16],[273,11,273,12],[230,14,231,18],[230,11,230,12],[231,8,232,8],[231,9,232,9],[231,10,232,10],[287,15,287,16],[231,11,232,11],[199,9,199,10],[1,2,1,18],[77,8,77,11],[76,6,78,7],[10,2,13,2],[2,2,2,18],[197,7,197,8],[197,9,197,10],[196,15,196,16],[194,11,194,14],[194,7,194,10],[196,7,196,8],[195,11,195,12],[195,13,195,14],[196,9,196,10],[196,13,196,14],[197,15,197,16],[195,15,195,16],[197,13,197,14],[91,2,94,8],[113,2,114,2],[120,3,121,3],[120,2,121,2],[113,3,114,3],[113,4,113,18],[171,3,171,12],[77,18,77,21],[127,9,127,12],[147,9,147,10],[76,18,76,27],[78,18,78,19],[78,24,78,25],[78,20,78,21],[78,22,78,23],[77,22,77,27],[128,19,128,20],[78,26,78,27],[147,11,147,12],[147,13,147,14],[147,15,147,16],[147,17,147,18],[146,7,147,8],[106,4,106,18],[128,9,128,10],[128,11,128,12],[89,3,89,20],[93,13,93,14],[127,17,127,20],[93,19,93,20],[11,19,11,24],[12,5,12,6],[11,9,11,14],[12,23,12,24],[11,15,11,18],[12,7,12,8],[12,13,12,14],[12,19,12,20],[12,21,12,22],[12,15,12,16],[12,11,12,12],[12,9,12,10],[40,3,40,14],[43,5,43,8],[77,12,77,17],[44,11,44,12],[44,9,44,10],[44,13,44,14],[76,8,76,17],[42,3,44,4],[266,16,266,18],[195,17,195,18],[128,15,128,16],[181,15,181,16],[128,17,128,18],[128,13,128,14],[205,11,205,12],[181,17,181,18],[231,7,232,7],[228,3,228,18],[181,9,181,10],[180,11,180,14],[181,11,181,12],[127,7,128,8],[145,3,145,18],[161,4,161,5],[192,3,192,17],[218,3,218,17],[202,3,202,17],[199,13,199,14],[195,9,195,10],[205,15,205,16],[205,9,205,10],[197,11,197,12],[196,11,196,12],[205,13,205,14],[197,17,197,18],[196,17,196,18],[198,17,198,18],[198,15,198,16],[198,11,198,12],[204,7,204,10],[198,7,198,8],[199,11,199,12],[199,15,199,16],[231,20,232,20],[230,22,230,23],[231,22,232,22],[231,23,232,23],[230,20,230,21],[231,24,232,24],[231,25,232,25],[76,2,79,5],[78,12,78,13],[106,3,107,3],[78,16,78,17],[78,8,78,9],[101,2,101,8],[106,2,107,2],[231,21,232,21],[181,13,181,14],[180,15,180,18],[230,24,230,25],[180,2,182,3],[230,2,231,5],[230,7,230,8],[230,9,230,10],[181,7,181,8],[180,5,181,6],[178,3,178,17],[195,7,195,8],[8,3,8,24],[74,3,74,27],[42,2,45,2],[91,9,93,10],[93,17,93,18],[93,11,93,12],[92,11,92,14],[92,15,92,20],[127,13,127,16],[120,4,120,18],[10,5,10,14],[11,5,11,8],[42,5,42,14],[78,10,78,11],[43,9,43,14],[44,5,44,6],[194,6,195,6],[194,2,195,4],[180,4,181,4],[180,7,180,10],[147,19,147,20],[155,4,155,5],[125,3,125,18],[146,2,148,4],[146,6,148,6],[104,3,104,18],[111,3,111,18],[118,3,118,18],[127,2,129,4],[127,6,129,6],[142,3,142,5],[146,9,146,12],[146,13,146,16],[146,17,146,20]]}
[]
[null,null,"CENSO EDUCATIVO 2024"]
[null,null,"MATRÍCULA, DOCENTES Y RECURSOS"]
[]
[]
[]
[null,null,"200. MATRÍCULA Y SECCIONES"]
[]
[null,null,201,"MATRÍCULA DE JÓVENES Y ADULTOS DEL (LOS) PERÍODO(S) PROMOCIONAL(ES) CORRESPONDIENTES A LA FECHA DE REPORTE DEL CEBA Y PERIFÉRICOS, POR CICLO, GRADO Y SEXO, SEGÚN EDAD"]
[]
[null,null,"Edad en años cumplidos al 31-03-2024","TOTAL",null,"CEBA (Referencial)",null,null,null,null,null,null,null,null,null,"PERIFÉRICO"]
[null,null,null,null,null,"Inicial",null,null,null,"Intermedio",null,null,null,null,null,"Inicial",null,null,null,"Intermedio"]
[null,null,null,null,null,"1º",null,"2º",null,"1º",null,"2º",null,"3º",null,"1º",null,"2º",null,"1º",null,"2º",null,"3º"]
[null,null,null,"H","M","H","M","H","M","H","M","H","M","H","M","H","M","H","M","H","M","H","M","H","M"]
["00",null,"TOTAL",{"$f":"F15+H15+J15+L15+N15+P15+R15+T15+V15+X15","v":0},{"$f":"G15+I15+K15+M15+O15+Q15+S15+U15+W15+Y15","v":0},{"$f":"SUM(F16:F38)","v":0},0,0,0,0,0,0,0,0,0,0,0,0,0,0,0,0,0,0,0]
["14",null,"14 y menos",{"$f":"F16+H16+J16+L16+N16+P16+R16+T16+V16+X16","v":0},0]
["15",null,15,0,0]
["16",null,16,0,0]
["17",null,17,0,0]
["18",null,18,0,0]
["19",null,19,0,0]
["20",null,20,0,0]
["21",null,21,0,0]
["22",null,22,0,0]
["23",null,23,0,0]
["24",null,24,0,0]
["25",null,"25-29",0,0]
["30",null,"30-34",0,0]
["35",null,"35-39",0,0]
["40",null,"40-44",0,0]
["45",null,"45-49",0,0]
["50",null,"50-54",0,0]
["55",null,"55-59",0,0]
["60",null,"60-64",0,0]
["65",null,"65-69",0,0]
["70",null,"70-74",0,0]
["75",null,"75-79",0,0]
["80",null,"80 y más",0,0]
[null,null,"*Nota: Incluya a los estudiantes con algún tipo de Necesidad Educativa Especial (NEE)."]
[]
[null,null,202,"MATRÍCULA DE JÓVENES Y ADULTOS DEL (LOS) PERÍODO(S) PROMOCIONAL(ES) CORRESPONDIENTES A LA FECHA DE REPORTE DE LOS CÍRCULOS DE APRENDIZAJE, POR CICLO, GRADO Y SEXO, SEGÚN EDAD."]
[]
[null,null,"Edad en años cumplidos al 31-03-2024","TOTAL",null,"CÍRCULOS DE APRENDIZAJE"]
[null,null,null,null,null,"Inicial",null,null,null,"Intermedio"]
[null,null,null,null,null,"1º",null,"2º",null,"1º",null,"2º",null,"3º"]
[null,null,null,"H","M","H","M","H","M","H","M","H","M","H","M"]
["00",null,"TOTAL",{"$f":"F47+H47+J47+L47+N47","v":0},0,{"$f":"SUM(F48:F70)","v":0},{"$f":"SUM(G48:G70)","v":0},{"$f":"SUM(H48:H70)","v":0},0,0,0,0,0,0,0]
["14",null,"14 y menos",0,0]
["15",null,15,0,0]
["16",null,16,{"$f":"F50+H50+J50+L50+N50","v":0},{"$f":"G50+I50+K50+M50+O50","v":0}]
["17",null,17,0,0]
["18",null,18,0,0]
["19",null,19,0,0]
["20",null,20,0,0]
["21",null,21,0,0]
["22",null,22,0,0]
["23",null,23,0,0]
["24",null,24,0,0]
["25",null,"25-29",0,0]
["30",null,"30-34",0,0]
["35",null,"35-39",0,0]
["40",null,"40-44",0,0]
["45",null,"45-49",0,0]
["50",null,"50-54",0,0]
["55",null,"55-59",0,0]
["60",null,"60-64",0,0]
["65",null,"65-69",0,0]
["70",null,"70-74",0,0]
["75",null,"75-79",0,0]
["80",null,"80 y más",0,0]
[null,null,"1/ Los estudiantes son atendidos por facilitadores en alfabetización a cargo de la Dirección de Educación Básica Alternativa "]
[null,null,"Según RSG N° 063-2015-MINEDU"]
[null,null,"Nota: Incluya a los alumnos con algún tipo de necesidad educativa especial (NEE)."]
[]
[null,null,203,"MATRÍCULA DE JÓVENES Y ADULTOS DEL (LOS) PERÍODO(S) PROMOCIONAL(ES) CORRESPONDIENTE A LA FECHA DE REPORTE DE LOS CEBA Y PERIFÉRICOS, POR CICLO, GRADO Y SEXO, SEGÚN SITUACIÓN AL MATRICULARSE"]
[]
[null,null,"SITUACIÓN AL MATRICULARSE",null,null,null,"TOTAL",null,"CEBA (Referencial)",null,null,null,null,null,null,null,null,null,"PERIFÉRICO"]
[null,null,null,null,null,null,null,null,"Inicial",null,null,null,"Intermedio",null,null,null,null,null,"Inicial",null,null,null,"Intermedio"]
[null,null,null,null,null,null,null,null,"1º",null,"2º",null,"1º",null,"2º",null,"3º",null,"1º",null,"2º",null,"1º",null,"2º",null,"3º"]
[null,null,null,null,null,null,"H","M","H","M","H","M","H","M","H","M","H","M","H","M","H","M","H","M","H","M","H","M"]
["00",null,"TOTAL",null,null,null,{"$f":"I81+K81+M81+O81+Q81+S81+U81+W81+Y81+AA81","v":0},0,{"$f":"SUM(I82:I87)","v":0},{"$f":"SUM(J82:J87)","v":0},{"$f":"SUM(K82:K87)","v":0},0,0,0,0,0,0,{"$f":"SUM(R82:R87)","v":0},0,0,0,0,0,0,0,0,0,0]
["01",null,"INGRESANTES ",null,null,null,0,0]
["02",null,"PROMOVIDOS del mismo CEBA",null,null,null,0,0]
["03",null,"PROMOVIDOS de otro CEBA",null,null,null,{"$f":"I84+K84+M84+O84+Q84+S84+U84+W84+Y84+AA84","v":0},{"$f":"J84+L84+N84+P84+R84+T84+V84+X84+Z84+AB84","v":0}]
["04",null,"PERMANECE EN EL GRADO EN EL MISMO CEBA",null,null,null,0,0]
["05",null,"PERMANECE EN EL GRADO PROVENIENTE DE OTRO",null,null,null,0,0]
["06",null,"REENTRANTES",null,null,null,0,0]
[null,null,"Nota: Los totales de esta tabla deben ser iguales a los de la tabla 201."]
[]
[null,null,204,"MATRÍCULA DE JÓVENES Y ADULTOS DEL (LOS) PERÍODO(S) PROMOCIONAL(ES) CORRESPONDIENTE A LA FECHA DE REPORTE DE LOS CÍRCULOS DE APRENDIZAJE, POR CICLO, GRADO Y SEXO, SEGÚN SITUACIÓN AL MATRICULARSE"]
[]
[null,null,"SITUACIÓN AL MATRICULARSE",null,null,null,null,null,null,"TOTAL",null,"CÍRCULO DE APRENDIZAJE"]
[null,null,null,null,null,null,null,null,null,null,null,"Inicial",null,null,null,"Intermedio"]
[null,null,null,null,null,null,null,null,null,null,null,"1º",null,"2º",null,"1º",null,"2º",null,"3º"]
[null,null,null,null,null,null,null,null,null,"H","M","H","M","H","M","H","M","H","M","H","M"]
["00",null,"TOTAL",null,null,null,null,null,null,{"$f":"L96+N96+P96+R96+T96","v":0},0,{"$f":"SUM(L97:L102)","v":0},0,0,0,0,0,0,0,0,0]
["01",null,"INGRESANTES (Cursan por primera vez el 1º grado en el ciclo de la EBA)",null,null,null,null,null,null,0,0]
["02",null,"PROMOVIDOS del mismo Círculo de Aprendizaje",null,null,null,null,null,null,0,0]
["03",null,"PROMOVIDOS de otro CEBA (Aprobaron el periodo anterior en otro CEBA)",null,null,null,null,null,null,{"$f":"L99+N99+P99+R99+T99","v":0},{"$f":"M99+O99+Q99+S99+U99","v":0}]
["04",null,"PERMANECE EN EL GRADO EN EL MISMO Círculo de Aprendizaje (Repetidor)",null,null,null,null,null,null,0,0]
["05",null,"PERMANECE EN EL GRADO PROVENIENTE DE OTRO CEBA (Repetidor)",null,null,null,null,null,null,0,0]
["06",null,"REENTRANTES (Dejaron de estudiar más de un periodo)",null,null,null,null,null,null,0,0]
[null,null,"Nota: Los totales de esta tabla deben ser iguales a los de la tabla 202."]
[]
[null,null,205,"NÚMERO DE INGRESANTES EN EL CICLO INICIAL E INTERMEDIO DEL (LOS) PERÍODOS PROMOCIONAL(ES) CORRESPONDIENTE A LA FECHA DE REPORTE DEL CEBA (REFERENCIAL), POR EDAD, SEGÚN SEXO"]
[]
[null,null,"SEXO","TOTAL","EDAD EN AÑOS CUMPLIDOS"]
[null,null,null,null,"14 y menos",15,16,17,18,19,20,21,22,23,24,"25 - 29","30 - 34","35 - 39","40\ny más"]
["01",null," Hombre",{"$f":"SUM(E109:S109)","v":0}]
["02",null," Mujer",{"$f":"SUM(E110:S110)","v":0}]
[]
[null,null,206,"NÚMERO DE INGRESANTES EN EL CICLO INICIAL E INTERMEDIO DEL (LOS) PERÍODOS PROMOCIONAL(ES) CORRESPONDIENTE A LA FECHA DE REPORTE DE LOS PERIFÉRICOS, POR EDAD, SEGÚN SEXO"]
[]
[null,null,"SEXO","TOTAL","EDAD EN AÑOS CUMPLIDOS"]
[null,null,null,null,"14 y menos",15,16,17,18,19,20,21,22,23,24,"25 - 29","30 - 34","35 - 39","40\ny más"]
["01",null," Hombre",{"$f":"SUM(E116:S116)","v":0}]
["02",null," Mujer",{"$f":"SUM(E117:S117)","v":0}]
[]
[null,null,207,"NÚMERO DE INGRESANTES EN EL CICLO INICIAL E INTERMEDIO DEL (LOS) PERÍODOS PROMOCIONAL(ES) CORRESPONDIENTE A LA FECHA DE REPORTE DE LOS CÍRCULOS DE APRENDIZAJE, POR EDAD, SEGÚN SEXO"]
[]
[null,null,"SEXO","TOTAL","EDAD EN AÑOS CUMPLIDOS"]
[null,null,null,null,"14 y menos",15,16,17,18,19,20,21,22,23,24,"25 - 29","30 - 34","35 - 39","40\ny más"]
["01",null," Hombre",{"$f":"SUM(E123:S123)","v":0}]
["02",null," Mujer",{"$f":"SUM(E124:S124)","v":0}]
[]
[null,null,208,"MATRÍCULA DE JÓVENES Y ADULTOS DEL LOS PERÍODO(S) PROMOCIONAL(ES) CORRESPONDIENTES A LA FECHA DE REPORTE DE LOS CEBA, PERIFÉRICOS Y CÍRCULOS DE APRENDIZAJE POR FORMA DE ATENCIÓN Y SEXO, SEGÚN TIPO DISCAPACIDAD"]
[]
[null,null,"TIPO DE DISCAPACIDAD",null,null,null,"¿Detectó  está discapa- cidad?","TOTAL",null,"CEBA (Referencial)",null,null,null,"PERIFÉRICO",null,null,null,"CÍRCULO DE APRENDIZAJE"]
[null,null,null,null,null,null,null,null,null,"Inicial",null,"Intermedio",null,"Inicial",null,"Intermedio",null,"Inicial",null,"Intermedio"]
[null,null,null,null,null,{"$f":"COUNTIF(G132:G144,\"SI\") + COUNTIF(G132:G144,\"NO\")","v":0},null,"H","M","H","M","H","M","H","M","H","M","H","M","H","M"]
["00",null,"TOTAL",null,null,null,"SN",{"$f":"J131+L131+N131+P131+R131+T131","v":0},{"$f":"K131+M131+O131+Q131+S131+U131","v":0},{"$f":"SUM(J132:J144)","v":0},0,0,0,0,0,0,0,0,0,0,0]
["01",null,"Discapacidad Intelectual - Leve",null,null,null,null,{"$f":"J132+L132+N132+P132+R132+T132","v":0},0]
["02",null,"Discapacidad Intelectual - Moderada",null,null,null,null,0,0]
["03",null,"Discapacidad Auditiva - Hipoacusia",null,null,null,null,0,0]
["04",null,"Discapacidad Auditiva - Sordera",null,null,null,null,0,0]
["05",null,"Discapacidad Visual - Baja Visión",null,null,null,null,0,0]
["06",null,"Discapacidad Visual - Ceguera",null,null,null,null,0,0]
["07",null,"Discapacidad Física o Motora",null,null,null,null,0,0]
["08",null,"TEA - Requiere de apoyo (Nivel 1)",null,null,null,null,0,0]
["09",null,"TEA - Requiere de apoyo notable  (Nivel 2)",null,null,null,null,0,0]
["10",null,"TEA - Requiere de apoyo muy notable  (Nivel 3)",null,null,null,null,0,0]
["11",null,"Sordoceguera",null,null,null,null,0,0]
["12",null,"Otra discapacidad",null,null,null,null,0,0]
["13",null,"Ninguna discapacidad",null,null,null,null,{"$f":"J144+L144+N144+P144+R144+T144","v":0},{"$f":"K144+M144+O144+Q144+S144+U144","v":0}]
[null,null,null,null,null,null,{"$f":"COUNTIF(G132:G144,\"SI\")","v":0},{"$f":"SUM(H132:H143)","v":0},{"$f":"SUM(I132:I143)","v":0},{"$f":"F15+H15","v":0},{"$f":"G15+I15","v":0},{"$f":"J15+L15+N15","v":0},{"$f":"K15+M15+O15","v":0},{"$f":"P15+R15","v":0},{"$f":"Q15+S15","v":0},{"$f":"T15+V15+X15","v":0},{"$f":"U15+W15+Y15","v":0},{"$f":"F47+H47","v":0},{"$f":"G47+I47","v":0},{"$f":"J47+L47+N47","v":0},{"$f":"K47+M47+O47","v":0}]
[null,null,209,"MATRÍCULA TOTAL POR GRADO DE ESTUDIO Y SEXO, SEGÚN OTRAS CONDICIONES DETECTADAS"]
[null,null,"TIPO DE DISCAPACIDAD",null,null,null,"¿Detectó  está condi- ción?","TOTAL",null,"CEBA (Referencial)",null,null,null,"PERIFÉRICO",null,null,null,"CÍRCULO DE APRENDIZAJE"]
[null,null,null,null,null,null,null,null,null,"Inicial",null,"Intermedio",null,"Inicial",null,"Intermedio",null,"Inicial",null,"Intermedio"]
[null,null,null,null,null,{"$f":"COUNTIF(G151:G170,\"SI\") + COUNTIF(G151:G170,\"NO\")","v":0},null,"H","M","H","M","H","M","H","M","H","M","H","M","H","M"]
["00",null,"TOTAL",null,null,null,"SN",{"$f":"J150+L150+N150+P150+R150+T150","v":0},0,{"$f":"SUM(J151:J170)","v":0},0,0,0,0,0,0,0,0,0,0,0]
["01",null,"Retraso global del desarrollo",null,null,null,null,0,0]
["02",null,"Trastorno por Déficit de Atención - TDAH",null,null,null,null,0,0]
["03",null,"TEA - Dislexia",null,null,null,null,{"$f":"J153+L153+N153+P153+R153+T153","v":0},{"$f":"K153+M153+O153+Q153+S153+U153","v":0}]
["04",null,"TEA - Discalculia",null,null,null,null,0,0]
["05",null,"TEA - Disgrafia",null,null,null,null,0,0]
["06",null,"TEA - Otros",null,null,null,null,0,0]
["07",null,"Esquizofrenia (E)",null,null,null,null,0,0]
["08",null,"Depresión (D)",null,null,null,null,0,0]
["09",null,"Ansiedad (A)",null,null,null,null,0,0]
["10",null,"Trastornos de personalidad",null,null,null,null,0,0]
["11",null,"Otros de la salud mental, socioemocional o com…",null,null,null,null,0,0]
["12",null,"Enfermedades Raras",null,null,null,null,0,0]
["13",null,"Talla Baja",null,null,null,null,0,0]
["14",null,"Menos de 15 días de hospitalización",null,null,null,null,0,0]
["15",null,"De 15 a 30 días de hospitalización",null,null,null,null,0,0]
["16",null,"Más de 30 días de hospitalización",null,null,null,null,0,0]
["17",null,"Talento",null,null,null,null,0,0]
["18",null,"Superdotación",null,null,null,null,0,0]
["19",null,"Otras condiciones relacionadas",null,null,null,null,{"$f":"J169+L169+N169+P169+R169+T169","v":0},0]
["20",null,"Ninguna otra condición detectada",null,null,null,null,{"$f":"J170+L170+N170+P170+R170+T170","v":0},{"$f":"K170+M170+O170+Q170+S170+U170","v":0}]
[null,null,null,null,null,null,{"$f":"COUNTIF(G152:G170,\"SI\")","v":0},{"$f":"SUM(H151:H169)","v":0},{"$f":"SUM(I151:I169)","v":0},{"$f":"F15+H15","v":0},{"$f":"G15+I15","v":0},{"$f":"J15+L15+N15","v":0},{"$f":"K15+M15+O15","v":0},{"$f":"P15+R15","v":0},{"$f":"Q15+S15","v":0},{"$f":"T15+V15+X15","v":0},{"$f":"U15+W15+Y15","v":0},{"$f":"F47+H47","v":0},{"$f":"G47+I47","v":0},{"$f":"J47+L47+N47","v":0},{"$f":"K47+M47+O47","v":0}]
[null,null,210,"PARA LOS CASOS DETECTADOS DE ESTUDIANTES CON OTRO TIPO DE NEE O ENFERMEDAD, INDIQUE ¿CUÁL FUE SU SITUACIÓN AL MATRICULARSE EN EL PRESENTE AÑO 2023?"]
[]
[null,null,"SITUACIÓN AL MATRICULARSE",null,null,null,null,null,null,null,null,"N° de estudiantes detectado"]
[]
["00",null,"Número de estudiantes con otro tipo de NEE o enfermedad que desertaron o se retiraron",null,null,null,null,null,null,null,null,null,null,{"$f":"SUM(H132:I143)","v":0}]
["01",null,"Número de estudiantes con otro tipo de NEE o enfermedad que promovieron de grado",null,null,null,null,null,null,null,null,null,null,{"$f":"SUM(H151:I169)","v":0}]
["02"]
[null,null,211,"MATRÍCULA DE JÓVENES Y ADULTOS DEL (LOS) PERÍODO(S) PROMOCIONAL(ES) CORRESPONDIENTES A LA FECHA DE REPORTE DE LOS CEBA, PERIFÉRICOS Y CÍRCULOS DE APRENDIZAJE, POR CICLO Y SEXO, SEGÚN TENENCIA DE HIJOS"]
[]
[null,null,"NÚMERO DE HIJOS (AS)",null,null,"TOTAL",null,"CEBA (Referencial)",null,null,null,"PERIFÉRICO",null,null,null,"CÍRCULO DE APRENDIZAJE"]
[null,null,null,null,null,null,null,"Inicial",null,"Intermedio",null,"Inicial",null,"Intermedio",null,"Inicial",null,"Intermedio"]
[null,null,null,null,null,"H","M","H","M","H","M","H","M","H","M","H","M","H","M"]
["00",null,"TOTAL",null,null,{"$f":"H184+J184+L184+N184+P184+R184","v":0},{"$f":"I184+K184+M184+O184+Q184+S184","v":0},{"$f":"SUM(H185:H190)","v":0},{"$f":"SUM(I185:I190)","v":0},{"$f":"SUM(J185:J190)","v":0},0,0,0,0,0,0,0,0,0]
["01",null,0,null,null,{"$f":"H185+J185+L185+N185+P185+R185","v":0},{"$f":"I185+K185+M185+O185+Q185+S185","v":0}]
["02",null,1,null,null,0,0]
["03",null,2,null,null,0,0]
["04",null,3,null,null,0,0]
["05",null,4,null,null,0,0]
["06",null,"5 y más",null,null,0,0]
[null,null,"Nota: Los totales por sexo de esta tabla deben ser iguales a los totales por sexo de la tabla 201 + 202"]
[]
[null,null,212,"MATRÍCULA DE JÓVENES Y ADULTOS DEL (LOS) PERÍODO(S) PROMOCIONAL(ES) CORRESPONDIENTES A LA FECHA DE REPORTE DE LOS CEBA, PERIFÉRICOS Y CÍRCULOS DE APRENDIZAJE, POR CICLO, SEGÚN NÚMERO DE EMBARAZOS"]
[]
[null,null,"NÚMERO DE EMBARAZOS",null,null,null,"TOTAL","CEBA (Referencial)",null,null,null,"PERIFÉRICO",null,null,null,"CÍRCULO DE APRENDIZAJE"]
[null,null,null,null,null,null,null,"Inicial",null,"Intermedio",null,"Inicial",null,"Intermedio",null,"Inicial",null,"Intermedio"]
["00",null,"TOTAL",null,null,null,{"$f":"SUM(H197:S197)","v":0},{"$f":"SUM(H198:I200)","v":0},null,{"$f":"SUM(J198:K200)","v":0},null,{"$f":"SUM(L198:M200)","v":0},null,{"$f":"SUM(N198:O200)","v":0},null,{"$f":"SUM(P198:Q200)","v":0},null,{"$f":"SUM(R198:S200)","v":0}]
["01",null,"Primer embarazo",null,null,null,{"$f":"SUM(H198:S198)","v":0}]
["02",null,"Segundo embarazo o más",null,null,null,{"$f":"SUM(H199:S199)","v":0}]
["03",null,"Ninguno",null,null,null,{"$f":"SUM(H200:S200)","v":0}]
[null,null,"Nota: Los totales por sexo de esta tabla deben ser iguales a los totales por sexo de la tabla 201 + 202 (sólo mujeres)"]
[null,null,"    "]
[null,null,213,"MATRÍCULA DE JÓVENES Y ADULTOS, DEL (LOS) PERÍODO(S) PROMOCIONAL(ES) CORRESPONDIENTES A LA FECHA DE REPORTE DE LOS CEBA, PERIFÉRICOS Y CÍRCULOS DE APRENDIZAJE, POR CICLO Y SEXO, SEGÚN TIPO DE OCUPACIÓN"]
[]
[null,null,"TIPO DE OCUPACIÓN",null,null,"TOTAL",null,"CEBA (Referencial)",null,null,null,"PERIFÉRICO",null,null,null,"CÍRCULO DE APRENDIZAJE"]
[null,null,null,null,null,null,null,"Inicial",null,"Intermedio",null,"Inicial",null,"Intermedio",null,"Inicial",null,"Intermedio"]
[null,null,null,null,null,"H","M","H","M","H","M","H","M","H","M","H","M","H","M"]
["00",null,"TOTAL",null,null,{"$f":"H208+J208+L208+N208+P208+R208","v":0},{"$f":"I208+K208+M208+O208+Q208+S208","v":0},{"$f":"SUM(H209:H216)","v":0},{"$f":"SUM(I209:I216)","v":0},0,0,0,0,0,0,0,0,0,0]
["01",null,"Empleado (a)",null,null,0,0]
["02",null,"Obrero (a)",null,null,0,0]
["03",null,"Ambulante",null,null,0,0]
["04",null,"Trabajador (a) Independiente",null,null,0,0]
["05",null,"Trabajador (a) del Hogar",null,null,0,0]
["06",null,"Trabajo Familiar",null,null,0,0]
["07",null,"Otro",null,null,0,0]
["08",null,"Solo estudia",null,null,0,0]
[null,null,"Nota: Los totales por sexo de esta tabla deben ser iguales a los totales por sexo de la tabla 201 + 202"]
[]
[null,null,214,"MATRÍCULA DE JÓVENES Y ADULTOS DEL (LOS) PERÍODO(S) PROMOCIONAL(ES) CORRESPONDIENTES A LA FECHA DE REPORTE DE LOS CEBA, PERIFÉRICOS Y CÍRCULOS DE APRENDIZAJE, POR CICLO Y SEXO, SEGÚN MIEMBROS DEL HOGAR"]
[]
[null,null,"TIPO DEL MIEMBRO EN EL HOGAR",null,null,"TOTAL",null,"CEBA (Referencial)",null,null,null,"PERIFÉRICO",null,null,null,"CÍRCULO DE APRENDIZAJE"]
[null,null,null,null,null,null,null,"Inicial",null,"Intermedio",null,"Inicial",null,"Intermedio",null,"Inicial",null,"Intermedio"]
[null,null,null,null,null,"H","M","H","M","H","M","H","M","H","M","H","M","H","M"]
["00",null,"TOTAL",null,null,{"$f":"H224+J224+L224+N224+P224+R224","v":0},0,{"$f":"SUM(H225:H226)","v":0},{"$f":"SUM(I225:I226)","v":0},0,0,0,0,0,0,0,0,0,0]
["01",null,"Jefe(a) del hogar",null,null,0,0]
["02",null,"No es jefe(a) del hogar",null,null,0,0]
[null,null,"Nota: Los totales por sexo de esta tabla deben ser iguales a los totales por sexo de la tabla 201 + 202"]
[]
[null,null,215,"MATRÍCULA DE JÓVENES Y ADULTOS DEL (LOS) PERÍODO(S) PROMOCIONAL(ES) CORRESPONDIENTES A LA FECHA DE REPORTE DE LOS CEBA, PERIFÉRICOS Y CÍRCULOS DE APRENDIZAJE, POR CICLO Y SEXO, SEGÚN LENGUA MATERNA"]
[]
[null,null,"LENGUA",null,null,null,null,"CEBA",null,"PERIFÉRICO",null,"CÍRCULO",null,null,"LENGUA",null,null,null,null,null,"CEBA",null,"PERIFÉRICO",null,"CÍRCULO"]
[null,null,null,null,null,null,"TOTAL","Inicial","Inter- medio","Inicial","Inter- medio","Inicial","Inter- medio",null,null,null,null,null,null,"TOTAL","Inicial","Inter- medio","Inicial","Inter- medio","Inicial","Inter- medio"]
[null,null,"Código           Denominación",null,null,null,null,null,null,null,null,null,null,null,"Código           Denominación"]
[null,null,"0000","TOTAL",null,null,{"$f":"SUM(H234:M234)","v":0},{"$f":"SUM(H235:H268,U234:U267)","v":0},0,0,0,0,0,null,"3200","Omagua",null,null,null,{"$f":"SUM(U234:Z234)","v":0}]
[null,null,"0100","Castellano",null,null,{"$f":"SUM(H235:M235)","v":0},null,null,null,null,null,null,null,"3310","Quechua amazónico (Kichwa)",null,null,null,{"$f":"SUM(U235:Z235)","v":0}]
[null,null,"LENGUAS ORIGINARIAS DEL PERÚ",null,null,null,null,null,null,null,null,null,null,null,"3321","Quechua central (Ancash)",null,null,null,{"$f":"SUM(U236:Z236)","v":0}]
[null,null,"0200","Achuar",null,null,{"$f":"SUM(H237:M237)","v":0},null,null,null,null,null,null,null,"3322","Quechua central (Huánuco)",null,null,null,{"$f":"SUM(U237:Z237)","v":0}]
[null,null,"0300","Aimara",null,null,{"$f":"SUM(H238:M238)","v":0},null,null,null,null,null,null,null,"3323","Quechua central (Wanka)",null,null,null,0]
[null,null,"0400","Amahuaca",null,null,{"$f":"SUM(H239:M239)","v":0},null,null,null,null,null,null,null,"3324","Quechua central (Pasco)",null,null,null,0]
[null,null,"0500","Arabela",null,null,0,null,null,null,null,null,null,null,"3331","Quechua norteño (Cajamarca)",null,null,null,0]
[null,null,"0600","Ashaninka",null,null,0,null,null,null,null,null,null,null,"3332","Quechua norteño (Inkawasi Kañaris)",null,null,null,0]
[null,null,"0610","Asheninka",null,null,0,null,null,null,null,null,null,null,"3341","Quechua sureño (Chanka)",null,null,null,0]
[null,null,"0700","Awajún",null,null,0,null,null,null,null,null,null,null,"3342","Quechua sureño (Collao)",null,null,null,0]
[null,null,"0800","Bora",null,null,0,null,null,null,null,null,null,null,"3400","Resigaro",null,null,null,0]
[null,null,"0900","Kapanawa",null,null,0,null,null,null,null,null,null,null,"3500","Secoya",null,null,null,0]
[null,null,"1000","Cashinahua",null,null,0,null,null,null,null,null,null,null,"3600","Sharanahua",null,null,null,0]
[null,null,"1100","Kawki",null,null,0,null,null,null,null,null,null,null,"3700","Shawi",null,null,null,0]
[null,null,"1200","Chamikuro",null,null,0,null,null,null,null,null,null,null,"3800","Shipibo-Konibo",null,null,null,0]
[null,null,"1300","Ese eja",null,null,0,null,null,null,null,null,null,null,"3900","Shiwilu",null,null,null,0]
[null,null,"1400","Harakbut",null,null,0,null,null,null,null,null,null,null,"4000","Taushiro",null,null,null,0]
[null,null,"1500","Iñapari",null,null,0,null,null,null,null,null,null,null,"4100","Ticuna",null,null,null,0]
[null,null,"1600","Ikitu",null,null,0,null,null,null,null,null,null,null,"4200","Urarina",null,null,null,0]
[null,null,"1700","Iskonawa",null,null,0,null,null,null,null,null,null,null,"4300","Wampis",null,null,null,0]
[null,null,"1800","Jaqaru",null,null,0,null,null,null,null,null,null,null,"4400","Yagua",null,null,null,0]
[null,null,"1900","Kakataibo",null,null,0,null,null,null,null,null,null,null,"4500","Yaminahua",null,null,null,0]
[null,null,"2000","Kakinte",null,null,0,null,null,null,null,null,null,null,"4600","Yanesha",null,null,null,0]
[null,null,"2110","Kandozi-chapra (chapra)",null,null,0,null,null,null,null,null,null,null,"4700","Yine",null,null,null,0]
[null,null,"2120","Kandozi-chapra (kandozi)",null,null,0,null,null,null,null,null,null,null,"4800","Nahua",null,null,null,0]
[null,null,"2200","Kukama kukamiria",null,null,0,null,null,null,null,null,null,null,"LENGUA EXTRANJERA"]
[null,null,"2300","Madija",null,null,0,null,null,null,null,null,null,null,"5100","Alemán",null,null,null,0]
[null,null,"2400","Maijiki",null,null,0,null,null,null,null,null,null,null,"5200","Inglés",null,null,null,0]
[null,null,"2500","Matsés",null,null,0,null,null,null,null,null,null,null,"5300","Italiano",null,null,null,0]
[null,null,"2600","Matsigenka",null,null,0,null,null,null,null,null,null,null,"5400","Japonés",null,null,null,0]
[null,null,"2700","Muniche",null,null,0,null,null,null,null,null,null,null,"5500","Portugués",null,null,null,0]
[null,null,"2800","Murui-muinani",null,null,0,null,null,null,null,null,null,null,"5600","Ruso",null,null,null,0]
[null,null,"2900","Matsigenka-montetokunirira",null,null,0,null,null,null,null,null,null,null,"5700","Francés",null,null,null,0]
[null,null,"3000","Nomatsigenga",null,null,{"$f":"SUM(H267:M267)","v":0},null,null,null,null,null,null,null,"5800","Otra",null,null,null,{"$f":"SUM(U267:Z267)","v":0}]
[null,null,"3100","Ocaina",null,null,{"$f":"SUM(H268:M268)","v":0}]
[null,null,"Nota: Los totales por sexo de esta tabla deben ser iguales a los totales por sexo de la tabla 201 + 202"]
[]
[null,null,216,"MATRÍCULA DE JÓVENES Y ADULTOS DEL (LOS) PERÍODO(S) PROMOCIONAL(ES) CORRESPONDIENTES A LA FECHA DE REPORTE DE LOS CEBA, PERIFÉRICOS Y CÍRCULOS DE APRENDIZAJE, POR CICLO Y SEXO, SEGÚN ESTADO CIVIL"]
[]
[null,null,"ESTADO CIVIL",null,null,"TOTAL",null,"CEBA (Referencial)",null,null,null,"PERIFÉRICO",null,null,null,"CÍRCULO DE APRENDIZAJE"]
[null,null,null,null,null,null,null,"Inicial",null,"Intermedio",null,"Inicial",null,"Intermedio",null,"Inicial",null,"Intermedio"]
[null,null,null,null,null,"H","M","H","M","H","M","H","M","H","M","H","M","H","M"]
["00",null,"TOTAL",null,null,{"$f":"H276+J276+L276+N276+P276+R276","v":0},0,{"$f":"SUM(H277:H282)","v":0},{"$f":"SUM(I277:I282)","v":0},{"$f":"SUM(J277:J282)","v":0},0,0,0,0,0,{"$f":"SUM(P277:P282)","v":0},0,0,0]
["01",null,"Soltero(a)",null,null,0,0]
["02",null,"Casado(a)",null,null,0,0]
["03",null,"Conviviente",null,null,0,0]
["04",null,"Viudo(a)",null,null,0,0]
["05",null,"Divorciado(a)",null,null,0,0]
["06",null,"Separado(a)",null,null,0,0]
[null,null,"Nota: Los totales de esta tabla deben ser iguales a los totales de la tabla 201 + 202."]
[]
[null,null,217,"MATRÍCULA DE JÓVENES Y ADULTOS DEL (LOS) PERÍODO(S) PROMOCIONAL(ES) CORRESPONDIENTES A LA FECHA DEL REPORTE DE LOS CEBA, PERIFÉRICOS Y CÍRCULOS DE APRENDIZAJE, POR CICLO Y SEXO, SEGÚN TIPO DE PROGRAMA DE REPARACIÓN EN EDUCACIÓN (Ley 28592)"]
[]
[null,null,"TIPO DE PROGRAMA DE REPARACIÓN EN EDUCACIÓN",null,null,"TOTAL",null,"CEBA (Referencial)",null,null,null,"PERIFÉRICO",null,null,null,"CÍRCULO DE APRENDIZAJE"]
[null,null,null,null,null,null,null,"Inicial",null,"Intermedio",null,"Inicial",null,"Intermedio",null,"Inicial",null,"Intermedio"]
[null,null,null,null,null,"H","M","H","M","H","M","H","M","H","M","H","M","H","M"]
["00",null,"TOTAL",null,null,{"$f":"H290+J290+L290+N290+P290+R290","v":0},0,{"$f":"SUM(H291:H294)","v":0},0,0,0,0,0,0,0,0,0,0,0]
["01",null,"RUV",null,null,0,0]
["02",null,"REBRED",null,null,{"$f":"H292+J292+L292+N292+P292+R292","v":0},{"$f":"I292+K292+M292+O292+Q292+S292","v":0}]
["03",null,"Otros Programas del Estado",null,null,{"$f":"H293+J293+L293+N293+P293+R293","v":0},{"$f":"I293+K293+M293+O293+Q293+S293","v":0}]
["04",null,"Estudiantes no beneficiados",null,null,0,0]
[null,null,"Nota: Los totales de esta tabla deben ser iguales a los totales de la tabla 201 + 202."]
[]
[null,null,218,"SECCIONES DEL (LOS) PERÍODO(S) PROMOCIONAL(ES) CORRESPONDIENTES A LA FECHA DE REPORTE DE LOS CEBA, PERIFÉRICOS Y CÍRCULOS DE APRENDIZAJE, POR CICLO Y GRADO, SEGÚN TURNO"]
[]
[null,null,"TURNO","TOTAL","CEBA (Referencial)",null,null,null,null,"PERIFÉRICO",null,null,null,null,"CÍRCULO DE APRENDIZAJE"]
[null,null,null,null,"Inicial",null,"Intermedio",null,null,"Inicial",null,"Intermedio",null,null,"Inicial",null,"Intermedio"]
[null,null,null,null,"1º","2º","1º","2º","3º","1º","2º","1º","2º","3º","1º","2º","1º","2º","3º"]
["00",null,"TOTAL",{"$f":"SUM(E302:S302)","v":0},{"$f":"SUM(E303:E305)","v":0},{"$f":"SUM(F303:F305)","v":0},{"$f":"SUM(G303:G305)","v":0},0,0,0,0,0,0,0,0,0,0,0,0]
["01",null,"Mañana",{"$f":"SUM(E303:S303)","v":0}]
["02",null,"Tarde",{"$f":"SUM(E304:S304)","v":0}]
["03",null,"Noche",{"$f":"SUM(E305:S305)","v":0}]
[null,null,"Sólo registre el número de secciones que tenga, por grado de estudio, según turno."]

{"sheet":"C300","index":5,"n_rows":198,"n_cols":81,"rows_kept":198,"cut":false,"hidden":false,"merged":[[15,75,16,75],[15,76,16,76],[15,77,17,77],[15,78,17,78],[15,11,17,11],[15,15,15,16],[15,17,17,17],[15,18,17,18],[15,20,17,20],[15,22,17,22],[15,28,17,28],[15,29,17,29],[15,35,17,35],[15,37,17,37],[15,39,17,39],[15,12,17,12],[15,13,17,13],[15,14,17,14],[15,65,16,65],[15,74,16,74],[16,57,17,57],[15,19,17,19],[15,21,17,21],[15,25,17,25],[15,26,17,26],[15,30,17,30],[15,36,17,36],[15,33,17,33],[15,31,17,31],[15,32,17,32],[16,64,17,64],[16,58,17,58],[16,59,17,59],[16,60,17,60],[16,61,17,61],[14,71,14,73],[14,67,14,70],[15,71,15,73],[15,66,17,66],[16,71,17,71],[16,68,17,68],[16,69,17,69],[16,67,17,67],[16,63,17,63],[16,62,17,62],[16,72,16,73],[15,67,15,70],[16,70,17,70],[7,11,7,24],[1,11,1,24],[2,11,2,24],[14,15,14,16],[11,42,11,43],[15,41,17,41],[15,40,17,40],[15,23,17,23],[15,27,17,27],[15,38,17,38],[15,24,17,24],[15,34,17,34]]}
[]
[null,null,null,null,null,null,null,null,null,null,null,"CENSO EDUCATIVO 2024"]
[null,null,null,null,null,null,null,null,null,null,null,"MATRÍCULA, DOCENTES Y RECURSOS"]
[]
["PERSONAL",{"$f":"O10+V10+X10","v":0}]
[]
["DOCENTES",{"$f":"COUNTIF(R19:R218,\"01: Docente\")","v":0},null,null,null,null,null,null,null,null,null,"300. PERSONAL DOCENTE, AUXILIARES DE EDUCACIÓN Y ADMINISTRATIVOS (Para II.EE. Públicas y Privadas)"]
["AUXILIARES",{"$f":"COUNTIF(R19:R218,\"03: Aux. de Educación\")","v":0},null,null,null,null,null,null,null,null,null,"En esta tabla, REGISTRE a todo el personal docente, auxiliares de educación y personal administrativo que se encuentre laborando en el servicio/nivel educativo durante el periodo\nde reporte del censo educativo. (EXCLUYA al personal que se encuentre haciendo uso de licencia y a los que han sido destacados a otra IE/DRE/UGEL)"]
["ADMINISTRATIVOS",{"$f":"COUNTIF(R19:R218,\"02: Administrativo\")","v":0}]
["DOCENTE DE AULA",{"$f":"COUNTIF(AJ19:AJ218,\"04: (111)-Docente de Aula / por horas\")","v":0},null,null,null,null,null,null,null,null,null,null,null,"TOTAL DOCENTES:  ",null,null,null,"DOCENTES DE AULA: ",null,null,"AUXILIAR DE EDUCACIÓN:  ",null,"ADMINISTRATIVOS:  "]
["DOCENTES CON SECCIÓN",{"$f":"COUNTIF(AP19:AP148,\"SI\")","v":0}]
[null,{"$f":"B7+B8+B9","v":0},null,null,null,null,null,null,null,null,null,"A continuación registre a todo el personal que desempeñe funciones docentes en el Servicio/Nivel educativo: Directivos con o sin aula a cargo, docentes de aula, jefes o jerárquicos, especiales (ed. física, computación, etc.)"]
["LICENCIA",null,null,null,null,null,null,null,null,null,null,"Documentos fuente: Legajo de personal y CAP de la institución educativa."]
[null,null,3,4,5,6,7,8,{"$f":"H14+1","v":9},10]
["DOC. LENGUA ORIGINARIA",{"$f":"SUM(J19:J148)","v":0},null,null,null,null,null,null,null,null,null,301,301.10000000000002,301.2,301.3,302,null,303,304,305,306,307,308,309,310,311,312,313,314,315,316,317,318,319,320,321,322,323,324,325,326,327,"328. Ciclo y grado atendido",null,null,null,null,null,null,null,null,null,null,null,null,null,null,329,null,null,null,null,null,null,null,330,330.1,331,null,null,null,332,null,null,333,333.1,334.1,334.2,334.3]
["GESTION PRIVADA",{"$f":"IF(OR('C100'!O35=\"X\",'C100'!X35=\"X\"),1,IF('C100'!AG35=\"X\",3,\"\"))","v":""},null,null,null,null,null,null,null,null,null,"Nº","Apellido Paterno","Apellido Materno","Nombres","Documento de Identidad",null,"Tipo de\nPersonal","Edad","Sexo","Lengua\nmaterna","¿Domina una\nlengua\noriginaria?\n\nSí - No","Lengua originaria\nque domina","Fuente de\nfinanciamiento","Condición Laboral","Modalidad de Contrato","Máximo nivel\neducativo alcanzado","Especialidad Pedagógica\nque ha estudiado","¿En qué tipo de\ninstitución obtuvo\nsu formación pedagógica?","Segunda especialidad","Estudios de Postgrado\nen Pedagogía","Tiempo de Servicio\n(en años)","Años de Experiencia Laboral","Años de\nexperiencia\nlaboral en\neste servicio/nivel\neducativo","Escala\nMagisterial","Función o cargo","Situación en cargo\ndirectivo","Licencia \no\nDestaque","Jornada Laboral según\nNombramiento\no Contrato","Forma de atención","Centro donde labora","¿Tiene secciones a cargo?","CEBA (Referencial)",null,null,null,null,"Periférico",null,null,null,null,"Círculo de Aprendizaje",null,null,null,null,"Área(s) curricular(es) a cargo. Marque con una “X”, según corresponda",null,null,null,null,null,null,null,"¿Presenta alguna discapa- cidad?","Solo si respondió Sí en la pregunta\n330.1 ¿Cúal es el tipo de discapacidad?","Conocimiento de Ingles",null,null,null,"Certificación de Inglés",null,null,"¿ Atiende a estudiantes con NEE asociadas a discapacidad ?","¿Ha recibido asistencia y orientación para la atención educativa de estudiantes con discapacidad del equipo SAEV?","¿Recibió asesoría pedagógica en el marco de refuerzo escolar?","Solo si respondió Sí en la pregunta 334.1 ¿cuántas veces desde el inicio del año lectivo, recibió asesoría pedagógica en el marco de refuerzo escolar?","Solo si respondió Sí en la pregunta 334.1 Sobre qué temas ha recibido asistencia técnica"]
[null,null,null,null,null,null,null,null,null,null,null,null,null,null,null,302.10000000000002,302.2,null,null,null,null,null,null,null,null,null,null,null,null,null,null,null,null,null,null,null,null,null,null,null,null,null,"Inicial",null,"Intermedio",null,null,"Inicial",null,"Intermedio",null,null,"Inicial",null,"Intermedio",null,null,"Mate\nmática","Comuni cación","Inglés","Desarrollo Personal y Ciudadano","Ciencia, Tecnología y Salud","Castellano como segunda Lengua","Educación para el Trabajo","Educación Religiosa",null,null,"No Sabe","Habla","Lee","Escribe","No Tiene","Si Tiene"]
["302.1 Tipo de documento de Identidad","314. Tipo de inst. donde estudio","Corr","Escala","Gest","Secc","Fun cion","Duplex","Fmt","Leng",null,null,null,null,null,"Tipo","Número",null,null,null,null,null,null,null,null,null,null,null,null,null,null,null,null,null,null,null,null,null,null,null,null,null,"1º","2º","1º","2º","3º","1º","2º","1º","2º","3º","1º","2º","1º","2º","3º",null,null,null,null,null,null,null,null,"Sí / No",null,null,null,null,null,null,"Nacional","Interna cional","Sí / No","Sí / No","Sí / No"]
["01: DNI.","01: IESP (Público)",1,{"$f":"IF(AND(LEFT(R19,2)=\"01\",LEFT(Y19,2)=\"01\",LEFT(X19,2)=\"01\",E19=1),1,0)","v":0},{"$f":"$B$16","v":""},{"$f":"COUNTIF(AQ19:BE19,\"X\")","v":0},{"$f":"IF(R19<>\"\",VALUE(LEFT(R19,2)),0)","v":0},{"$f":"IF(Q19<>\"\",COUNTIF($Q$20:$Q$319,Q19),0)","v":0},{"$f":"IF(L19<>\"\",1,0)","v":0},{"$f":"IF(AND(R19=\"01: Docente\",V19=\"SI\"),1,0)","v":0},null,{"$f":"IF(C19<=$B$5,C19,\"\")","v":""},"","","","","","","","","","","","","","","","","","","","","","","","","","","","","","","","","","","","","","","","","","","","","","","","","","","","","","","","","","","","","","","","","","","",null,{"$f":"IF($AA19<>\"\",IF(OR(LEFT($AA19,2)=\"01\",LEFT($AA19,2)=\"02\",LEFT($AA19,2)=\"04\",LEFT($AA19,2)=\"05\"),1,2),\"\")","v":""}]
["02: Carnet Ext.","02: IESP (Privado)",2,0,{"$f":"$B$16","v":""},{"$f":"COUNTIF(AQ20:BE20,\"X\")","v":0},{"$f":"IF(R20<>\"\",VALUE(LEFT(R20,2)),0)","v":0},{"$f":"IF(Q20<>\"\",COUNTIF($Q$20:$Q$319,Q20),0)","v":0},0,{"$f":"IF(AND(R20=\"01: Docente\",V20=\"SI\"),1,0)","v":0},null,{"$f":"IF(C20<=$B$5,C20,\"\")","v":""},"","","","","","","","","","","","","","","","","","","","","","","","","","","","","","","","","","","","","","","","","","","","","","","","","","","","","","","","","","","","","","","","","","","","",{"$f":"IF($AA20<>\"\",IF(OR(LEFT($AA20,2)=\"01\",LEFT($AA20,2)=\"02\",LEFT($AA20,2)=\"04\",LEFT($AA20,2)=\"05\"),1,2),\"\")","v":""}]
["03: Pasaporte","03: Universidad Privada",3,0,"",0,0,0,0,0,null,{"$f":"IF(C21<=$B$5,C21,\"\")","v":""},"","","","","","","","","","","","","","","","","","","","","","","","","","","","","","","","","","","","","","","","","","","","","","","","","","","","","","","","","","","","","","","","","","","","",""]
[null,"04: Universidad Pública",4,0,"",0,0,0,0,0,null,"","","","","","","","","","","","","","","","","","","","","","","","","","","","","","","","","","","","","","","","","","","","","","","","","","","","","","","","","","","","","","","","","","","","","",""]
["303. Tipo de Personal",null,5,0,"",0,0,0,0,0,null,"","","","","","","","","","","","","","","","","","","","","","","","","","","","","","","","","","","","","","","","","","","","","","","","","","","","","","","","","","","","","","","","","","","","","",""]
["01: Docente","315. Segunda Especialidad",6,0,"",0,0,0,0,0,null,"","","","","","","","","","","","","","","","","","","","","","","","","","","","","","","","","","","","","","","","","","","","","","","","","","","","","","","","","","","","","","","","","","","","","",""]
["02: Administrativo","Utilice las especialidades de la tabla de códigos 313.",7,0,"",0,0,0,0,0,null,"","","","","","","","","","","","","","","","","","","","","","","","","","","","","","","","","","","","","","","","","","","","","","","","","","","","","","","","","","","","","","","","","","","","","",""]
["03: Aux. de Educación",null,8,0,"",0,0,0,0,0,null,"","","","","","","","","","","","","","","","","","","","","","","","","","","","","","","","","","","","","","","","","","","","","","","","","","","","","","","","","","","","","","","","","","","","","",""]
[null,"316. Estudios de Postgrado en Pedagogía",9,0,"",0,0,0,0,0,null,"","","","","","","","","","","","","","","","","","","","","","","","","","","","","","","","","","","","","","","","","","","","","","","","","","","","","","","","","","","","","","","","","","","","","",""]
["305. Sexo","Estudios de Maestría y doctorado",10,0,"",0,0,0,0,0,null,"","","","","","","","","","","","","","","","","","","","","","","","","","","","","","","","","","","","","","","","","","","","","","","","","","","","","","","","","","","","","","","","","","","","","",""]
["Hombre","01: Maestria concluida con grado",11,0,"",0,0,0,0,0,null,"","","","","","","","","","","","","","","","","","","","","","","","","","","","","","","","","","","","","","","","","","","","","","","","","","","","","","","","","","","","","","","","","","","","","",""]
["Mujer","02: Maestria concluida sin grado",12,0,"",0,0,0,0,0,null,"","","","","","","","","","","","","","","","","","","","","","","","","","","","","","","","","","","","","","","","","","","","","","","","","","","","","","","","","","","","","","","","","","","","","",""]
[null,"03: Maestria en proceso",13,0,"",0,0,0,0,0,null,"","","","","","","","","","","","","","","","","","","","","","","","","","","","","","","","","","","","","","","","","","","","","","","","","","","","","","","","","","","","","","","","","","","","","",""]
["306. Lengua Materna","04: Doctorado concluido con grado",14,0,"",0,0,0,0,0,null,"","","","","","","","","","","","","","","","","","","","","","","","","","","","","","","","","","","","","","","","","","","","","","","","","","","","","","","","","","","","","","","","","","","","","",""]
["0100: Castellano","05: Doctorado concluido sin grado",15,0,"",0,0,0,0,0,null,"","","","","","","","","","","","","","","","","","","","","","","","","","","","","","","","","","","","","","","","","","","","","","","","","","","","","","","","","","","","","","","","","","","","","",""]
["0200: Achuar","06: Doctorado en proceso",16,0,"",0,0,0,0,0,null,"","","","","","","","","","","","","","","","","","","","","","","","","","","","","","","","","","","","","","","","","","","","","","","","","","","","","","","","","","","","","","","","","","","","","",""]
["0300: Aimara","07: Sin Postgrado",17,0,"",0,0,0,0,0,null,"","","","","","","","","","","","","","","","","","","","","","","","","","","","","","","","","","","","","","","","","","","","","","","","","","","","","","","","","","","","","","","","","","","","","",""]
["0400: Amahuaca",null,18,0,"",0,0,0,0,0,null,"","","","","","","","","","","","","","","","","","","","","","","","","","","","","","","","","","","","","","","","","","","","","","","","","","","","","","","","","","","","","","","","","","","","","",""]
["0500: Arabela",null,19,0,"",0,0,0,0,0,null,"","","","","","","","","","","","","","","","","","","","","","","","","","","","","","","","","","","","","","","","","","","","","","","","","","","","","","","","","","","","","","","","","","","","","",""]
["0600: Asháninka","317. Tiempo de Servicio",20,0,"",0,0,0,0,0,null,"","","","","","","","","","","","","","","","","","","","","","","","","","","","","","","","","","","","","","","","","","","","","","","","","","","","","","","","","","","","","","","","","","","","","",""]
["0610: Asheninka","Solo personal Nombrado.",21,0,"",0,0,0,0,0,null,"","","","","","","","","","","","","","","","","","","","","","","","","","","","","","","","","","","","","","","","","","","","","","","","","","","","","","","","","","","","","","","","","","","","","",""]
["0700: Awajún","Tiempo contado expresado en años desde su fecha de Nombramiento",22,0,"",0,0,0,0,0,null,"","","","","","","","","","","","","","","","","","","","","","","","","","","","","","","","","","","","","","","","","","","","","","","","","","","","","","","","","","","","","","","","","","","","","",""]
["0800: Bora",null,23,0,"",0,0,0,0,0,null,"","","","","","","","","","","","","","","","","","","","","","","","","","","","","","","","","","","","","","","","","","","","","","","","","","","","","","","","","","","","","","","","","","","","","",""]
["0900: Kapanawa","318. Años de Experiencia Laboral",24,0,"",0,0,0,0,0,null,"","","","","","","","","","","","","","","","","","","","","","","","","","","","","","","","","","","","","","","","","","","","","","","","","","","","","","","","","","","","","","","","","","","","","",""]
["1000: Cashinahua","Registre el total de años que tiene como experiencia",25,0,"",0,0,0,0,0,null,"","","","","","","","","","","","","","","","","","","","","","","","","","","","","","","","","","","","","","","","","","","","","","","","","","","","","","","","","","","","","","","","","","","","","",""]
["1100: Kawki","en el Tipo de Personal que se está registrando (Tabla 301.)",26,0,"",0,0,0,0,0,null,"","","","","","","","","","","","","","","","","","","","","","","","","","","","","","","","","","","","","","","","","","","","","","","","","","","","","","","","","","","","","","","","","","","","","",""]
["1200: Chamikuro",null,27,0,"",0,0,0,0,0,null,"","","","","","","","","","","","","","","","","","","","","","","","","","","","","","","","","","","","","","","","","","","","","","","","","","","","","","","","","","","","","","","","","","","","","",""]
["1300: Ese eja","319. Años de experiencia laboral en este servicio/ nivel educativo",28,0,"",0,0,0,0,0,null,"","","","","","","","","","","","","","","","","","","","","","","","","","","","","","","","","","","","","","","","","","","","","","","","","","","","","","","","","","","","","","","","","","","","","",""]
["1400: Harakbut","Anote el N° de años de experiencia prestando servicios",29,0,"",0,0,0,0,0,null,"","","","","","","","","","","","","","","","","","","","","","","","","","","","","","","","","","","","","","","","","","","","","","","","","","","","","","","","","","","","","","","","","","","","","",""]
["1500: Iñapari","en este servicio/nivel educativo por el tipo de personal",30,0,"",0,0,0,0,0,null,"","","","","","","","","","","","","","","","","","","","","","","","","","","","","","","","","","","","","","","","","","","","","","","","","","","","","","","","","","","","","","","","","","","","","",""]
["1600: Ikuitu","que se está registrando (Tabla 301.)",31,0,"",0,0,0,0,0,null,"","","","","","","","","","","","","","","","","","","","","","","","","","","","","","","","","","","","","","","","","","","","","","","","","","","","","","","","","","","","","","","","","","","","","",""]
["1700: Iskonawa",null,32,0,"",0,0,0,0,0,null,"","","","","","","","","","","","","","","","","","","","","","","","","","","","","","","","","","","","","","","","","","","","","","","","","","","","","","","","","","","","","","","","","","","","","",""]
["1800: Jaqaru","320. Escala Magisterial",33,0,"",0,0,0,0,0,null,"","","","","","","","","","","","","","","","","","","","","","","","","","","","","","","","","","","","","","","","","","","","","","","","","","","","","","","","","","","","","","","","","","","","","",""]
["1900: Kakataibo","Complete los datos de Escala Magisterial, según corresponda",34,0,"",0,0,0,0,0,null,"","","","","","","","","","","","","","","","","","","","","","","","","","","","","","","","","","","","","","","","","","","","","","","","","","","","","","","","","","","","","","","","","","","","","",""]
["2000: Kakinte (caquinte)","01: Primera",35,0,"",0,0,0,0,0,null,"","","","","","","","","","","","","","","","","","","","","","","","","","","","","","","","","","","","","","","","","","","","","","","","","","","","","","","","","","","","","","","","","","","","","",""]
["2110: Kandozi (Chapra)","02: Segunda",36,0,"",0,0,0,0,0,null,"","","","","","","","","","","","","","","","","","","","","","","","","","","","","","","","","","","","","","","","","","","","","","","","","","","","","","","","","","","","","","","","","","","","","",""]
["2120: Kandozi (Kandozi)","03: Tercera",37,0,"",0,0,0,0,0,null,"","","","","","","","","","","","","","","","","","","","","","","","","","","","","","","","","","","","","","","","","","","","","","","","","","","","","","","","","","","","","","","","","","","","","",""]
["2200: Kukama-kukamiria","04: Cuarta",38,0,"",0,0,0,0,0,null,"","","","","","","","","","","","","","","","","","","","","","","","","","","","","","","","","","","","","","","","","","","","","","","","","","","","","","","","","","","","","","","","","","","","","",""]
["2300: Madija (culina)","05: Quinta",39,0,"",0,0,0,0,0,null,"","","","","","","","","","","","","","","","","","","","","","","","","","","","","","","","","","","","","","","","","","","","","","","","","","","","","","","","","","","","","","","","","","","","","",""]
["2400: Maijiki","06: Sexta",40,0,"",0,0,0,0,0,null,"","","","","","","","","","","","","","","","","","","","","","","","","","","","","","","","","","","","","","","","","","","","","","","","","","","","","","","","","","","","","","","","","","","","","",""]
["2500: Matsés","07: Séptima",41,0,"",0,0,0,0,0,null,"","","","","","","","","","","","","","","","","","","","","","","","","","","","","","","","","","","","","","","","","","","","","","","","","","","","","","","","","","","","","","","","","","","","","",""]
["2600: Matsigenka","08: Octava",42,0,"",0,0,0,0,0,null,"","","","","","","","","","","","","","","","","","","","","","","","","","","","","","","","","","","","","","","","","","","","","","","","","","","","","","","","","","","","","","","","","","","","","",""]
["2700: Munichi","09: Sin Escala",43,0,"",0,0,0,0,0,null,"","","","","","","","","","","","","","","","","","","","","","","","","","","","","","","","","","","","","","","","","","","","","","","","","","","","","","","","","","","","","","","","","","","","","",""]
["2800: Murui-muinani",null,44,0,"",0,0,0,0,0,null,"","","","","","","","","","","","","","","","","","","","","","","","","","","","","","","","","","","","","","","","","","","","","","","","","","","","","","","","","","","","","","","","","","","","","",""]
["2900: Matsigenka-montetokunirira","321. Función o Cargo",45,0,"",0,0,0,0,0,null,"","","","","","","","","","","","","","","","","","","","","","","","","","","","","","","","","","","","","","","","","","","","","","","","","","","","","","","","","","","","","","","","","","","","","",""]
["3000: Nomatsigenga","(Desempeñado a la fecha de reporte)",46,0,"",0,0,0,0,0,null,"","","","","","","","","","","","","","","","","","","","","","","","","","","","","","","","","","","","","","","","","","","","","","","","","","","","","","","","","","","","","","","","","","","","","",""]
["3100: Ocaina","Docentes",47,0,"",0,0,0,0,0,null,"","","","","","","","","","","","","","","","","","","","","","","","","","","","","","","","","","","","","","","","","","","","","","","","","","","","","","","","","","","","","","","","","","","","","",""]
["3200: Omagua","01: (102)-Director",48,0,"",0,0,0,0,0,null,"","","","","","","","","","","","","","","","","","","","","","","","","","","","","","","","","","","","","","","","","","","","","","","","","","","","","","","","","","","","","","","","","","","","","",""]
["3310: Quechua amazónico (Kichwa)","02: (103)-Sub Director",49,0,"",0,0,0,0,0,null,"","","","","","","","","","","","","","","","","","","","","","","","","","","","","","","","","","","","","","","","","","","","","","","","","","","","","","","","","","","","","","","","","","","","","",""]
["3321: Quechua central (Ancash)","03: (106)-Coordinador, Asesor",50,0,"",0,0,0,0,0,null,"","","","","","","","","","","","","","","","","","","","","","","","","","","","","","","","","","","","","","","","","","","","","","","","","","","","","","","","","","","","","","","","","","","","","",""]
["3322: Quechua central (Huánuco)","04: (111)-Docente de Aula / por horas",51,0,"",0,0,0,0,0,null,"","","","","","","","","","","","","","","","","","","","","","","","","","","","","","","","","","","","","","","","","","","","","","","","","","","","","","","","","","","","","","","","","","","","","",""]
["3323: Quechua central (Wanka)","05: (112)-Docente Especial - Educación Física",52,0,"",0,0,0,0,0,null,"","","","","","","","","","","","","","","","","","","","","","","","","","","","","","","","","","","","","","","","","","","","","","","","","","","","","","","","","","","","","","","","","","","","","",""]
["3324: Quechua central (Pasco)","06: (113)-Docente Especial - Computación",53,0,"",0,0,0,0,0,null,"","","","","","","","","","","","","","","","","","","","","","","","","","","","","","","","","","","","","","","","","","","","","","","","","","","","","","","","","","","","","","","","","","","","","",""]
["3331: Quechua norteño (Cajamarca)","07: (114)-Docente Especial - Aula de Innovación Pedagógica",54,0,"",0,0,0,0,0,null,"","","","","","","","","","","","","","","","","","","","","","","","","","","","","","","","","","","","","","","","","","","","","","","","","","","","","","","","","","","","","","","","","","","","","",""]
["3332: Quechua norteño (Inkawasi Kañaris)","08: (115)-Docente Especial - otro",55,0,"",0,0,0,0,0,null,"","","","","","","","","","","","","","","","","","","","","","","","","","","","","","","","","","","","","","","","","","","","","","","","","","","","","","","","","","","","","","","","","","","","","",""]
["3341: Quechua sureño (Chanka)","09: (116)-Docente de Aula con función o cargo directivo",56,0,"",0,0,0,0,0,null,"","","","","","","","","","","","","","","","","","","","","","","","","","","","","","","","","","","","","","","","","","","","","","","","","","","","","","","","","","","","","","","","","","","","","",""]
["3342: Quechua sureño (Collao)","10: (138)-Tutor a distancia",57,0,"",0,0,0,0,0,null,"","","","","","","","","","","","","","","","","","","","","","","","","","","","","","","","","","","","","","","","","","","","","","","","","","","","","","","","","","","","","","","","","","","","","",""]
["3400: Resígaro","11: (139)-Otro docente",58,0,"",0,0,0,0,0,null,"","","","","","","","","","","","","","","","","","","","","","","","","","","","","","","","","","","","","","","","","","","","","","","","","","","","","","","","","","","","","","","","","","","","","",""]
["3500: Secoya",null,59,0,"",0,0,0,0,0,null,"","","","","","","","","","","","","","","","","","","","","","","","","","","","","","","","","","","","","","","","","","","","","","","","","","","","","","","","","","","","","","","","","","","","","",""]
["3600: Sharanahua",null,60,0,"",0,0,0,0,0,null,"","","","","","","","","","","","","","","","","","","","","","","","","","","","","","","","","","","","","","","","","","","","","","","","","","","","","","","","","","","","","","","","","","","","","",""]
["3700: Shawi",null,61,0,"",0,0,0,0,0,null,"","","","","","","","","","","","","","","","","","","","","","","","","","","","","","","","","","","","","","","","","","","","","","","","","","","","","","","","","","","","","","","","","","","","","",""]
["3800: Shipibo-Konibo",null,62,0,"",0,0,0,0,0,null,"","","","","","","","","","","","","","","","","","","","","","","","","","","","","","","","","","","","","","","","","","","","","","","","","","","","","","","","","","","","","","","","","","","","","",""]
["3900: Shiwilu",null,63,0,"",0,0,0,0,0,null,"","","","","","","","","","","","","","","","","","","","","","","","","","","","","","","","","","","","","","","","","","","","","","","","","","","","","","","","","","","","","","","","","","","","","",""]
["4000: Taushiro",null,64,0,"",0,0,0,0,0,null,"","","","","","","","","","","","","","","","","","","","","","","","","","","","","","","","","","","","","","","","","","","","","","","","","","","","","","","","","","","","","","","","","","","","","",""]
["4100: Ticuna",null,65,{"$f":"IF(AND(LEFT(R83,2)=\"01\",LEFT(Y83,2)=\"01\",LEFT(X83,2)=\"01\",E83=1),1,0)","v":0},"",0,0,0,{"$f":"IF(L83<>\"\",1,0)","v":0},0,null,"","","","","","","","","","","","","","","","","","","","","","","","","","","","","","","","","","","","","","","","","","","","","","","","","","","","","","","","","","","","","","","","","","","","","",""]
["4200: Urarina",null,66,0,{"$f":"$B$16","v":""},{"$f":"COUNTIF(AQ84:BE84,\"X\")","v":0},{"$f":"IF(R84<>\"\",VALUE(LEFT(R84,2)),0)","v":0},{"$f":"IF(Q84<>\"\",COUNTIF($Q$20:$Q$319,Q84),0)","v":0},0,{"$f":"IF(AND(R84=\"01: Docente\",V84=\"SI\"),1,0)","v":0},null,"","","","","","","","","","","","","","","","","","","","","","","","","","","","","","","","","","","","","","","","","","","","","","","","","","","","","","","","","","","","","","","","","","","","","",{"$f":"IF($AA84<>\"\",IF(OR(LEFT($AA84,2)=\"01\",LEFT($AA84,2)=\"02\",LEFT($AA84,2)=\"04\",LEFT($AA84,2)=\"05\"),1,2),\"\")","v":""}]
["4300: Wampis",null,67,0,"",0,0,0,0,0,null,{"$f":"IF(C85<=$B$5,C85,\"\")","v":""},"","","","","","","","","","","","","","","","","","","","","","","","","","","","","","","","","","","","","","","","","","","","","","","","","","","","","","","","","","","","","","","","","","","","",""]
["4400: Yagua","Administrativos",68,0,"",0,0,0,0,0,null,"","","","","","","","","","","","","","","","","","","","","","","","","","","","","","","","","","","","","","","","","","","","","","","","","","","","","","","","","","","","","","","","","","","","","",""]
["4500: Yaminahua","12: (501)-Psicólogo",69,0,"",0,0,0,0,0,null,"","","","","","","","","","","","","","","","","","","","","","","","","","","","","","","","","","","","","","","","","","","","","","","","","","","","","","","","","","","","","","","","","","","","","",""]
["4600: Yanesha","13: (502)-Trabajo social / Servicio social",70,0,"",0,0,0,0,0,null,"","","","","","","","","","","","","","","","","","","","","","","","","","","","","","","","","","","","","","","","","","","","","","","","","","","","","","","","","","","","","","","","","","","","","",""]
["4700: Yine","14: (503)-Personal de Salud",71,0,"",0,0,0,0,0,null,"","","","","","","","","","","","","","","","","","","","","","","","","","","","","","","","","","","","","","","","","","","","","","","","","","","","","","","","","","","","","","","","","","","","","",""]
["4800: Nahua","15: (504)-Administrador o contador",72,0,"",0,0,0,0,0,null,"","","","","","","","","","","","","","","","","","","","","","","","","","","","","","","","","","","","","","","","","","","","","","","","","","","","","","","","","","","","","","","","","","","","","",""]
["5100: Alemán","16: (537)-Guía intérprete de sordoceguera",73,0,"",0,0,0,0,0,null,"","","","","","","","","","","","","","","","","","","","","","","","","","","","","","","","","","","","","","","","","","","","","","","","","","","","","","","","","","","","","","","","","","","","","",""]
["5200: Inglés","17: (538)-Intérprete de Lengua de Señas Peruana",74,0,"",0,0,0,0,0,null,"","","","","","","","","","","","","","","","","","","","","","","","","","","","","","","","","","","","","","","","","","","","","","","","","","","","","","","","","","","","","","","","","","","","","",""]
["5300: Italiano","18: (539)-Modelo Lingüístico",75,0,"",0,0,0,0,0,null,"","","","","","","","","","","","","","","","","","","","","","","","","","","","","","","","","","","","","","","","","","","","","","","","","","","","","","","","","","","","","","","","","","","","","",""]
["5400: Japonés","19: (505)-Otro personal profesional",76,0,"",0,0,0,0,0,null,"","","","","","","","","","","","","","","","","","","","","","","","","","","","","","","","","","","","","","","","","","","","","","","","","","","","","","","","","","","","","","","","","","","","","",""]
["5500: Portugués","20: (506)-Auxiliar de Biblioteca",77,0,"",0,0,0,0,0,null,"","","","","","","","","","","","","","","","","","","","","","","","","","","","","","","","","","","","","","","","","","","","","","","","","","","","","","","","","","","","","","","","","","","","","",""]
["5600: Ruso","21: (507)-Auxiliar de Laboratorios",78,0,"",0,0,0,0,0,null,"","","","","","","","","","","","","","","","","","","","","","","","","","","","","","","","","","","","","","","","","","","","","","","","","","","","","","","","","","","","","","","","","","","","","",""]
["5700: Francés","22: (508)-Secretaria u Oficinista",79,0,"",0,0,0,0,0,null,"","","","","","","","","","","","","","","","","","","","","","","","","","","","","","","","","","","","","","","","","","","","","","","","","","","","","","","","","","","","","","","","","","","","","",""]
["5800: Otra lengua extranjera","23: (510)-Coordinador de Taller",80,0,"",0,0,0,0,0,null,"","","","","","","","","","","","","","","","","","","","","","","","","","","","","","","","","","","","","","","","","","","","","","","","","","","","","","","","","","","","","","","","","","","","","",""]
[null,"24: (511)-Asistente Administrativo",81,0,"",0,0,0,0,0,null,"","","","","","","","","","","","","","","","","","","","","","","","","","","","","","","","","","","","","","","","","","","","","","","","","","","","","","","","","","","","","","","","","","","","","",""]
["308. Lengua Originaria","25: (512)-Personal de Servicio-mantenimiento",82,0,"",0,0,0,0,0,null,"","","","","","","","","","","","","","","","","","","","","","","","","","","","","","","","","","","","","","","","","","","","","","","","","","","","","","","","","","","","","","","","","","","","","",""]
["De: 0200 a 4800","26: (513)-Personal de Servicio-cocina",83,0,"",0,0,0,0,0,null,"","","","","","","","","","","","","","","","","","","","","","","","","","","","","","","","","","","","","","","","","","","","","","","","","","","","","","","","","","","","","","","","","","","","","",""]
[null,"27: (514)-Personal de Servicio-limpieza",84,0,"",0,0,0,0,0,null,"","","","","","","","","","","","","","","","","","","","","","","","","","","","","","","","","","","","","","","","","","","","","","","","","","","","","","","","","","","","","","","","","","","","","",""]
["309. Fuente de Financiamiento","28: (515)-Personal de Servicio-portero",85,0,"",0,0,0,0,0,null,"","","","","","","","","","","","","","","","","","","","","","","","","","","","","","","","","","","","","","","","","","","","","","","","","","","","","","","","","","","","","","","","","","","","","",""]
["01: Sector Educación","29: (516)-Personal de Servicio-vigilante",86,0,"",0,0,0,0,0,null,"","","","","","","","","","","","","","","","","","","","","","","","","","","","","","","","","","","","","","","","","","","","","","","","","","","","","","","","","","","","","","","","","","","","","",""]
["02: Otro sector público","30: (517)-Otro personal de servicio",87,0,"",0,0,0,0,0,null,"","","","","","","","","","","","","","","","","","","","","","","","","","","","","","","","","","","","","","","","","","","","","","","","","","","","","","","","","","","","","","","","","","","","","",""]
["03: Municipalidad","31: (518)-Otro personal No profesional",88,0,"",0,0,0,0,0,null,"","","","","","","","","","","","","","","","","","","","","","","","","","","","","","","","","","","","","","","","","","","","","","","","","","","","","","","","","","","","","","","","","","","","","",""]
["04: Gobierno Regional",null,89,0,"",0,0,0,0,0,null,"","","","","","","","","","","","","","","","","","","","","","","","","","","","","","","","","","","","","","","","","","","","","","","","","","","","","","","","","","","","","","","","","","","","","",""]
["05: APAFA",null,90,0,"",0,0,0,0,0,null,"","","","","","","","","","","","","","","","","","","","","","","","","","","","","","","","","","","","","","","","","","","","","","","","","","","","","","","","","","","","","","","","","","","","","",""]
["06: Otra fuente Privada",null,91,0,"",0,0,0,0,0,null,"","","","","","","","","","","","","","","","","","","","","","","","","","","","","","","","","","","","","","","","","","","","","","","","","","","","","","","","","","","","","","","","","","","","","",""]
[null,null,92,0,"",0,0,0,0,0,null,"","","","","","","","","","","","","","","","","","","","","","","","","","","","","","","","","","","","","","","","","","","","","","","","","","","","","","","","","","","","","","","","","","","","","",""]
["310. Condición Laboral",null,93,0,"",0,0,0,0,0,null,"","","","","","","","","","","","","","","","","","","","","","","","","","","","","","","","","","","","","","","","","","","","","","","","","","","","","","","","","","","","","","","","","","","","","",""]
["01: Nombrado",null,94,0,"",0,0,0,0,0,null,"","","","","","","","","","","","","","","","","","","","","","","","","","","","","","","","","","","","","","","","","","","","","","","","","","","","","","","","","","","","","","","","","","","","","",""]
["02: Contratado",null,95,0,"",0,0,0,0,0,null,"","","","","","","","","","","","","","","","","","","","","","","","","","","","","","","","","","","","","","","","","","","","","","","","","","","","","","","","","","","","","","","","","","","","","",""]
["03: No aplica",null,96,0,"",0,0,0,0,0,null,"","","","","","","","","","","","","","","","","","","","","","","","","","","","","","","","","","","","","","","","","","","","","","","","","","","","","","","","","","","","","","","","","","","","","",""]
[null,null,97,0,"",0,0,0,0,0,null,"","","","","","","","","","","","","","","","","","","","","","","","","","","","","","","","","","","","","","","","","","","","","","","","","","","","","","","","","","","","","","","","","","","","","",""]
["311. Modalidad de Contrato",null,98,0,"",0,0,0,0,0,null,"","","","","","","","","","","","","","","","","","","","","","","","","","","","","","","","","","","","","","","","","","","","","","","","","","","","","","","","","","","","","","","","","","","","","",""]
["Contrato Público",null,99,0,"",0,0,0,0,0,null,"","","","","","","","","","","","","","","","","","","","","","","","","","","","","","","","","","","","","","","","","","","","","","","","","","","","","","","","","","","","","","","","","","","","","",""]
["01: A plazo fijo D. Leg. 728",null,100,0,"",0,0,0,0,0,null,"","","","","","","","","","","","","","","","","","","","","","","","","","","","","","","","","","","","","","","","","","","","","","","","","","","","","","","","","","","","","","","","","","","","","",""]
["02: Locación de Serv. / Honorarios",null,101,0,"",0,0,0,0,0,null,"","","","","","","","","","","","","","","","","","","","","","","","","","","","","","","","","","","","","","","","","","","","","","","","","","","","","","","","","","","","","","","","","","","","","",""]
["03: CAS - D. Leg. 1057","99: (999)-Auxiliar de Educación",102,0,"",0,0,0,0,0,null,"","","","","","","","","","","","","","","","","","","","","","","","","","","","","","","","","","","","","","","","","","","","","","","","","","","","","","","","","","","","","","","","","","","","","",""]
["04: Contrato D. Leg. 276",null,103,0,"",0,0,0,0,0,null,"","","","","","","","","","","","","","","","","","","","","","","","","","","","","","","","","","","","","","","","","","","","","","","","","","","","","","","","","","","","","","","","","","","","","",""]
["05: Contrato Ley 30328","322. Situación en el Cargo Directivo",104,0,"",0,0,0,0,0,null,"","","","","","","","","","","","","","","","","","","","","","","","","","","","","","","","","","","","","","","","","","","","","","","","","","","","","","","","","","","","","","","","","","","","","",""]
["06: Otra modalidad","01: Titular ratificado eval.2014",105,0,"",0,0,0,0,0,null,"","","","","","","","","","","","","","","","","","","","","","","","","","","","","","","","","","","","","","","","","","","","","","","","","","","","","","","","","","","","","","","","","","","","","",""]
["Contrato Privado","02: Titular designado eval. 2015, 2016 y 2018",106,0,"",0,0,0,0,0,null,"","","","","","","","","","","","","","","","","","","","","","","","","","","","","","","","","","","","","","","","","","","","","","","","","","","","","","","","","","","","","","","","","","","","","",""]
["07: A plazo indefinido (Permanente)","03: Titular otro",107,0,"",0,0,0,0,0,null,"","","","","","","","","","","","","","","","","","","","","","","","","","","","","","","","","","","","","","","","","","","","","","","","","","","","","","","","","","","","","","","","","","","","","",""]
["08: Plazo fijo (Tiempo determinado)","04: Encargado por función, sin doc. formal",108,0,"",0,0,0,0,0,null,"","","","","","","","","","","","","","","","","","","","","","","","","","","","","","","","","","","","","","","","","","","","","","","","","","","","","","","","","","","","","","","","","","","","","",""]
["09: A tiempo parcial (por horas)","05: Encargado",109,0,"",0,0,0,0,0,null,"","","","","","","","","","","","","","","","","","","","","","","","","","","","","","","","","","","","","","","","","","","","","","","","","","","","","","","","","","","","","","","","","","","","","",""]
["10: Locación de Serv. / Honorarios",null,110,0,"",0,0,0,0,0,null,"","","","","","","","","","","","","","","","","","","","","","","","","","","","","","","","","","","","","","","","","","","","","","","","","","","","","","","","","","","","","","","","","","","","","",""]
["11: Otra modalidad","323. Destaque o Licencia",111,0,"",0,0,0,0,0,null,"","","","","","","","","","","","","","","","","","","","","","","","","","","","","","","","","","","","","","","","","","","","","","","","","","","","","","","","","","","","","","","","","","","","","",""]
[null,"01: Cubriendo una licencia",112,0,"",0,0,0,0,0,null,"","","","","","","","","","","","","","","","","","","","","","","","","","","","","","","","","","","","","","","","","","","","","","","","","","","","","","","","","","","","","","","","","","","","","",""]
["312. Máximo Nivel Educativo Alcanzado","02: De otra I.E./DRE/UGEL",113,0,"",0,0,0,0,0,null,"","","","","","","","","","","","","","","","","","","","","","","","","","","","","","","","","","","","","","","","","","","","","","","","","","","","","","","","","","","","","","","","","","","","","",""]
["01: EP.Concluidos con título","03: No Aplica",114,0,"",0,0,0,0,0,null,"","","","","","","","","","","","","","","","","","","","","","","","","","","","","","","","","","","","","","","","","","","","","","","","","","","","","","","","","","","","","","","","","","","","","",""]
["02: EP.Concluidos sin título",null,115,0,"",0,0,0,0,0,null,"","","","","","","","","","","","","","","","","","","","","","","","","","","","","","","","","","","","","","","","","","","","","","","","","","","","","","","","","","","","","","","","","","","","","",""]
["03: EP.No concluidos",null,116,0,"",0,0,0,0,0,null,"","","","","","","","","","","","","","","","","","","","","","","","","","","","","","","","","","","","","","","","","","","","","","","","","","","","","","","","","","","","","","","","","","","","","",""]
["04: NP.Concluidos con título",null,117,0,"",0,0,0,0,0,null,"","","","","","","","","","","","","","","","","","","","","","","","","","","","","","","","","","","","","","","","","","","","","","","","","","","","","","","","","","","","","","","","","","","","","",""]
["05: NP.Concluidos sin título","324. Jornada Laboral (Nombramiento / Contrato)",118,0,"",0,0,0,0,0,null,"","","","","","","","","","","","","","","","","","","","","","","","","","","","","","","","","","","","","","","","","","","","","","","","","","","","","","","","","","","","","","","","","","","","","",""]
["06: NP.No concluidos","40: 40 horas",119,0,"",0,0,0,0,0,null,"","","","","","","","","","","","","","","","","","","","","","","","","","","","","","","","","","","","","","","","","","","","","","","","","","","","","","","","","","","","","","","","","","","","","",""]
["07: Secundaria","30: 30 horas",120,0,"",0,0,0,0,0,null,"","","","","","","","","","","","","","","","","","","","","","","","","","","","","","","","","","","","","","","","","","","","","","","","","","","","","","","","","","","","","","","","","","","","","",""]
["08: Primaria","25: 25 horas",121,0,"",0,0,0,0,0,null,"","","","","","","","","","","","","","","","","","","","","","","","","","","","","","","","","","","","","","","","","","","","","","","","","","","","","","","","","","","","","","","","","","","","","",""]
[null,"24: 24 horas",122,0,"",0,0,0,0,0,null,"","","","","","","","","","","","","","","","","","","","","","","","","","","","","","","","","","","","","","","","","","","","","","","","","","","","","","","","","","","","","","","","","","","","","",""]
["313. Especialidad del Título","23: Menos 24 horas",123,0,"",0,0,0,0,0,null,"","","","","","","","","","","","","","","","","","","","","","","","","","","","","","","","","","","","","","","","","","","","","","","","","","","","","","","","","","","","","","","","","","","","","",""]
["01: Educación Inicial",null,124,0,"",0,0,0,0,0,null,"","","","","","","","","","","","","","","","","","","","","","","","","","","","","","","","","","","","","","","","","","","","","","","","","","","","","","","","","","","","","","","","","","","","","",""]
["02: Educación Primaria","SI / NO",125,0,"",0,0,0,0,0,null,"","","","","","","","","","","","","","","","","","","","","","","","","","","","","","","","","","","","","","","","","","","","","","","","","","","","","","","","","","","","","","","","","","","","","",""]
["03: E.I. Intercultural Bilingüe","SI",126,0,"",0,0,0,0,0,null,"","","","","","","","","","","","","","","","","","","","","","","","","","","","","","","","","","","","","","","","","","","","","","","","","","","","","","","","","","","","","","","","","","","","","",""]
["04: E.P. Intercultural Bilingüe","NO",127,0,"",0,0,0,0,0,null,"","","","","","","","","","","","","","","","","","","","","","","","","","","","","","","","","","","","","","","","","","","","","","","","","","","","","","","","","","","","","","","","","","","","","",""]
["05: Educación Básica Alternativa",null,128,0,"",0,0,0,0,0,null,"","","","","","","","","","","","","","","","","","","","","","","","","","","","","","","","","","","","","","","","","","","","","","","","","","","","","","","","","","","","","","","","","","","","","",""]
["06: Educación Especial","331. Especialidad Artistica",129,{"$f":"IF(AND(LEFT(R147,2)=\"01\",LEFT(Y147,2)=\"01\",LEFT(X147,2)=\"01\",E147=1),1,0)","v":0},"",0,0,0,{"$f":"IF(L147<>\"\",1,0)","v":0},0,null,"","","","","","","","","","","","","","","","","","","","","","","","","","","","","","","","","","","","","","","","","","","","","","","","","","","","","","","","","","","","","","","","","","","","","",""]
["07: Educación Física","01: Danza",130,0,{"$f":"$B$16","v":""},{"$f":"COUNTIF(AQ148:BE148,\"X\")","v":0},{"$f":"IF(R148<>\"\",VALUE(LEFT(R148,2)),0)","v":0},{"$f":"IF(Q148<>\"\",COUNTIF($Q$20:$Q$319,Q148),0)","v":0},0,{"$f":"IF(AND(R148=\"01: Docente\",V148=\"SI\"),1,0)","v":0},null,"","","","","","","","","","","","","","","","","","","","","","","","","","","","","","","","","","","","","","","","","","","","","","","","","","","","","","","","","","","","","","","","","","","","","",{"$f":"IF($AA148<>\"\",IF(OR(LEFT($AA148,2)=\"01\",LEFT($AA148,2)=\"02\",LEFT($AA148,2)=\"04\",LEFT($AA148,2)=\"05\"),1,2),\"\")","v":""}]
["08: Educación Artística","02: Música",null,null,null,null,null,null,null,null,null,null,null,null,null,"",null,"","","","","","","","","","","","","","","","","","","","","","","","","","","","","","","","","","","","","","","","","","","",null,null,"","","","",null,"","","","","","","",null,null,null,null,null,""]
["09: E.S. Lengua y Literatura","03: Teatro",null,null,null,null,null,null,null,null,null,"…","…","…","…","…","…","…","…","…","…","…","…","…","…","…","…","…","…","…","…","…","…","…","…","…","…","…","…","…","…","…","…","…","…","…","…","…","…","…","…","…","…","…","…","…","…","…","…","…","…","…","…","…","…","…","…","…","…","…","…","…","…","…","…","…","…","…","…"]
["10: E.S. Comunicación","04: Artes visuales"]
["11: E.S. Matemática y Física","05: Otra"]
["12: E.S. Matemática","336.2 ¿Cuál es el tipo de discapacidad?"]
["13: E.S. CCSS y Filosofía","01: Auditiva"]
["14: E.S. Ciencias Sociales","02: Visual"]
["15: E.S. Ciencias Naturales","03: Física o Motora"]
["16: E.S. Ciencia Tecnología y Ambiente","04: Otras"]
["17: E.S. Alimentación y Nutrición"]
["18: E.S. Biología y Química","334.3 Asistencia Técnica"]
["19: E.S. Historia y Geografía","01: Uso pedagógico de los cuadernos"]
["20: E.S. CC.HH. Sociales","02: TICs"]
["21: E.S. Idioma Inglés","03: Inclusión Financiera"]
["22: Educación Religiosa","04: Prevención de la violencia"]
["23: E.S. Educación Familiar","05: Otro"]
["24: E.T. Artes Industriales","06: No recibió asistencia técnica"]
["25: E.T. Artesanía"]
["26: E.T. Agropecuaria","339.3 ¿Cuál fue el tipo de estudios en EIB?"]
["27: E.T. Construcción en madera","01: Doctorado"]
["28: E.T. Computación e Informática","02: Maestría"]
["29: E.T. Carpintería/Ebanistería","03: Segunda especialidad"]
["30: E.T. Electricidad","04: Especialización"]
["31: E.T. Electrónica","05: Actualización"]
["32: E.T. Ebanistería","06: Otro"]
["33: E.T. Industria del Vestido"]
["34: E.T. Industria del Vestido Alimentación y Alta Costura","Parroquiales"]
["35: E.T. en Industria del Vestido y Alta Costura","05: APAFA"]
["36: E.T.Técnica Esp. Ind. del Vestido Ind.Alimentaria y Artes","06: Otra fuente Privada"]
["37: E.T. Industria Alimentaria","01: Sector Educación"]
["38: E.T. Mecánica Automotriz"]
["39: E.T. Mecánica de Producción"]
["40: E.T. Mecánica de Producción y Soldadura","Forma"]
["41: E.T. Textilería","01: Presencial"]
["42: Otra pedagógica"]
[]
[null,"Centro deonde labora"]
["Area curriculares","01: CEBA Referencial"]
["01: Matemática","02: Periférico"]
["02: Comunicación","03: Círculo de aprendizaje"]
["03: Ingles","04: 01 y 02"]
["04: Ciencias Sociales","05: 01 y 03"]
["05: Desarrollo personal ciudadania …","06: 02 y 03"]
["06: Educación Física","07: 01, 02 y 03"]
["07: Ciencia y Tecnología"]
["08: Castellano como segunda lengua"]
["09: Educación para el trabajo"]
["10: Educación religiosa"]
["11: Tutoría y Orientación Educativa"]
["12: Arte y cultura"]

{"sheet":"C336","index":6,"n_rows":132,"n_cols":32,"rows_kept":132,"cut":false,"hidden":false,"merged":[[28,13,29,13],[1,9,1,15],[2,9,2,15],[28,6,29,6],[28,8,29,8],[28,9,28,11],[27,9,27,11],[28,7,29,7]]}
[]
[null,null,null,null,null,null,null,null,null,"CENSO EDUCATIVO 2024"]
[null,null,null,null,null,null,null,null,null,"MATRÍCULA, DOCENTES Y RECURSOS"]
[]
[]
[]
[null,null,null,null,null,"335. COMPETENCIAS DE ARTE Y CULTURA"]
[null,null,null,null,null,null,"335. EN ESTE CEBA, ¿SE DESARROLLAN LAS COMPETENCIAS DE ARTE Y CULTURA?"]
[]
[]
[null,null,null,null,null,null,"","Sí   ",null,"¿Cuántos docentes están asignados al dictado de la asignatura?",null,null,null,null,""]
[null,null,null,null,null,null,null,null,null,"¿El desarrollo de las competencias en Arte y Cultura se realizan dentro del horario regular?"]
[null,null,null,null,null,null,null,null,null,null,"Sí   ","",null,"No   ",""]
[null,null,null,null,null,null,null,"No  "]
[null,null,null,null,null,null,null,null,null,"¿Cuántas horas a la semana se destinan para el desarrollo de las competencias en Arte y Cultura?",null,null,null,null,null,null,"",""]
[]
[]
[null,null,null,null,null,"DOCENTES QUE DOMINAN LENGUA ORIGINARIA (Solo II.EE. Públicas)"]
[]
["GESTIÓN",null,null,null,null,null,"336. SEGÚN LO ANOTADO EN LA PREGUNTA 307, ¿CUENTA CON UN DOCENTE QUE DOMINE UNA LENGUA ORIGINARIA?"]
[null,null,null,null,null,null,"Hacer click en el botón [Verificar] para revisar los docentes que dominan una lengua originaria"]
[1]
[null,null,null,null,null,null,null,null,null,"Sí   ",null,null,null,"¿Cuántos?"]
[]
[null,null,null,null,null,null,null,null,null,"No  ","",null,null,"Pase a la sección 400."]
[]
[]
[null,null,null,null,null,null,null,null,null,334.1,null,null,334.2,334.3,334.4,334.5,334.6,334.7]
[null,null,null,null,null,null,"Nº","Nº de fila registrado en la pregunta 307","Documento de Identidad","Conocimiento de\nlengua originaria",null,null,"¿Cuenta con estudios en Educación Intercultural Bilingüe?","Solo si respondió SÍ  en la pregunta 334.2 ¿Cuál fue el tipo de estudios en EIB?","¿Ha recibido\ncapacitación en EIB?","¿El docente enseña\nen lengua originaria?","¿El material recibido coincide con la lengua que enseña?","¿En la actualidad el Docente se encuentra en el Registro de Docentes Bilingües?"]
["330.3 ¿Cuál fue el tipo de estudios en EIB?","Corr","Gest","Fmt",null,null,null,null,null,"Habla","Lee","Escribe"," Sí - No",null," Sí - No"," Sí - No"," Sí - No"," Sí - No"]
["01: Doctorado",1,{"$f":"$A$22","v":1},{"$f":"IF(G31<>\"\",1,0)","v":0},null,null,{"$f":"IF(B31<=$O$23,B31,\"\")","v":""},null,null,null,null,null,null,null,null,null,null,null,"","","","","","","","","","","","","",""]
["02: Maestría",{"$f":"B31+1","v":2},{"$f":"$A$22","v":1},{"$f":"IF(G32<>\"\",1,0)","v":0},null,null,{"$f":"IF(B32<=$O$23,B32,\"\")","v":""},null,null,null,null,null,null,null,null,null,null,null,"","","","","","","","","","","","","",""]
["03: Segunda especialidad",{"$f":"B32+1","v":3},1,{"$f":"IF(G33<>\"\",1,0)","v":0},null,null,"",null,null,null,null,null,null,null,null,null,null,null,"","","","","","","","","","","","","",""]
["04: Especialización",4,1,0,null,null,"",null,null,null,null,null,null,null,null,null,null,null,"","","","","","","","","","","","","",""]
["05: Actualización",5,1,0,null,null,"",null,null,null,null,null,null,null,null,null,null,null,"","","","","","","","","","","","","",""]
["06: Otro",6,1,0,null,null,"",null,null,null,null,null,null,null,null,null,null,null,"","","","","","","","","","","","","",""]
[null,7,1,0,null,null,"",null,null,null,null,null,null,null,null,null,null,null,"","","","","","","","","","","","","",""]
[null,8,1,0,null,null,"",null,null,null,null,null,null,null,null,null,null,null,"","","","","","","","","","","","","",""]
["SI",9,1,0,null,null,"",null,null,null,null,null,null,null,null,null,null,null,"","","","","","","","","","","","","",""]
["NO",10,1,0,null,null,"",null,null,null,null,null,null,null,null,null,null,null,"","","","","","","","","","","","","",""]
[null,11,1,0,null,null,"",null,null,null,null,null,null,null,null,null,null,null,"","","","","","","","","","","","","",""]
[null,12,1,0,null,null,"",null,null,null,null,null,null,null,null,null,null,null,"","","","","","","","","","","","","",""]
[null,13,1,0,null,null,"",null,null,null,null,null,null,null,null,null,null,null,"","","","","","","","","","","","","",""]
[null,14,1,0,null,null,"",null,null,null,null,null,null,null,null,null,null,null,"","","","","","","","","","","","","",""]
[null,15,1,0,null,null,"",null,null,null,null,null,null,null,null,null,null,null,"","","","","","","","","","","","","",""]
[null,16,1,0,null,null,"",null,null,null,null,null,null,null,null,null,null,null,"","","","","","","","","","","","","",""]
[null,17,1,0,null,null,"",null,null,null,null,null,null,null,null,null,null,null,"","","","","","","","","","","","","",""]
[null,18,1,0,null,null,"",null,null,null,null,null,null,null,null,null,null,null,"","","","","","","","","","","","","",""]
[null,19,1,0,null,null,"",null,null,null,null,null,null,null,null,null,null,null,"","","","","","","","","","","","","",""]
[null,20,1,0,null,null,"",null,null,null,null,null,null,null,null,null,null,null,"","","","","","","","","","","","","",""]
[null,21,1,0,null,null,"",null,null,null,null,null,null,null,null,null,null,null,"","","","","","","","","","","","","",""]
[null,22,1,0,null,null,"",null,null,null,null,null,null,null,null,null,null,null,"","","","","","","","","","","","","",""]
[null,23,1,0,null,null,"",null,null,null,null,null,null,null,null,null,null,null,"","","","","","","","","","","","","",""]
[null,24,1,0,null,null,"",null,null,null,null,null,null,null,null,null,null,null,"","","","","","","","","","","","","",""]
[null,25,1,0,null,null,"",null,null,null,null,null,null,null,null,null,null,null,"","","","","","","","","","","","","",""]
[null,26,1,0,null,null,"",null,null,null,null,null,null,null,null,null,null,null,"","","","","","","","","","","","","",""]
[null,27,1,0,null,null,"",null,null,null,null,null,null,null,null,null,null,null,"","","","","","","","","","","","","",""]
[null,28,1,0,null,null,"",null,null,null,null,null,null,null,null,null,null,null,"","","","","","","","","","","","","",""]
[null,29,1,0,null,null,"",null,null,null,null,null,null,null,null,null,null,null,"","","","","","","","","","","","","",""]
[null,30,1,0,null,null,"",null,null,null,null,null,null,null,null,null,null,null,"","","","","","","","","","","","","",""]
[null,31,1,0,null,null,"",null,null,null,null,null,null,null,null,null,null,null,"","","","","","","","","","","","","",""]
[null,32,1,0,null,null,"",null,null,null,null,null,null,null,null,null,null,null,"","","","","","","","","","","","","",""]
[null,33,1,0,null,null,{"$f":"IF(B63<=$O$23,B63,\"\")","v":""},null,null,null,null,null,null,null,null,null,null,null,"","","","","","","","","","","","","",""]
[null,34,1,0,null,null,"",null,null,null,null,null,null,null,null,null,null,null,"","","","","","","","","","","","","",""]
[null,35,1,0,null,null,"",null,null,null,null,null,null,null,null,null,null,null,"","","","","","","","","","","","","",""]
[null,36,1,0,null,null,"",null,null,null,null,null,null,null,null,null,null,null,"","","","","","","","","","","","","",""]
[null,37,1,0,null,null,"",null,null,null,null,null,null,null,null,null,null,null,"","","","","","","","","","","","","",""]
[null,38,1,0,null,null,"",null,null,null,null,null,null,null,null,null,null,null,"","","","","","","","","","","","","",""]
[null,39,1,0,null,null,"",null,null,null,null,null,null,null,null,null,null,null,"","","","","","","","","","","","","",""]
[null,40,1,0,null,null,"",null,null,null,null,null,null,null,null,null,null,null,"","","","","","","","","","","","","",""]
[null,41,1,0,null,null,"",null,null,null,null,null,null,null,null,null,null,null,"","","","","","","","","","","","","",""]
[null,42,1,0,null,null,"",null,null,null,null,null,null,null,null,null,null,null,"","","","","","","","","","","","","",""]
[null,43,1,0,null,null,"",null,null,null,null,null,null,null,null,null,null,null,"","","","","","","","","","","","","",""]
[null,44,1,0,null,null,"",null,null,null,null,null,null,null,null,null,null,null,"","","","","","","","","","","","","",""]
[null,45,1,0,null,null,"",null,null,null,null,null,null,null,null,null,null,null,"","","","","","","","","","","","","",""]
[null,46,1,0,null,null,"",null,null,null,null,null,null,null,null,null,null,null,"","","","","","","","","","","","","",""]
[null,47,1,0,null,null,"",null,null,null,null,null,null,null,null,null,null,null,"","","","","","","","","","","","","",""]
[null,48,1,0,null,null,"",null,null,null,null,null,null,null,null,null,null,null,"","","","","","","","","","","","","",""]
[null,49,1,0,null,null,"",null,null,null,null,null,null,null,null,null,null,null,"","","","","","","","","","","","","",""]
[null,50,1,0,null,null,"",null,null,null,null,null,null,null,null,null,null,null,"","","","","","","","","","","","","",""]
[null,51,1,0,null,null,"",null,null,null,null,null,null,null,null,null,null,null,"","","","","","","","","","","","","",""]
[null,52,1,0,null,null,"",null,null,null,null,null,null,null,null,null,null,null,"","","","","","","","","","","","","",""]
[null,53,1,0,null,null,"",null,null,null,null,null,null,null,null,null,null,null,"","","","","","","","","","","","","",""]
[null,54,1,0,null,null,"",null,null,null,null,null,null,null,null,null,null,null,"","","","","","","","","","","","","",""]
[null,55,1,0,null,null,"",null,null,null,null,null,null,null,null,null,null,null,"","","","","","","","","","","","","",""]
[null,56,1,0,null,null,"",null,null,null,null,null,null,null,null,null,null,null,"","","","","","","","","","","","","",""]
[null,57,1,0,null,null,"",null,null,null,null,null,null,null,null,null,null,null,"","","","","","","","","","","","","",""]
[null,58,1,0,null,null,"",null,null,null,null,null,null,null,null,null,null,null,"","","","","","","","","","","","","",""]
[null,59,1,0,null,null,"",null,null,null,null,null,null,null,null,null,null,null,"","","","","","","","","","","","","",""]
[null,60,1,0,null,null,"",null,null,null,null,null,null,null,null,null,null,null,"","","","","","","","","","","","","",""]
[null,61,1,0,null,null,"",null,null,null,null,null,null,null,null,null,null,null,"","","","","","","","","","","","","",""]
[null,62,1,0,null,null,"",null,null,null,null,null,null,null,null,null,null,null,"","","","","","","","","","","","","",""]
[null,63,1,0,null,null,"",null,null,null,null,null,null,null,null,null,null,null,"","","","","","","","","","","","","",""]
[null,64,1,0,null,null,"",null,null,null,null,null,null,null,null,null,null,null,"","","","","","","","","","","","","",""]
[null,65,{"$f":"$A$22","v":1},0,null,null,{"$f":"IF(B95<=$O$23,B95,\"\")","v":""},null,null,null,null,null,null,null,null,null,null,null,"","","","","","","","","","","","","",""]
[null,66,1,0,null,null,"",null,null,null,null,null,null,null,null,null,null,null,"","","","","","","","","","","","","",""]
[null,{"$f":"B96+1","v":67},1,{"$f":"IF(G97<>\"\",1,0)","v":0},null,null,"",null,null,null,null,null,null,null,null,null,null,null,"","","","","","","","","","","","","",""]
[null,68,1,0,null,null,"",null,null,null,null,null,null,null,null,null,null,null,"","","","","","","","","","","","","",""]
[null,69,1,0,null,null,"",null,null,null,null,null,null,null,null,null,null,null,"","","","","","","","","","","","","",""]
[null,70,1,0,null,null,"",null,null,null,null,null,null,null,null,null,null,null,"","","","","","","","","","","","","",""]
[null,71,1,0,null,null,"",null,null,null,null,null,null,null,null,null,null,null,"","","","","","","","","","","","","",""]
[null,72,1,0,null,null,"",null,null,null,null,null,null,null,null,null,null,null,"","","","","","","","","","","","","",""]
[null,73,1,0,null,null,"",null,null,null,null,null,null,null,null,null,null,null,"","","","","","","","","","","","","",""]
[null,74,1,0,null,null,"",null,null,null,null,null,null,null,null,null,null,null,"","","","","","","","","","","","","",""]
[null,75,1,0,null,null,"",null,null,null,null,null,null,null,null,null,null,null,"","","","","","","","","","","","","",""]
[null,76,1,0,null,null,"",null,null,null,null,null,null,null,null,null,null,null,"","","","","","","","","","","","","",""]
[null,77,1,0,null,null,"",null,null,null,null,null,null,null,null,null,null,null,"","","","","","","","","","","","","",""]
[null,78,1,0,null,null,"",null,null,null,null,null,null,null,null,null,null,null,"","","","","","","","","","","","","",""]
[null,79,1,0,null,null,"",null,null,null,null,null,null,null,null,null,null,null,"","","","","","","","","","","","","",""]
[null,80,1,0,null,null,"",null,null,null,null,null,null,null,null,null,null,null,"","","","","","","","","","","","","",""]
[null,81,1,0,null,null,"",null,null,null,null,null,null,null,null,null,null,null,"","","","","","","","","","","","","",""]
[null,82,1,0,null,null,"",null,null,null,null,null,null,null,null,null,null,null,"","","","","","","","","","","","","",""]
[null,83,1,0,null,null,"",null,null,null,null,null,null,null,null,null,null,null,"","","","","","","","","","","","","",""]
[null,84,1,0,null,null,"",null,null,null,null,null,null,null,null,null,null,null,"","","","","","","","","","","","","",""]
[null,85,1,0,null,null,""]
[null,86,1,0,null,null,""]
[null,87,1,0,null,null,""]
[null,88,1,0,null,null,""]
[null,89,1,0,null,null,""]
[null,90,1,0,null,null,""]
[null,91,1,0,null,null,""]
[null,92,1,0,null,null,""]
[null,93,1,0,null,null,""]
[null,94,1,0,null,null,""]
[null,95,1,0,null,null,""]
[null,96,1,0,null,null,""]
[null,97,1,0,null,null,""]
[null,98,1,0,null,null,""]
[null,99,1,0,null,null,""]
[null,100,1,0,null,null,"",null,null,null,null,null,null,null,null,null,null,null,"","","","","","","","","","","","","",""]
[null,null,null,null,null,null,null,null,""]
[null,null,null,null,null,null,"…","…","…","…","…","…","…","…","…","…","…","…"]

{"sheet":"C400","index":7,"n_rows":97,"n_cols":31,"rows_kept":97,"cut":false,"hidden":false,"merged":[[93,13,93,14],[94,13,94,14],[95,13,95,14],[86,13,86,14],[87,13,87,14],[88,13,88,14],[89,13,89,14],[90,13,90,14],[1,6,1,19],[2,6,2,19],[34,1,34,22],[48,13,50,14],[51,13,51,14],[49,5,50,8],[30,13,30,14],[30,16,30,17],[30,21,30,22],[31,5,31,10],[31,13,31,14],[31,16,31,17],[31,21,31,22],[29,13,29,14],[29,16,29,17],[29,21,29,22],[15,16,15,20],[19,13,19,22],[20,11,22,11],[20,13,23,14],[20,15,23,15],[20,16,23,17],[20,18,23,18],[20,19,23,19],[20,20,23,20],[20,21,23,22],[21,12,23,12],[50,28,50,30],[50,15,51,15],[24,13,24,14],[24,16,24,17],[24,21,24,22],[25,13,25,14],[25,16,25,17],[25,21,25,22],[26,13,26,14],[26,16,26,17],[26,21,26,22],[27,13,27,14],[27,16,27,17],[27,21,27,22],[28,13,28,14],[28,16,28,17],[28,21,28,22],[49,16,49,20],[49,21,49,25],[84,16,84,17],[84,18,84,20],[48,2,51,3],[48,11,50,11],[48,12,50,12],[50,21,50,22],[50,23,50,25],[50,18,50,20],[50,16,50,17],[57,2,61,3],[52,2,56,3],[57,13,57,14],[58,13,58,14],[59,13,59,14],[60,13,60,14],[61,13,61,14],[52,13,52,14],[53,13,53,14],[54,13,54,14],[55,13,55,14],[56,13,56,14],[48,15,48,30],[49,26,49,30],[50,26,50,27],[86,2,90,3],[91,2,95,3],[65,11,67,11],[65,12,67,12],[82,11,84,11],[82,12,84,12],[68,13,68,14],[66,5,67,8],[83,5,84,8],[74,13,74,14],[75,13,75,14],[76,13,76,14],[77,13,77,14],[78,13,78,14],[69,13,69,14],[70,13,70,14],[71,13,71,14],[72,13,72,14],[73,13,73,14],[91,13,91,14],[92,13,92,14],[65,2,68,3],[69,2,73,3],[74,2,78,3],[82,2,85,3],[65,15,65,30],[66,16,66,20],[85,13,85,14],[66,21,66,25],[66,26,66,30],[67,15,68,15],[67,16,67,17],[67,18,67,20],[67,21,67,22],[67,23,67,25],[67,26,67,27],[67,28,67,30],[65,13,67,14],[82,13,84,14],[84,26,84,27],[84,28,84,30],[84,21,84,22],[84,23,84,25],[82,15,82,30],[83,16,83,20],[83,21,83,25],[83,26,83,30],[84,15,85,15]]}
[]
[null,null,null,null,null,null,"CENSO EDUCATIVO 2024"]
[null,null,null,null,null,null,"MATRÍCULA, DOCENTES Y RECURSOS"]
[]
[]
[]
[null,null,"337. ÁREA DE PSICOLOGÍA"]
[null,null,"337.1 DURANTE EL PRESENTE AÑO, ¿SE CUENTA CON ALGÚN PROFESIONAL DE   ",null,null,null,null,null,null,null,null,null,null,"337.2. ¿A TRAVÉS DE QUÉ MECANISMO SE INCORPORÓ AL PROFESIONAL"]
[null,null,null,"PSICOLOGÍA INCORPORADO AL CEBA O PROGRAMA EDUCATIVO?",null,null,null,null,null,null,null,null,null,"             DE PSICOLOGÍA?"]
[null,null,null,null,null,null,null,null,null,null,null,null,null,null,"Marque con una “X”, una opcion"]
[null,null,null,null,null,null,null,null,null,null,null,null,null,null,null,"Contratación a través de UGEL (alguna intervención o estrategia)"]
[null,null,null,null,"Sí  ",null,null,null,null,null,null,null,null,null,null,"Contratación a través de UGEL (identificación de necesidad)"]
[null,null,null,null,null,null,null,null,null,null,null,null,null,null,null,"Prácticas profesionales"]
[null,null,null,null,null,null,null,null,null,null,null,null,null,null,null,"Servicio Rural y Urbano Marginal de Salud (Serums)"]
[null,null,null,null,"No  ","",null,null,"Pase a la pregunta 338",null,null,null,null,null,null,"Pasantias"]
[null,null,null,null,null,null,null,null,null,null,null,null,null,null,null,"Otro"]
[]
[]
[null,"338. DURANTE EL AÑO 2023 ESTE CEBA, ¿HA RECIBIDO ALGUNA PLAZA DE PERSONAL ADMINISTRATIVO QUE NO HA LOGRADO CUBRIR?"]
[null,null,null,null,null,null,null,null,null,null,null,"(1)","(2)","(3) ¿Porqué no ha logrado cubrir la plaza?"]
[null,null,null,null,null,null,null,null,null,null,null,"¿Tuvo plaza de personal adminis- trativo vacante?","¿Cuántos recibió?","a. La Institución Educativa no requiere al personal asignado",null,"b. No se presentaron postulantes","c. Postulantes no cuentan con la experiencia requerida",null,"d. UGEL no brinda mayor información","e. Requiero otro tipo de personal","f. Otro","Especificar"]
[null,null,null,null,null,null,"CARGO",null,null,null,null,null,"Solo si respondió “SI” en el numeral (1)"]
[]
[null,null,null,null,null,null,null,null,null,null,{"$f":"COUNTIF(L25:L32,\"SI\")+COUNTIF(L25:L32,\"NO\")","v":0},"SI - NO"]
[null,null,"1","Coordinador Administrativo"]
[null,null,"2","Secretaria(o)"]
[null,null,"3","Oficinista"]
[null,null,"4","Trabajador de servicio - funciones de guardianía y/o vigilancia"]
[null,null,"5","Trabajador de servicio - funciones de limpieza y mantenimiento"]
[null,null,"6","Auxiliar de Biblioteca"]
[null,null,"7","Auxiliar de Laboratorio"]
[null,null,"8","Otro"]
[]
[]
[null,"400. MATERIALES EDUCATIVOS (Solo para gestión pública)"]
[]
[null,{"$f":"IF(OR('C100'!O35=\"X\",'C100'!X35=\"X\"),\"X\",IF('C100'!AG35=\"X\",3,\"\"))","v":""},"401. ¿RECIBIÓ MATERIALES CORRESPONDIENTES A LA DOTACIÓN 2023?",null,null,null,null,null,null,null,null,null,null,"402. ¿RECIBIÓ CUADERNOS DE TRABAJO EN LENGUA ORIGINARIA?"]
[]
[null,null,"Sí  ",null,null,null,null,"No  ",null,null,"Pase a la SECCIÓN 500.",null,null,"Sí  ",null,null,"No  "]
[]
[null,null,null,null,null,null,null,null,null,null,null,null,null,null,null,null,"¿CORRESPONDEN A LA LENGUA DE LOS ESTUDIANTES DE "]
[null,null,null,null,null,null,null,null,null,null,null,null,null,null,null,null,"DE ESTE SERVICIO/NIVEL EDUCATIVO?"]
[]
[null,null,null,null,null,null,null,null,null,null,null,null,null,null,null,null,"Sí  ",null,null,"No  "]
[]
[]
[null,"403. DETALLE DE CUADERNOS DE TRABAJO, TEXTOS, KITS Y GUÍAS CORRESPONDIENTES A LA DOTACIÓN 2024 POR GRADO - RECIBIDO"]
[]
[null,null,"BENEFICIARIO",null,null,null,null,null,null,null,null,"¿Recibió los materiales?","Primera\nFecha de Recepción","Última\nFecha de Recepción",null,"CANTIDAD DE MATERIAL RECIBIDO"]
[null,null,null,null,null,"MATERIAL EDUCATIVO",null,null,null,null,null,null,null,null,null,null,"CEBA",null,null,null,null,"PERIFÉRICO",null,null,null,null,"CÍRCULOS DE APRENDIZAJE"]
[null,null,null,null,null,null,null,null,null,null,null,null,null,null,null,"TOTAL RECIBIDO","Inicial",null,"Intermedio",null,null,"Inicial",null,"Intermedio",null,null,"Inicial",null,"Intermedio"]
[null,null,null,null,null,null,null,null,null,null,{"$f":"COUNTIF(L53:L62,\"NO\")","v":0}," SI - NO","Día/Mes/Año","Día/Mes/Año",null,null,"1º","2º","3º","4º","5º","1º","2º","3º","4º","5º","1º","2º","3º","4º","5º"]
[null,"01","ESTUDIANTES",null,"Proyectos de aprendizaje",null,null,null,null,null,null,null,null,null,null,{"$f":"SUM(Q53:AE53)","v":0}]
[null,"02",null,null,"Situaciones comunicativas",null,null,null,null,null,null,null,null,null,null,{"$f":"SUM(Q54:AE54)","v":0}]
[null,"03",null,null,"Situaciones para construir y resolver",null,null,null,null,null,null,null,null,null,null,{"$f":"SUM(Q55:AE55)","v":0}]
[null,"04",null,null,"Situaciones para aprender y construir experiencias",null,null,null,null,null,null,null,null,null,null,0]
[null,"05",null,null,"Material fungible - Programa de Alfabetización",null,null,null,null,null,null,null,null,null,null,0]
[null,"06","COORDINADOR/\nACOMPAÑANTE/\nFACILITADOR",null,"Proyectos de aprendizaje",null,null,null,null,null,null,null,null,null,null,0]
[null,"07",null,null,"Situaciones comunicativas",null,null,null,null,null,null,null,null,null,null,0]
[null,"08",null,null,"Situaciones para construir y resolver",null,null,null,null,null,null,null,null,null,null,0]
[null,"09",null,null,"Situaciones para aprender y construir experiencias",null,null,null,null,null,null,null,null,null,null,0]
[null,"10",null,null,"Material fungible - Programa de Alfabetización",null,null,null,null,null,null,null,null,null,null,{"$f":"SUM(Q62:AE62)","v":0}]
[null,null,null,null,null,null,null,null,null,null,null,{"$f":"COUNTIF(L53:L62,\"SI\")+COUNTIF(L53:L62,\"NO\")","v":0},null,null,null,{"$f":"SUM(P53:P62)","v":0}]
[]
[null,"403. DETALLE DE CUADERNOS DE TRABAJO, TEXTOS, KITS Y GUÍAS CORRESPONDIENTES A LA DOTACIÓN 2024 POR GRADO - SOBRANTE"]
[null,null,"BENEFICIARIO",null,null,null,null,null,null,null,null,"¿Recibió los materiales?","Primera\nFecha de Recepción","Última\nFecha de Recepción",null,"CANTIDAD DE MATERIAL SOBRANTE"]
[null,null,null,null,null,"MATERIAL EDUCATIVO",null,null,null,null,null,null,null,null,null,null,"CEBA",null,null,null,null,"PERIFÉRICO",null,null,null,null,"CÍRCULOS DE APRENDIZAJE"]
[null,null,null,null,null,null,null,null,null,null,null,null,null,null,null,"TOTAL RECIBIDO","Inicial",null,"Intermedio",null,null,"Inicial",null,"Intermedio",null,null,"Inicial",null,"Intermedio"]
[null,null,null,null,null,null,null,null,null,null,{"$f":"COUNTIF(L70:L79,\"SI\")","v":0}," SI - NO","Día/Mes/Año","Día/Mes/Año",null,null,"1º","2º","3º","4º","5º","1º","2º","3º","4º","5º","1º","2º","3º","4º","5º"]
[null,"01","ESTUDIANTES",null,"Proyectos de aprendizaje",null,null,null,null,null,null,{"$f":"IF(L53<>\"\",L53,\"\")","v":""},"","",null,{"$f":"SUM(Q70:AE70)","v":0}]
[null,"02",null,null,"Situaciones comunicativas",null,null,null,null,null,null,"","","",null,{"$f":"SUM(Q71:AE71)","v":0}]
[null,"03",null,null,"Situaciones para construir y resolver",null,null,null,null,null,null,"","","",null,{"$f":"SUM(Q72:AE72)","v":0}]
[null,"04",null,null,"Situaciones para aprender y construir experiencias",null,null,null,null,null,null,"","","",null,0]
[null,"05",null,null,"Material fungible - Programa de Alfabetización",null,null,null,null,null,null,"","","",null,0]
[null,"06","COORDINADOR/\nACOMPAÑANTE/\nFACILITADOR",null,"Proyectos de aprendizaje",null,null,null,null,null,null,"","","",null,0]
[null,"07",null,null,"Situaciones comunicativas",null,null,null,null,null,null,"","","",null,0]
[null,"08",null,null,"Situaciones para construir y resolver",null,null,null,null,null,null,"","","",null,0]
[null,"09",null,null,"Situaciones para aprender y construir experiencias",null,null,null,null,null,null,"","","",null,0]
[null,"10",null,null,"Material fungible - Programa de Alfabetización",null,null,null,null,null,null,"","","",null,{"$f":"SUM(Q79:AE79)","v":0}]
[null,null,null,null,null,null,null,null,null,null,null,null,null,null,null,{"$f":"SUM(P70:P79)","v":0}]
[]
[null,"403. DETALLE DE CUADERNOS DE TRABAJO, TEXTOS, KITS Y GUÍAS CORRESPONDIENTES A LA DOTACIÓN 2024 POR GRADO - FALTANTE"]
[null,null,"BENEFICIARIO",null,null,null,null,null,null,null,null,"¿Recibió los materiales?","Primera\nFecha de Recepción","Última\nFecha de Recepción",null,"CANTIDAD DE MATERIAL FALTANTE"]
[null,null,null,null,null,"MATERIAL EDUCATIVO",null,null,null,null,null,null,null,null,null,null,"CEBA",null,null,null,null,"PERIFÉRICO",null,null,null,null,"CÍRCULOS DE APRENDIZAJE"]
[null,null,null,null,null,null,null,null,null,null,null,null,null,null,null,"TOTAL RECIBIDO","Inicial",null,"Intermedio",null,null,"Inicial",null,"Intermedio",null,null,"Inicial",null,"Intermedio"]
[null,null,null,null,null,null,null,null,null,null,{"$f":"COUNTIF(L87:L96,\"SI\")","v":0}," SI - NO","Día/Mes/Año","Día/Mes/Año",null,null,"1º","2º","3º","4º","5º","1º","2º","3º","4º","5º","1º","2º","3º","4º","5º"]
[null,"01","ESTUDIANTES",null,"Proyectos de aprendizaje",null,null,null,null,null,null,{"$f":"IF(L53<>\"\",L53,\"\")","v":""},"","",null,{"$f":"SUM(Q87:AE87)","v":0}]
[null,"02",null,null,"Situaciones comunicativas",null,null,null,null,null,null,"","","",null,{"$f":"SUM(Q88:AE88)","v":0}]
[null,"03",null,null,"Situaciones para construir y resolver",null,null,null,null,null,null,"","","",null,{"$f":"SUM(Q89:AE89)","v":0}]
[null,"04",null,null,"Situaciones para aprender y construir experiencias",null,null,null,null,null,null,"","","",null,0]
[null,"05",null,null,"Material fungible - Programa de Alfabetización",null,null,null,null,null,null,"","","",null,0]
[null,"06","COORDINADOR/\nACOMPAÑANTE/\nFACILITADOR",null,"Proyectos de aprendizaje",null,null,null,null,null,null,"","","",null,0]
[null,"07",null,null,"Situaciones comunicativas",null,null,null,null,null,null,"","","",null,0]
[null,"08",null,null,"Situaciones para construir y resolver",null,null,null,null,null,null,"","","",null,0]
[null,"09",null,null,"Situaciones para aprender y construir experiencias",null,null,null,null,null,null,"","","",null,0]
[null,"10",null,null,"Material fungible - Programa de Alfabetización",null,null,null,null,null,null,"","","",null,{"$f":"SUM(Q96:AE96)","v":0}]
[null,null,null,null,null,null,null,null,null,null,null,null,null,null,null,{"$f":"SUM(P87:P96)","v":0}]

{"sheet":"C500","index":8,"n_rows":126,"n_cols":21,"rows_kept":126,"cut":false,"hidden":false,"merged":[[46,13,46,14],[1,6,1,19],[2,6,2,19],[39,16,40,18],[41,16,41,18],[45,16,45,18],[44,16,44,18],[43,13,43,14],[39,13,41,14],[42,13,42,14],[6,1,6,22],[91,16,91,20],[49,13,49,14],[39,15,41,15],[43,16,43,18],[42,16,42,18],[53,16,53,18],[52,13,52,14],[49,16,49,18],[52,16,52,18],[51,16,51,18],[48,13,48,14],[50,13,50,14],[48,16,48,18],[47,13,47,14],[45,13,45,14],[44,13,44,14],[89,7,89,11],[46,16,46,18],[47,16,47,18],[39,12,41,12],[125,16,125,20],[119,6,119,10],[50,16,50,18],[51,13,51,14],[53,13,53,14],[104,1,104,22],[69,17,69,21],[55,13,55,14],[55,16,55,18],[54,13,54,14],[54,16,54,18],[80,16,80,20]]}
[]
[null,null,null,null,null,null,"CENSO EDUCATIVO 2024"]
[null," ",null,null,null,null,"MATRÍCULA, DOCENTES Y RECURSOS"]
[]
[]
[]
[null,"500. OTROS RECURSOS DISPONIBLES PARA LA ENSEÑANZA (Para II.EE. Públicas y Privadas)"]
[]
[]
[]
[]
[]
[]
[]
[]
[]
[]
[]
[]
[]
[]
[]
[]
[]
[]
[]
[]
[]
[]
[]
[]
[]
[]
[]
[]
[]
[null,null,"EQUIPOS Y SERVICIOS QUE DISPONE EL CEBA"]
[null,null,"501. EQUIPOS Y SERVICIOS QUE DISPONE EL SERVICIO/NIVEL EDUCATIVO"]
[]
[null,null,null,null,null,null,null,null,null,null,null,null,"SI - NO","¿Cuántos tiene?",null,"¿Cuántos estan operativos?","¿Son utilizados para la enseñanza en interacción con los estudiantes?"]
[null,null,null,null,null,null,"EQUIPOS Y SERVICIOS"]
[null,null,null,null,null,null,null,null,null,null,null,{"$f":"COUNTIF(M43:M56,\"SI\")+COUNTIF(M43:M56,\"NO\")","v":0},null,null,null,null,"SI - NO"]
[null,null,"SI",null,null,"01","Televisor(es)"]
[null,null,"NO",null,null,"02","Computadoras (PC de escritorio)"]
[null,null,null,null,null,"03","Laptop convencionales"]
[null,null,null,null,null,"04","Laptop XO"]
[null,null,null,null,null,"05","Servidores ( exclusivo del nivel)"]
[null,null,null,null,null,"06","Tablets"]
[null,null,null,null,null,"07","Proyector"]
[null,null,null,null,null,"08","Radiograbadora"]
[null,null,null,null,null,"09","Reproductor de DVD o Blue Ray"]
[null,null,null,null,null,"10","Impresoras"]
[null,null,null,null,null,"11","Pizarras digitales"]
[null,null,null,null,null,"12","Modem"]
[null,null,null,null,null,"13","Servicio de Internet"]
[null,null,null,null,null,"14","Balanza de peso corporal (Mecánica/Digital)"]
[]
[]
[null,null,"502. ¿QUÉ CICLOS ATENDIDOS CUENTAN CON BIBLIOTECA DE AULA?",null,null,null,null,null,null,null,null,null,null,"504. ¿QUÉ TIPO DE TALLERES BRINDA EL CEBA?"]
[null,null,"Marque con una aspa “X” el ciclo correspondiente y anote el número total de",null,null,null,null,null,null,null,null,null,null,"Marque con un aspa “X” uno o más casilleros"]
[null,null,"ejemplares, según corresponda."]
[null,null,null,null,null,null,null,null,null,"Nº Total de",null,null,null,null,null,"Corte y Confección"]
[null,null,null,null,null,null,null,null,null,"Ejemplares",null,null,null,null,null,"Computación e Informática"]
[null,null,null,null,"Inicial",null,null,null,null,null,null,null,null,null,null,"Agroindustria"]
[null,null,null,null,"Intermedio",null,null,null,null,null,null,null,null,null,null,"Mecánica"]
[null,null,null,null,"NINGUNO",null,null,null,null,null,null,null,null,null,null,"Gastronomía"]
[null,null,null,null,null,null,null,null,null,null,null,null,null,null,null,"Carpintería"]
[null,null,null,null,null,null,null,null,null,null,null,null,null,null,null,"Contabilidad"]
[null,null,"503. ¿EL CEBA CUENTA CON TALLERES?",null,null,null,null,null,null,null,null,null,null,null,null,"Electricidad"]
[null,null,null,null,null,null,null,null,null,null,null,null,null,null,null,"Otro"]
[null,null,"Si",null,"No  ",null,null,null,"Pase a la pregunta 505",null,null,null,null,null,null,"NINGUNO"]
[]
[]
[null,null,"505. ¿LOS ESTUDIANTES HACEN USO DE LAS TABLETAS?",null,null,null,null,null,null,null,null,null,null,"506. SUS ESTUDIANTES, ¿QUÉ ACCIONES REALIZAN CON AYUDA DE LAS TABLETAS?"]
[]
[null,null,null,null,null,null,null,null,null,null,null,null,null,null,"Marque con una “X”, una o más opciones"]
[null,null,null,null," Sí  "]
[null,null,null,null,null,null,null,null,null,null,null,null,null,null,null,"Buscar información"]
[null,null,null,null,"No  ",null,null,null,null,"Pase a la sección 600",null,null,null,null,null,"Elaborar sus productos"]
[null,null,null,null,null,null,null,null,null,null,null,null,null,null,null,"Organizar sus actividades"]
[null,null,null,null,null,null,null,null,null,null,null,null,null,null,null,"Otros",""]
[]
[]
[null,null,null,null,"¿Por qué no hacen uso de las tabletas?",null,null,null,null,null,null,null,null,"507. ¿QUÉ APLICACIONES O UTILITARIOS DE LAS TABLETAS SON LOS MÁS INTEGRADOS"]
[null,null,null,null,"Marque con una “X”, una o más opciones",null,null,null,null,null,null,null,null,null,"USADOS POR LOS DOCENTES EN EL PROCESO DE ENSEÑANZA Y APRENDIZAJE?"]
[]
[null,null,null,null,null,null,"Por miedo/temor a dañarlas",null,null,null,null,null,null,null,"Marque con una “X”, una o más opciones"]
[null,null,null,null,null,null,"Porque no saben cómo usarla"]
[null,null,null,null,null,null,"Porque no funcionan",null,null,null,null,null,null,null,null,"Aplicaciones para crear objetos virtuales"]
[null,null,null,null,null,null,"Otro",null,null,null,null,null,null,null,null,"Aplicaciones que brindan información"]
[null,null,null,null,null,null,null,null,null,null,null,null,null,null,null,"Utilitarios, como lector y editor PDF, AnyDesk, etc."]
[null,null,null,null,null,null,null,null,null,null,null,null,null,null,null,"Otros",""]
[]
[]
[null,null,"AULAS Y SERVICIOS HIGIÉNICOS UTILIZADO POR EL CEBA"]
[null,null,"508. INDIQUE EL NÚMERO DE AULAS UTILIZADO",null,null,null,null,null,null,null,null,null,null,"509. INDIQUE EL NÚMERO DE SERVICIOS HIGIÉNICOS UTILIZADOS"]
[]
[null,null,null,null,"TOTAL AULAS",null,null,null,null,null,null,{"$f":"L100+L102","v":0},null,null,"TOTAL SS.HH.",null,null,null,null,null,{"$f":"U100+U102","v":0}]
[]
[null,null,null,null,"De uso exclusivo :",null,null,null,null,null,null,null,null,null,"De uso exclusivo :"]
[]
[null,null,null,null,"De uso compartido con otros niveles :",null,null,null,null,null,null,null,null,null,"De uso compartido con otros niveles :"]
[]
[]
[null,"600. EDUCACIÓN FÍSICA Y DEPORTE (Para II.EE. Públicas y Privadas)"]
[]
[null,null,"A. SITUACIÓN DEL DEPORTE ESCOLAR"]
[null,null,"601. DURANTE EL AÑO 2023, EN ESTE CEBA, ¿SE FOMENTÓ LA REALIZACIÓN DE",null,null,null,null,null,null,null,null,null,null,"602. ESTE CEBA ¿CUENTA CON LA ASIGNATURA DE   EDUCACIÓN FÍSICA?"]
[null,null,null,"ACTIVIDADES FÍSICAS O DEPORTE, CON LA FINALIDAD DE PRIORIZAR EL"]
[null,null,null,"CUIDADO DEL ESTUDIANTE Y SU BIENESTAR INTEGRAL?"]
[null,null,null,null,null,null,null,null,null,null,null,null,null,null,null,null,"¿Cuántas horas a la semana se dictan?"]
[null,null,null,null,null,null,null,null,null,null,null,null,null,"Sí  "]
[null,null,"Sí  ",null,null,null,"No  ",null,null,null,null,null,null,null,null,null,"¿Cuántos docentes están asignados al "]
[null,null,null,null,null,null,null,null,null,null,null,null,null,null,null,null,"dictado del curso?"]
[null,null,null,null,null,null,null,null,null,null,null,null,null,"No  "]
[null,null,null,null,"Actividades de movimiento"]
[null,null,null,null,"Actividades de deporte",null,null,null,null,null,null,null,null,"603. EN EL PRESENTE ¿ESTE CEBA TIENE PLANIFICADO LA EJECUCIÓN DE"]
[null,null,null,null,"Actividades artístico culturales",null,null,null,null,null,null,null,null,null,"TALLERES COMPLEMENTARIOS?"]
[null,null,null,null,"Actividades complementarias de encuentro con la comunidad educativa"]
[null,null,null,null,"Otras Actividades",null,null,null,null,null,null,null,null,"Sí  ",null,null,"No  "]
[]
[]
[null,null,null,null,null,null,null,null,null,null,null,null,null,null,null,"ExpresArte"]
[null,null,null,null,null,null,null,null,null,null,null,null,null,null,null,"Orquestando"]
[null,null,null,null,null,null,null,null,null,null,null,null,null,null,null,"Talleres deportivos recreativos"]
[null,null,null,null,null,null,null,null,null,null,null,null,null,null,null,"Otro",""]

{"sheet":"C700","index":9,"n_rows":195,"n_cols":28,"rows_kept":195,"cut":false,"hidden":false,"merged":[[19,13,22,13],[19,14,22,14],[20,4,21,5],[23,4,26,5],[53,21,53,24],[27,4,29,5],[30,4,31,5],[32,4,38,5],[39,4,40,5],[19,12,22,12],[65,7,65,10],[71,21,71,24],[110,18,112,21],[110,23,112,23],[110,24,111,25],[110,26,111,27],[112,24,113,24],[112,25,113,25],[112,26,113,26],[112,27,113,27],[185,6,185,10],[116,8,116,11],[138,6,138,9],[156,21,156,24],[164,21,164,24],[168,8,168,11],[194,22,194,24],[179,25,179,26],[180,25,180,26],[181,25,181,26],[182,25,182,26]]}
[]
[null,null,null,null,null,null,null,null,"CENSO EDUCATIVO 2024"]
[null,null,null,null,null,null,null,null,"MATRÍCULA, DOCENTES Y MATERIALES EDUCATIVOS"]
[]
[]
[]
[null,null,"700. FORTALECIMIENTO DE LA GESTIÓN"]
[]
[null,null,null,"701. ESTE CEBA, ¿COORDINA ALGUNA ACCIÓN CON EL GOBIERNO LOCAL (DISTRITAL O PROVINCIAL) O ALGUNA EMPRESA",null,null,null,null,null,null,null,null,null,null,null,null,null,null,"704. DURANTE EL AÑO 2023 Y HASTA LA FECHA DE APLICACIÓN DEL CENSO EDUCATIVO 2024, ¿HA REALIZADO"]
[null,null,null,null,"PRIVADA U ONG PARA MEJORAR LA LA PRESTACIÓN DEL SERVICIO EDUCATIVO?",null,null,null,null,null,null,null,null,null,null,null,null,null,null,"ACCIONES EN FAVOR DEL BIENESTAR SOCIOEMOCIONAL DE LOS ESTUDIANTES Y/O DE LOS DOCENTES Y/O FAMILIAS?"]
[]
[null,null,null,null,null,null,null,null,null,null,null,null,null,null,null,null,null,null,"Sí    ",null,"No    "]
["1: Siempre",null,null,null,"Sí",null,null,null,"No",null,null,"Pase a la pregunta 703."]
["2: A Veces",null,null,null,null,null,null,null,null,null,null,null,null,null,null,null,null,null,null,"¿Qué acciones realizo?"]
["3: Nunca",null,null,null,null,null,null,null,null,null,null,null,null,null,null,null,null,null,null,"Marque con una “X”, una o más opciones"]
[null,null,null,"702. FRECUENCIA DE LA ACCION QUE AYUDA EL GOBIERNO LOCAL PARA MEJORAR LA PRESTACIÓN DEL SERVICIO",null,null,null,null,null,null,null,null,null,null,null,null,null,null,null,null,"Elaborar un diagnóstico del estado del bienestar socioemocional de estudiantes"]
[null,null,null,null,"Solo si marco “SI” en la pregunta 601 detallar la acción",null,null,null,null,null,null,null,null,null,null,null,null,null,null,null,"Elaborar un diagnóstico del estado del bienestar socioemocional de docentes"]
[null,null,null,null,null,null,null,null,null,null,null,null,null,null,null,null,null,null,null,null,"Ejecutar acciones en la IIEE para trabajar específicamente gestión de emociones"]
[null,null,null,null,null,null,null,null,null,null,null,null,null,null,null,null,null,null,null,null,"Generar espacios de diálogo en la comunidad educativa con docentes y/o familias."]
[null,null,null,{"$f":"SUM(D24:D41)","v":0},null,null,null,null,null,null,null,null,"Distrital","Provincial","Empresa privada u ONG",null,null,null,null,null,"Promover espacios específicamente para abordar gestión de emociones con familias"]
[null,null,null,null,"COMPO- NENTE",null,null,null,null,null,null,null,null,null,null,null,null,null,null,null,"Ejecutar acciones en el marco de la Tutoría y Orientación Educativa (TOE)"]
[null,null,null,null,null,null,null,null,"ACCIÓN",null,null,null,null,null,null,"FRECUENCIA"]
[null,null,null,null,null,null,null,null,null,null,null,null,null,null,null,null,null,null,"705. SEÑOR(A) DIRECTOR(A), DESDE QUE EMPEZASTE TU CARRERA COMO DOCENTE, ¿CUÁNTOS AÑOS DE"]
["01",null,null,{"$f":"IF(P24<>\"\",1,0)","v":0},"Infraes- tructura",null,"Proyecto de inversión pública para el mejoramiento o ampliación …",null,null,null,null,null,null,null,null,null,null,null,null,"EXPERIENCIA TIENES COMO?",null,null,"Marque con una “X”, una opcion"]
["02",null,null,0,null,null,"Apoyo y asistencia técnica para el uso de recursos de mantenimiento"]
["03",null,null,0,null,null,"Gestiones para el acceso a servicios básicos de IIEE ",null,null,null,null,null,null,null,null,null,null,null,null,null,"Directivo encargado, registre cantidad de años:"]
["04",null,null,0,null,null,"Adquisición de mobiliario y equipamiento para la IIEE",null,null,null,null,null,null,null,null,null,null,null,null,null,"Directivo designado, registre cantidad de años :"]
["05",null,null,0,"Aprendi-\nzajes",null,"Proyecto de inversión pública para la mejora de los aprendizajes"]
["06",null,null,0,null,null,"Actividades que ayuden a implementar el refuerzo escolar",null,null,null,null,null,null,null,null,null,null,null,"706. DESDE EL AÑO 2019 A LA FECHA DE APLICACIÓN DEL CENSO EDUCATIVO 2024, ¿CONOCE LAS NORMAS QUE"]
["07",null,null,0,null,null,"Apoyo con material educativo",null,null,null,null,null,null,null,null,null,null,null,null,"REGULAN SUS FUNCIONES COMO DIRECTOR?"]
["08",null,null,0,"Docentes",null,"Contratación de docentes"]
["09",null,null,0,null,null,"Talleres o cursos de capacitación",null,null,null,null,null,null,null,null,null,null,null,"Sí    ",null,"No    "]
["10",null,null,0,"Gestión",null,"Articulación local con actores públicos y privados a nivel local"]
["11",null,null,0,null,null,"Atención de casos en DEMUNA",null,null,null,null,null,null,null,null,null,null,null,"707. SEÑOR(A) DIRECTOR(A), DURANTE EL AÑO 2023 Y A LA FECHA DE APLICACIÓN DEL CENSO EDUCATIVO 2024,"]
["12",null,null,0,null,null,"Articulación con UGEL y DRE de su ámbito",null,null,null,null,null,null,null,null,null,null,null,null,"¿HA PARTICIPADO DE ALGUNA ACCIÓN FORMATIVA?"]
["13",null,null,0,null,null,"Gestiones para la instalación de servicios básicos de conectividad"]
["14",null,null,0,null,null,"Apoyo con alimentación para estudiantes",null,null,null,null,null,null,null,null,null,null,null,"Sí    ",null,"No    ",null,null,null,"Pase a la pregunta 709"]
["15",null,null,0,null,null,"Vivienda y alimentación para docentes (zonas rurales, fronteras, etc)"]
["16",null,null,0,null,null,"Apoyo con movilidad local para estudiantes y docentes",null,null,null,null,null,null,null,null,null,null,null,null,"Marque con una “X”, una o más opciones"]
["17",null,null,0,"Recupe-\nración",null,"Promoción de acciones comunitarias para identificación de …",null,null,null,null,null,null,null,null,null,null,null,null,null,"Cursos en didáctica o pedagogía"]
["18",null,null,0,null,null,"Impulso del registro nominal de estudiantes en Alerta Escuela por …",null,null,null,null,null,null,null,null,null,null,null,null,null,"Congresos o seminarios vinculados a su cargo y funciones"]
[null,null,null,null,null,null,null,null,null,null,null,null,null,{"$f":"COUNTIF(M24:O41,\"X\")","v":0},null,{"$f":"COUNTIF(P24:P41,\"3: Nunca\")","v":0}]
[null,null,null,null,null,null,null,null,null,null,null,null,null,null,null,null,null,null,"708. ¿QUÉ HABILIDADES REQUIERE FORTALECER DE SU FORMACIÓN EN LIDERAZGO PEDAGÓGICO PARA MEJORAR LA"]
[null,null,null,"703. ¿CUÁLES SON LOS PRINCIPALES TEMAS QUE REQUIERE COMO CAPACITACIÓN PARA MEJORAR SU DESEMPEÑO",null,null,null,null,null,null,null,null,null,null,null,null,null,null,null,"GESTIÓN ESCOLAR EN SU CEBA?"]
[null,null,null,null,"COMO DIRECTOR(A)?",null,null,null,null,null,null,null,null,null,null,null,null,null,null,"Marque con una “X”, hasta 3 opciones"]
[null,null,null,null,"Marque con una “X”, una o más opciones",null,null,null,null,null,null,null,null,null,null,null,null,null,null,null,"1) En organización e interpretación de la planificación en la IIEE:"]
[null,null,null,null,null,null,null,null,null,null,null,null,null,null,null,null,null,null,null,null,"2) Para resolución de problemas en la IIEE:"]
[null,null,null,null,null,"Desarrollo de las competencias de las áreas curriculares",null,null,null,null,null,null,null,null,null,null,null,null,null,null,"3) Para apoyar a los docentes:"]
[null,null,null,null,null,"Planificación y evaluación",null,null,null,null,null,null,null,null,null,null,null,null,null,null,"4) Para el fortalecimiento docente:"]
[null,null,null,null,null,"Manejo de herramientas TIC y ofimáticas",null,null,null,null,null,null,null,null,null,null,null,null,null,null,"5) Para establecer el orden:",null,null,null,null,null," "]
[null,null,null,null,null,"Soporte emocional",null,null,null,null,null,null,null,null,null,null,null,null,null,null,"6) Para influenciar:"]
[null,null,null,null,null,"Participación de padres y madres de familias",null,null,null,null,null,null,null,null,null,null,null,null,null,null,"7) Para prevenir el conflicto:"]
[null,null,null,null,null,"Relacionamiento institucional y gestión de alianzas",null,null,null,null,null,null,null,null,null,null,null,null,null,null,"8) Para monitorear la contribución de la IE con la política educativa:"]
[null,null,null,null,null,"Acompañamiento pedagógico",null,null,null,null,null,null,null,null,null,null,null,null,null,null,"9) Otros"]
[]
[]
[null,null,null,"709. ¿QUÉ INFORMACIÓN LE GUSTARÍA ENCONTRAR EN EL PORTAL WEB PARA DIRECTIVO DE IIEE DEL MINEDU",null,null,null,null,null,null,null,null,null,null,null,null,null,null,"714. ¿ACTUALMENTE CUENTA CON ALGUNA ESTRATEGIA O ACCIONES EN EL QUE PUEDA DIALOGAR CON DIRECTORES"]
[null,null,null,null,"(https://directivos.minedu.gob.pe/)?",null,null,null,null,null,null,null,null,null,null,null,null,null,null,"DE OTRAS IIEE PARA COMPARTIR EXPERIENCIAS Y DESARROLLAR ESTRATEGIAS PARA RESOLVER PROBLEMAS"]
[null,null,null,null,"Marque con una “X”, una opción",null,null,null,null,null,null,null,null,null,null,null,null,null,null,"DE LA GESTIÓN DE SU CEBA?"]
[]
[null,null,null,null,null,"Lecturas, infografías y materiales diversos sobre las funciones como directivo",null,null,null,null,null,null,null,null,null,null,null,null,"Sí    ",null,"No    "]
[null,null,null,null,null,"Videos tutoriales sobre las labores como directivos"]
[null,null,null,null,null,"Material diverso sobre habilidades blandas necesarias para el cargo"]
[null,null,null,null,null,"Buenas prácticas para la gestión directiva",null,null,null,null,null,null,null,null,null,null,null,null,null,"¿Dónde lo desarrolla?"]
[null,null,null,null,null,"Información sobre las normativas sobre la gestión escolar",null,null,null,null,null,null,null,null,null,null,null,null,null,"Marque con una “X”, una opción"]
[null,null,null,null,null,"Otros",null,null,null,null,null,null,null,null,null,null,null,null,null,null,"La misma IIEE"]
[null,null,null,null,null,null,null,null,null,null,null,null,null,null,null,null,null,null,null,null,"Otra IIEE"]
[null,null,null,null,null,null,null,null,null,null,null,null,null,null,null,null,null,null,null,null,"IIEE de red educativa"]
[null,null,null,"710. ¿CON QUÉ FRECUENCIA VISITA EL PORTAL WEB PARA DIRECTIVO DE IIEE DEL MINEDU ",null,null,null,null,null,null,null,null,null,null,null,null,null,null,null,null,"UGEL"]
[null,null,null,null,"(https://directivos.minedu.gob.pe/)?",null,null,null,null,null,null,null,null,null,null,null,null,null,null,null,"DRE/GRE"]
[null,null,null,null,"Marque con una “X”, una opción",null,null,null,null,null,null,null,null,null,null,null,null,null,null,null,"Espacios virtuales (webinar, talleres, etc)"]
[null,null,null,null,null,null,null,null,null,null,null,null,null,null,null,null,null,null,null,null,"Otro"]
[null,null,null,null,null,"Frecuentemente"]
[null,null,null,null,null,"Poca frecuencia",null,null,null,null,null,null,null,null,null,null,null,null,"715. ¿QUÉ TAN INTERESADO SE ENCONTRARÍA DE PARTICIPAR EN ESPACIOS EN LOS QUE SE REALICE TRABAJO"]
[null,null,null,null,null,"Casi nunca",null,null,null,null,null,null,null,null,null,null,null,null,null,"COLABORATIVO CON DIRECTORES DE OTROS CEBAS PARA DIALOGAR SOBRE LOS PROBLEMAS DE LA"]
[null,null,null,null,null,"No visito el portal web",null,null,null,null,"Pase a la pregunta 713",null,null,null,null,null,null,null,null,"GESTIÓN ESCOLAR?",null,null,null,"Marque con una “X”, una opción"]
[null,null,null,null,{"$f":"CONCATENATE(E73,E74,E75)","v":""}]
[null,null,null,null,null,null,null,null,null,null,null,null,null,null,null,null,null,null,null,null,"Interesado",null,"Poco interesado",null,null,"Nada interesado"]
[null,null,null,"711. ¿CONSIDERAS QUE LA INFORMACIÓN QUE ENCUENTRAS EN EL PORTAL WEB DE DIRECTIVOS ES ÚTIL?"]
[null,null,null,null,"Marque con una “X”, una opción",null,null,null,null,null,null,null,null,null,null,null,null,null,"716. ¿EN CUÁLES DE LAS SIGUIENTES ALTERNATIVAS DE CAPACITACIÓN LE GUSTARÍA PARTICIPAR PARA EL"]
[null,null,null,null,null,null,null,null,null,null,null,null,null,null,null,null,null,null,null,"PRESENTE AÑO 2024?",null,"Marque con una “X”, hasta cuatro opciones"]
[null,null,null,null,null,"Muy útil"]
[null,null,null,null,null,"Útil",null,null,null,null,null,null,null,null,null,null,null,null,null,null,"Habilidades blandas para el liderazgo"]
[null,null,null,null,null,"Poco útil",null,null,null,null,null,null,null,null,null,null,null,null,null,null,"Confianza colectiva para el bienestar escolar"]
[null,null,null,null,null,"Nada útil",null,null,null,null,null,null,null,null,null,null,null,null,null,null,"Gestión administrativa"]
[null,null,null,null,null,null,null,null,null,null,null,null,null,null,null,null,null,null,null,null,"Liderazgo situacional"]
[null,null,null,null,null,null,null,null,null,null,null,null,null,null,null,null,null,null,null,null,"Expresión creativa para el liderazgo directivo"]
[null,null,null,"712. ¿QUÉ CONTENIDOS NORMATIVOS ESPERARÍA ENCONTRAR EN EL PORTAL WEB PARA DIRECTIVO DE IIEE DEL MINEDU?",null,null,null,null,null,null,null,null,null,null,null,null,null,null,null,null,"Prevención de la discriminación xenofóbica"]
[null,null,null,null,"Marque con una “X”, hasta dos opciones)",null,null,null,null,null,null,null,null,null,null,null,null,null,null,null,"Fortalecimiento a la práctica pedagógica docente"]
[]
[null,null,null,{"$f":"COUNTIF(E91:E94,\"X\")","v":0},null,"Sobre sus funciones",null,null,null,null,null,null,null,null,null,null,null,null,"717. SEÑOR(A) DIRECTOR(A), SELECCIONE UNA O HASTA TRES ACCIONES QUE USTED HA IMPLEMENTADO EN SU"]
[null,null,null,null,null,"Sobre los documentos de gestión de debe elaborar",null,null,null,null,null,null,null,null,null,null,null,null,null,"CEBA DURANTE EL AÑO 2023."]
[null,null,null,null,null,"Sobre su rol de líder pedagógico"]
[null,null,null,null,null,"Sobre las faltas en las podría incurrir de incumplir sus funciones",null,null,null,null,null,null,null,null,null,null,null,null,null,"Marque con una “X”, una o más opciones"]
[]
[null,null,null,null,null,null,null,null,null,null,null,null,null,null,null,null,null,null,null,null,"Conducir la planificación institucional (a partir del conocimiento de los procesos pedagógicos)"]
[null,null,null,"713. COMO DIRECTOR/A DE ESTE CEBA, ¿CUÁNTO TIEMPO DE SU DÍA TOMA REALIZAR ACTIVIDADES ADMINISTRATIVAS? ",null,null,null,null,null,null,null,null,null,null,null,null,null,null,null,null,"Promover y sostener la participación democrática de los diversos actores  de la institución educativa"]
[null,null,null,null,"(CONSIDERE HORAS CRONOLÓGICAS)",null,null,null,null,null,null,null,null,null,null,null,null,null,null,null,"Favorecer las condiciones operativas que aseguren aprendizajes de calidad en todas y todos los estudiantes"]
[null,null,null,null,"Marque con una “X”, una opción",null,null,null,null,null,null,null,null,null,null,null,null,null,null,null,"Liderar procesos de evaluación de la gestión de la institución educativa y de rendición de cuentas"]
[null,null,null,null,null,null,null,null,null,null,null,null,null,null,null,null,null,null,null,null,"Promover y liderar una comunidad de aprendizaje con las y los docentes  de su institución educativa"]
[null,null,null,null,null,"Menos de una hora",null,null,null,null,null,null,null,null,null,null,null,null,null,null,"Gestiona la calidad de los procesos pedagógicos al interior de su IE.  a través del acompañamiento sistemático"]
[null,null,null,null,null,"Entre 1 y 3 horas"]
[null,null,null,null,null,"Entre 4 y 6 horas"]
[null,null,null,null,null,"Más de 6 horas"]
[]
[]
[null,null,null,"718. SEÑOR(A) DIRECTOR(A), DURANTE EL AÑO 2023 Y HASTA LA FECHA DE APLICACIÓN DEL CENSO EDUCATIVO 2024,",null,null,null,null,null,null,null,null,null,null,null,null,null,null,"722. SOBRE EL PERSONAL ADMINISTRATIVO QUE LABORA EN ESTE CEBA, COMLETA PARA CADA CARGO/PUESTO"]
[null,null,null,null,"¿A TRAVÉS DE QUÉ MEDIO RECIBIÓ LA CAPACITACIÓN EL PERSONAL AUXILIAR DE EDUCACIÓN?",null,null,null,null,null,null,null,null,null,null,null,null,null,null,"LOS SIGUIENTES DATOS."]
[null,null,null,null,"Marque con una “X”, una o más opciones",null,null,null,null,null,null,null,null,null,null,null,null,null,null,"Seleccione “Sí” o “No” para cada pregunta y consigna las cantidades donde corresponda"]
[]
[null,null,null,null,null,"Perueduca, cursos específicos para auxiliares",null,null,null,null,null,null,null,null,null,null,null,null,"Puestos Administrativos",null,null,null,null,"¿Cuenta con este tipo de personal?","¿Ha sido capacitado\ndurante el 2023?",null,"La cantidad de personal que tiene ¿es suﬁciente?"]
[null,null,null,null,null,"Perueduca, cursos para la comunidad educativa"]
[null,null,null,null,null,"Mi Institución Educativa",null,null,null,null,null,null,null,null,null,null,null,null,null,null,null,null,null,null,"Si  / No","¿Cuántas veces?","Si  / No","¿Qué cantidad seria suficiente?"]
[null,null,null,null,null,"Mi UGEL",null,null,null,null,null,null,null,null,null,null,null,null,null,null,null,null,{"$f":"COUNTIF(X115:X121,\"NO\")","v":0},"Si  / No"]
[null,null,null,null,null,"MINEDU",null,null,null,null,null,null,null,null,null,null,null,"01","1. Coordinador / Administrativo"]
[null,null,null,null,null,"DRE",null,null,null,null,null,null,null,null,null,null,null,"02","2. Secretaria(o)"]
[null,null,null,null,null,"Otras instituciones",null,null,null,null,null,null,null,null,null,null,null,"03","3. Oficinista"]
[null,null,null,null,null,"No cuento con personal auxiliar de educación",null,null,null,null,null,null,null,null,null,null,null,"04","4. Trabajador de servicio - guardianía y/o vigilancia"]
[null,null,null,null,null,"El personal auxiliar de educación no recibió capacitación",null,null,null,null,null,null,null,null,null,null,null,"05","5. Trabajador de servicio - limpieza y mantenimiento"]
[null,null,null,null,null,null,null,null,null,null,null,null,null,null,null,null,null,"06","6. Auxiliar de biblioteca"]
[null,null,null,"719. SEÑOR(A) DIRECTOR(A), ¿CUÁL CONSIDERA USTED COMO PRINCIPAL TEMA QUE REQUIERE COMO CAPACITACIÓN",null,null,null,null,null,null,null,null,null,null,null,null,null,"07","7. Auxiliar de laboratorio"]
[null,null,null,null,"EL PERSONAL AUXILIAR DE EDUCACIÓN, PARA MEJORAR SU DESEMPEÑO?",null,null,null,null,null,null,null,null,null,null,null,null,null,null,null,null,null,null,{"$f":"COUNTIF(X115:X121,\"SI\") + COUNTIF(X115:X121,\"NO\")","v":0}]
[null,null,null,null,"Marque con una “X”, una opción",null,null,null,null,null,null,null,null,null,null,null,null,null,"723. ¿CUÁL DE LAS SIGUIENTES COMPETENCIAS CONSIDERA USTED COMO LA MÁS RELEVANTE EN EL EQUIPO DE"]
[null,null,null,null,null,null,null,null,null,null,null,null,null,null,null,null,null,null,null,"PERSONAL ADMINISTRATIVO DE ESTE CEBA"]
[null,null,null,null,null,"Habilidades blandas (intelig. emocional, comunic. asertiva, manejo de conflictos, etc)",null,null,null,null,null,null,null,null,null,null,null,null,null,"Marque con una “X”, una opción"]
[null,null,null,null,null,"Habilidades duras (TICs, primeros aux., uso y peligros de internet, etc.)"]
[null,null,null,null,null,"Relación con los estudiantes (el juego, soporte socioem., prevención de la violencia escolar (bullying)",null,null,null,null,null,null,null,null,null,null,null,null,null,null,"Trabajo en equipo"]
[null,null,null,null,null,"No cuento con personal auxiliar de educación",null,null,null,null,null,null,null,null,null,null,null,null,null,null,"Atención a usuarios"]
[null,null,null,null,null,null,null,null,null,null,null,null,null,null,null,null,null,null,null,null,"Comunicación asertiva"]
[null,null,null,null,null,null,null,null,null,null,null,null,null,null,null,null,null,null,null,null,"Orientación a resultados"]
[null,null,null,"720. SEÑOR(A) DIRECTOR(A), DURANTE EL AÑO 2023, ¿EL PERSONAL AUXILIAR DE EDUCACIÓN DESEMPEÑÓ O",null,null,null,null,null,null,null,null,null,null,null,null,null,null,null,null,"Orden y planificación estratégica"]
[null,null,null,null,"DESEMPEÑA OTRAS LABORES ADICIONALES A SU ROL COMO AUXILIAR DE EDUCACIÓN?",null,null,null,null,null,null,null,null,null,null,null,null,null,null,null,"Orientación al servicio"]
[null,null,null,null,"Marque con una “X”, una o más opciones",null,null,null,null,null,null,null,null,null,null,null,null,null,null,null,"Proactividad"]
[]
[null,null,null,null,null,"No realizó/realiza otras labores adicionales en la IE",null,null,null,null,null,null,null,null,null,null,null,null,"724. ¿CUÁLES SON LAS DOS PRINCIPALES TEMÁTICAS QUE CONSIDERA USTED QUE EL PERSONAL ADMINISTRATIVO"]
[null,null,null,null,null,"Trabaja como docente",null,null,null,null,null,null,null,null,null,null,null,null,null," DE ESTE CEBA PODRÍA SER CAPACITADO?"]
[null,null,null,null,null,"Trabaja como personal administrativo en la IE",null,null,null,null,null,null,null,null,null,null,null,null,null,"Marque con una “X”, solamente dos opciones"]
[null,null,null,null,null,"Trabaja en otra IE"]
[null,null,null,null,null,"Otro",null,null,null,null,null,null,null,null,null,null,null,null,null,null,"Seguridad de control de accesos y de control interno de la IIEE."]
[null,null,null,null,null,"No cuento con personal auxiliar de educación",null,null,null,null,null,null,null,null,null,null,null,null,null,null,"Gestión de limpieza y/o mantenimiento de la IIEE (materiales, ambientes y equipos) del personal administrativo"]
[null,null,null,null,null,null,null,null,null,null,null,null,null,null,null,null,null,null,null,null,"Manejo de habilidades interpersonales (atención de usuarios)."]
[null,null,null,"721. SEÑOR(A) DIRECTOR(A), ESTE CEBA QUE UD. DIRIGE, ¿CUENTA CON PERSONAL ADMINISTRATIVO?",null,null,null,null,null,null,null,null,null,null,null,null,null,null,null,null,"Técnicas de archivo y despacho de documentos."]
[null,null,null,null,null,null,null,null,null,null,null,null,null,null,null,null,null,null,null,null,"Manejo de los sistemas informáticos del Minedu."]
[null,null,null,null,"Sí",null,null,null,"No    ",null,null,"Pase a la pregunta 727",null,null,null,null,null,null,null,null,"Administración y control de recursos propios (financieros)."]
[null,null,null,null,null,null,null,null,null,null,null,null,null,null,null,null,null,null,null,null,"Manejo de herramientas TIC y ofimática."]
[null,null,null,null,null,null,null,null,null,null,null,null,null,null,null,null,null,null,null,null,"La gestión de riesgo de desastres priorizando la prevención y reducción, así como la preparación y respuesta."]
[]
[]
[null,null,null,"725. CON RESPECTO A LAS LABORES DEL PERSONAL ADMINISTRATIVO DURANTE EL AÑO 2023, ¿EN QUÉ ÁMBITO(S) ",null,null,null,null,null,null,null,null,null,null,null,null,null,null,"730. INDIQUE EL TIPO DE APOYO QUE HA RECIBIDO DE LA EMPRESA PRIVADA U ONG MENCIONADA EN SU"]
[null,null,null,null,"IDENTIFICÓ MAYOR CARGA DE ACTIVIDADES OPERATIVAS ADMINISTRATIVAS?",null,null,null,null,null,null,null,null,null,null,null,null,null," RESPUESTA ANTERIOR"]
[null,null,null,null,"Marque con una “X”, hasta dos opciones",null,null,null,null,null,null,null,null,null,null,null,null,null,null,"Marque con una “X” una o más opciones"]
[]
[null,null,null,null,null,"Gestión de recursos financieros, bienes, servicios e infraestructura",null,null,null,null,null,null,null,null,null,null,null,null,null,null,"Infraestructura"]
[null,null,null,null,null,"Gestión de información de la IIEE (registro en sistemas administrativos y trámite documentario)",null,null,null,null,null,null,null,null,null,null,null,null,null,null,"Mobiliario"]
[null,null,null,null,null,"Gestión y seguimiento del uso de los recursos educativos.",null,null,null,null,null,null,null,null,null,null,null,null,null,null,"Equipamiento"]
[null,null,null,null,null,"Limpieza y mantenimiento",null,null,null,null,null,null,null,null,null,null,null,null,null,null,"Capacitación de personal docente"]
[null,null,null,null,null,"La gestión de riesgo de desastres priorizando la prevención y reducción, así como la preparación y respuesta.",null,null,null,null,null,null,null,null,null,null,null,null,null,null,"Otro"]
[null,null,null,null,null,"Vigilancia y guardianía",null,null,null,null,null,null,null,null,null,null,null,null,null,null,null,"fsdfsdfsd"]
[null,null,null,null,null,null,null,null,null,null,null,null,null,null,null,null,null,null,"731. ¿QUÉ CONSIDERA QUE REFORZARÍA LA EJECUCIÓN DE SU PROCXESO DE RACIONALIZACIÓN"]
[null,null,null,"726. DURANTE EL AÑO 2023, ¿A TRAVÉS DE QUÉ MEDIO RECIBIÓ CAPACITACIONES EL PERSONAL ADMINISTRATIVO DE ",null,null,null,null,null,null,null,null,null,null,null,null,null,null,null,"Marque con una “X” una o opción"]
[null,null,null,null,"ESTE CEBA?"]
[null,null,null,null,"Marque con una “X”, una o más opciones",null,null,null,null,null,null,null,null,null,null,null,null,null,null,null,"Asistencias Técnicas macroregionales"]
[null,null,null,null,null,null,null,null,null,null,null,null,null,null,null,null,null,null,null,null,"Materiales Orientativos"]
[null,null,null,null,null,"Perueduca, cursos para la comunidad educativa",null,null,null,null,null,null,null,null,null,null,null,null,null,null,"Lineamientos complementarios"]
[null,null,null,null,null,"Mi Institución Educativa",null,null,null,null,null,null,null,null,null,null,null,null,null,null,"Otro"]
[null,null,null,null,null,"Mi UGEL"]
[null,null,null,null,null,"MINEDU",null,null,null,null,null,null,null,null,null,null,null,null,"732. ¿CONOCE LOS PERFILES DE CARGOS DE DIRECTOR(A) Y SUBDIRECTOR(A) DE IIEE PUBLICADOS"]
[null,null,null,null,null,"DRE",null,null,null,null,null,null,null,null,null,null,null,null,null,"EN EL AÑO 2021 EN EL CLASIFICADOR DE CARGOS (RVM N° 2 23-2021-MINEDU)?"]
[null,null,null,null,null,"Otras instituciones"]
[null,null,null,null,null,"No cuento con personal administrativo",null,null,null,null,null,null,null,null,null,null,null,null,"Sí    ",null,"No    "]
[null,null,null,null,null,"El personal administrativo no recibió capacitación"]
[null,null,null,null,null,null,null,null,null,null,null,null,null,null,null,null,null,null,null,null,null,"¿Considera que los perfiles de cargo de director y subdirector de IE brindan"]
[null,null,null,"727. ¿SE HA INCORPORADO ALGÚN OBJETIVO O ACCIÓN REFERIDA A LA PREVENCIÓN, PROMOCIÓN Y ATENCIÓN DE LA",null,null,null,null,null,null,null,null,null,null,null,null,null,null,null,null,null,"claridad para el desarrollo de las funciones del equipo directivo?"]
[null,null,null,null,"SALUD (FÍSICA, MENTAL O EMOCIONAL) O ALGUNA OTRA SIMILAR DIRIGIDA A PERSONAL DOCENTE, DIRECTIVO,"]
[null,null,null,null,"JERÁRQUICO O ADMINISTRATIVO EN LOS INSTRUMENTOS DE GESTIÓN DEL CEBA?",null,null,null,null,null,null,null,null,null,null,null,null,null,null,null,"Sí    ",null,"No    "]
[]
[null,null,null,null,"Sí",null,null,null,"No",null,null,"Pase a la pregunta 729.",null,null,null,null,null,null,"733. ¿QUÉ COMITÉS DE GESTIÓN ESCOLAR HA IMPLEMENTADO EN ESTE CEBA?"]
[]
[null,null,null,"728. ¿A TRAVÉS DE QUÉ INSTRUMENTOS DE GESTIÓN SE HA INCORPORADO?",null,null,null,null,null,null,null,null,null,null,null,null,null,null,null,null,"Comités",null,null,null,null,"Fecha de resolución"]
[null,null,null,null,"Marque con una “X”, una opción",null,null,null,null,null,null,null,null,null,null,null,null,null,null,null,null,null,null,"SI - NO","N° de RD","DD/MM/AAAA"]
[null,null,null,null,null,null,null,null,null,null,null,null,null,null,null,null,null,null,"01","Comité de Condiciones Operativas"]
[null,null,null,null,null,"Proyecto Educativo Institucional (PEI)",null,null,null,null,null,null,null,null,null,null,null,null,"02","Comité de Gestión del Bienestar"]
[null,null,null,null,null,"Plan Anual de Trabajo (PAT)",null,null,null,null,null,null,null,null,null,null,null,null,"03","Comité de Gestión Pedagógica"]
[null,null,null,null,null,"Proyecto Curricular de la IE (PCI)",null,null,null,null,null,null,null,null,null,null,null,null,null,null,null,null,null,{"$f":"COUNTIF(X181:X183,\"SI\") + COUNTIF(X181:X183,\"NO\")","v":0}]
[null,null,null,null,null,"Reglamento Interno (RI)"]
[null,null,null,null,null,"Otro",null,null,null,null,null,null,null,null,null,null,null,null,"734. ¿CUÁLES SON LOS INSTRUMENTOS DE GESTIÓN ESCOLAR QUE SE HAN IMPLEMENTADO EN ESTE CEBA?"]
[]
[null,null,null,"729. ESTE CEBA QUE DIRIGE, ¿DURANTE EL PRESENTE AÑO HA RECIBIDO O VIENE RECIBIENDO APOYO DE ALGUNA EMPRESA ",null,null,null,null,null,null,null,null,null,null,null,null,null,null,null,null,"Documentos de Gestión",null,null,null,null,"Marcar"]
[null,null,null,"PRIVADA O DE ALGUNA ONG EN TEMAS DE MEJORA DE INFRAESTRUCTURA, MOBILIARIO Y EQUIPAMIENTO O ",null,null,null,null,null,null,null,null,null,null,null,null,null,null,null,null,null,null,null,null,null,"SI - NO"]
[null,null,null,"CAPACITACIÓN DE PERSONAL DOCENTE?",null,null,null,null,null,null,null,null,null,null,null,null,null,null,null,null,"Proyecto Educativo Institucional (PEI)"]
[null,null,null,null,null,null,null,null,null,null,null,null,null,null,null,null,null,null,null,null,"Proyecto Currícular Institucional (PCI)"]
[null,null,null,null,null,null,null,null,null,null,null,null,null,null,null,null,null,null,null,null,"Reglamento Interno (RI)"]
[null,null,null,null,"Sí",null,null,null,"No",null,null,"Pase a la pregunta 731",null,null,null,null,null,null,null,null,"Plan Anual de Trabajo (PAT)"]
[null,null,null,null,null,null,null,null,null,null,null,null,null,null,null,null,null,null,null,null,"Documento de Gestión (DG)"]
[null,null,null,null,null,null,null,null,null,null,null,null,null,null,null,null,null,null,null,null,"Otros"]

{"sheet":"C800","index":10,"n_rows":171,"n_cols":23,"rows_kept":171,"cut":false,"hidden":false,"merged":[[22,5,22,7],[37,7,38,7],[14,9,14,10],[6,1,6,22],[13,15,14,18],[15,4,16,7],[15,9,17,9],[15,10,17,10],[38,3,39,6],[38,11,40,13],[38,14,40,15],[38,20,40,20],[38,21,40,21],[39,8,39,9],[39,16,39,17],[39,18,39,19],[41,8,41,9],[41,11,41,13],[41,14,41,15],[41,16,41,17],[41,18,41,19],[42,8,42,9],[42,11,42,13],[42,14,42,15],[42,16,42,17],[42,18,42,19],[43,8,43,9],[43,11,43,13],[43,14,43,15],[43,16,43,17],[43,18,43,19],[44,8,44,9],[44,11,44,13],[44,14,44,15],[44,16,44,17],[44,18,44,19],[45,8,45,9],[45,11,45,13],[45,14,45,15],[45,16,45,17],[45,18,45,19],[46,18,46,19],[57,16,57,19],[64,3,64,8],[68,4,68,8],[76,14,79,21],[78,8,78,10],[46,4,46,6],[46,8,46,9],[46,11,46,13],[46,14,46,15],[46,16,46,17],[80,6,80,7],[82,6,82,7],[82,8,82,9],[83,6,83,7],[83,8,83,9],[84,6,84,7],[84,8,84,9],[95,8,95,10],[95,13,99,15],[95,17,95,19],[95,20,95,22],[96,16,98,16],[96,17,98,17],[96,18,99,18],[96,19,98,19],[96,20,98,20],[96,21,99,21],[96,22,98,22],[103,14,103,16],[106,8,106,10],[119,6,119,9],[124,2,124,7],[124,8,124,10],[124,11,124,18],[124,19,124,21],[125,2,125,7],[125,8,125,10],[125,11,125,18],[125,19,125,21],[126,2,126,7],[126,8,126,10],[126,11,126,18],[126,19,126,21],[127,2,127,7],[127,8,127,10],[127,11,127,18],[127,19,127,21]]}
[]
[null,null,null,null,null,"CENSO EDUCATIVO 2024"]
[null,null,null,null,null,"MATRÍCULA, DOCENTES Y RECURSOS"]
[]
[]
[]
[null,"800. GESTIÓN DEL RIESGO DE DESASTRES"]
[]
[null,null,"801. EN EL PRESENTE AÑO, ESTE CEBA, ¿HA INCORPORADO LA DEFENSA NACIONAL Y GESTIÓN DEL",null,null,null,null,null,null,null,null,null,null,"802. SOBRE LA DEFENSA NACIONAL Y LA GESTIÓN DEL RIESGO DE DESASTRES EN ESTE CEBA,"]
[null,null,null,"RIESGO DE DESASTRES EN SUS INSTRUMENTOS DE GESTIÓN VIGENTES?",null,null,null,null,null,null,null,null,null,null,"ATIENDA LAS SIGUIENTES PREGUNTAS:"]
[]
[null,null,null,"Sí  ",null,null,null,"No  ","",null,null,null,null,null,"Seleccione “Si” o “No” según corresponda en atención a cada pregunta."]
[]
[null,null,null,null,null,null,null,null,null,null,null,null,null,null,null,"Documentos de Gestión",null,null,null,null,null,"Respuesta"]
[null,null,null,"Precise los documentos de gestión",null,null,null,null,null,"Marcar con \"X\""]
[null,null,null,null,"Documentos de Gestión",null,null,null,null,"Gestión de Riesgo de Desastres","Seguridad y Defensa Nacional",null,null,null,null,null,null,null,null,null,null,"SI - NO"]
[null,null,null,null,null,null,null,null,null,null,null,null,null,null,"¿La IE cuenta con un croquis con rutas de evacuación?"]
[null,null,{"$f":"COUNTIF(J19:J23,\"X\") + COUNTIF(K19:K23,\"X\")","v":0},null,null,null,null,null,null,null,null,null,null,null,"¿La IE cuenta con planos de señalización con rutas de evacuación?"]
[null,null,"01","Proyecto Educativo Institucional (PEI)",null,null,null,null,{"$f":"COUNTIF(J19:K19,\"X\")","v":0}]
[null,null,"02","Plan Anual de Trabajo (PAT)",null,null,null,null,{"$f":"COUNTIF(J20:K20,\"X\")","v":0}]
[null,null,"03","Proyecto Currícular Institucional (PCI)",null,null,null,null,{"$f":"COUNTIF(J21:K21,\"X\")","v":0}]
[null,null,"04","Reglamento Interno (RI)",null,null,null,null,{"$f":"COUNTIF(J22:K22,\"X\")","v":0}]
[null,null,"05","Otros",{"$f":"J23","v":0},null,null,null,{"$f":"COUNTIF(J23:K23,\"X\")","v":0}]
[null,null,null,null,null,null,null,null,null,{"$f":"COUNTIF(J11:J23,\"X\")","v":0},{"$f":"COUNTIF(K11:K23,\"X\")","v":0}]
[null,null,"803. EN EL PRESENTE AÑO, LOS MIEMBROS DE ESTE CEBA, ¿HAN SIDO CAPACITADOS Y CERTIFICADOS EN MATERIA DE GESTIÓN INTEGRAL \nDEL RIESGO DE DESASTRES?"]
[]
[null,null,null,"Sí  ",null,null,null,"No  "]
[]
[]
[null,null,null,null,null,"Alguna de ellos fue desarrollada por:"]
[]
[null,null,null,null,null,null,null,"SI - NO"]
[null,null,null,null,null,"DRE/GRE"]
[null,null,null,null,null,"UGEL"]
[]
[null,null,null,"Complete la tabla"]
[]
[null,null,null,null,null,null,null,"¿Se realizó?","Cantidad de personas capacitadas",null,null,null,null,null,null,null,"Cantidad de personas certificadas"]
[null,null,null,"Tipo de Capacitación",null,null,null,null,null,null,null," N° de  adminis-  trativos",null,null," N° de integrantes\nque pertenecen a la brigada de EA y GRD",null,null,null,null,null," N° de adminis-  trativos"," N° de integrantes brigada EA y GRD"]
[null,null,null,null,null,null,null,null," N° de directores",null," N° de docentes",null,null,null,null,null," N° de directores",null," N° de docentes"]
[null,null,null,null,null,null,null,"SI - NO"]
[null,null,"01","Curso",null,null,null,null,null,null,null,null,null,null,null,null,null,null,null,null,null,null,{"$f":"SUM(I42:V42)","v":0}]
[null,null,"02","Taller de capacitación",null,null,null,null,null,null,null,null,null,null,null,null,null,null,null,null,null,null,{"$f":"SUM(I43:V43)","v":0}]
[null,null,"03","Reuniones de trabajo institucionales",null,null,null,null,null,null,null,null,null,null,null,null,null,null,null,null,null,null,0]
[null,null,"04","Foro",null,null,null,null,null,null,null,null,null,null,null,null,null,null,null,null,null,null,0]
[null,null,"05","Webinar",null,null,null,null,null,null,null,null,null,null,null,null,null,null,null,null,null,null,0]
[null,null,"06","Otros",null,null,null,null,null,null,null,null,null,null,null,null,null,null,null,null,null,null,0]
[null,null,null,null,null,null,null,{"$f":"COUNTIF(H42:H47,\"SI\") + COUNTIF(H42:H47,\"NO\")","v":0}]
[]
[null,null,"804. EN EL AÑO 2023, ANTE LA DETECCIÓN DEL PELIGRO INMINENTE, EMERGENCIA O DESASTRE,",null,null,null,null,null,null,null,null,null,null,"805. EN EL PRESENTE AÑO, ESTE CEBA, ¿HA PARTICIPADO EN CAMPAÑAS COMUNICACIONALES DE GESTIÓN "]
[null,null,null,"¿ESTE CEBA REPORTA AL ESPACIO DE MONITOREO Y SEGUIMIENTO SECTORIAL (EMSS)",null,null,null,null,null,null,null,null,null,null,"DE RIESGO DE DESASTRES?"]
[null,null,null," DE LA UGEL?"]
[null,null,null,null,null,null,null,null,null,null,null,null,null,null,"Sí  ",null,null,null,"No  "]
[null,null,null,"Sí  ",null,null,"¿Ha sido capacitado sobre el proceso a seguir para reportar?"]
[]
[null,null,null,null,null,null,null,"Sí  ",null,null,null,null,null,null,null,null,"Indique, ¿En qué acciones participó o recibió?"]
[]
[null,null,null,null,null,null,null,"No  ",null,null,null,null,null,null,null,null,"ITEMS",null,null,null,"Marcar con X"]
[null,null,null,null,null,null,null,null,null,null,null,null,null,null,null,null,"Pasacalle"]
[null,null,null,null,null,null,null,"No Sabe  ","",null,null,null,null,null,null,null,"Feria"]
[null,null,null,"No  ","",null,null,null,null,null,null,null,null,null,null,null,"Activaciones motivadoras"]
[null,null,null,null,null,null,null,null,null,null,null,null,null,null,null,null,"Conferencias"]
[null,null,null,null,null,null,null,null,null,null,null,null,null,null,null,null,"Recepción de afiches"]
[null,null,null,"¿Por qué?",null,null,"Marque con una “X”, una opción",null,null,null,null,null,null,null,null,null,"Recepción murales de GRD"]
[null,null,null,"ITEMS",null,null,null,null,null,"Marcar con X",null,null,null,null,null,null,"Post en redes sociales"]
[null,null,null,"No se tuvo emergencia en territorio",null,null,null,null,null,null,null,null,null,null,null,null,"Post radiales"]
[null,null,null,"No se cuenta con los instrumentos y/o herramientas"]
[null,null,null,"No se conoce el procedimiento"]
[null,null,null,"Otro"]
[]
[]
[null,null,"806. ESTE CEBA, ¿CUENTA CON LA BRIGADA DE EDUCACIÓN AMBIENTAL Y GESTIÓN DE ",null,null,null,null,null,null,null,null,null,null,"809. ¿QUÉ SUGERENCIA PLANTEARÍA PARA FAVORECER LA CONFORMACIÓN O FUNCIONAMIENTO"]
[null,null,null,"RIESGO DE DESASTRES?",null,null,null,null,null,null,null,null,null,null,"DE LAS BAPES?"]
[]
[null,null,null,"Sí",null,null,null,"No  ",null,null,null,null,null,null,"longitud máxima 200 caracteres",null,null,null,null,null,null,{"$f":"LEN(TRIM(O77))","v":0}]
[]
[]
[null,null,null,null,"Documento",null,null,"Resolución"]
[null,null,null,null,null,null,null,"Otro",""]
[]
[null,null,null,null,"Número",null,""]
[]
[null,null,null,null,null,null,"Desde:",null,"Hasta:"]
[null,null,null,null,"Vigencia",null,"DD/MM/AAAA",null,"DD/MM/AAAA",null,null,null,null,"810. ESTE CEBA, ¿CUENTA CON ALGUNA EXPERIENCIA EXITOSA O BUENA PRÁCTICA DOCENTE Y/O GESTIÓN "]
[null,null,null,null,null,null,null,null,null,null,null,null,null,null,"ESCOLAR ENMARCADAS EN ALGUNA DE LAS LÍNEAS ESTRATÉGICAS?"]
[]
[null,null,"807. EN EL PRESENTE AÑO, ¿CONFORMÓ SU BRIGADA DE AUTOPROTECCIÓN ESCOLAR (BAPES)?"]
[null,null,null,null,null,null,null,null,null,null,null,null,null,null,"Sí  ",null,null,null,"No  "]
[null,null,null,"Sí  "]
[null,null,null,null,null,null,"¿Quiénes lo conforman?"]
[null,null,null,null,null,null,"Marque con una “X”, una opción"]
[null,null,null,null,null,null,null,"Representantes de la APAFA",null,null,null,null,null,null,"Complete la tabla"]
[null,null,null,null,null,null,null,"Representantes de padres de familia"]
[null,null,null,null,null,null,null,"Otros actores de la comunidad educativa",null,null,null,null,null,"Seleccione “Sí” o “No” para cada línea estratégica e ingrese los años según corresponda"]
[null,null,null,null,null,null,null,"Representación de la Comisaria de la jurisdicción"]
[null,null,null,null,null,null,null,"Otros","",null,null,null,null,"Línea estratégica",null,null,null,"Experiencia exitosa",null,null,"Buena práctica docente y/o Gestión escolar"]
[null,null,null,null,null,null,null,null,null,null,null,null,null,null,null,null,null,"¿Cuenta con experiencia exitosa?","Año de la experiencia exitosa","Se socializó con otras entidades","¿Cuenta con buena práctica docente y Gestión escolar?","Año de la buena práctica docente y/o Gestión escolar","Se socializó con otras entidades"]
[null,null,null,"No  ",null,null,null,"Pase a la pregunta 810"]
[]
[null,null,null,null,null,null,"¿Por qué no conformó su BAPES?",null,null,null,null,null,null,null,null,null,null,"SI / NO",null,"SI / NO","SI / NO",null,"SI / NO"]
[null,null,null,null,null,null,"Marque con una “X”, una o más opciones",null,null,null,null,null,"01","Seguridad y Defensa Nacional"]
[null,null,null,null,null,null,null,"La IIEE no cuenta con APAFA",null,null,null,null,"02","Gestión del Riesgo de Desastre"]
[null,null,null,null,null,null,null,"No hay participación de los padres",null,null,null,null,"03","Adaptación al cambio climático"]
[null,null,null,null,null,null,null,"No lo considera necesario",null,null,null,null,"04","Otro"]
[null,null,null,null,null,null,null,"No identifican riesgos alrededor de la IIEE",null,null,null,null,null,null,null,null,null,{"$f":"COUNTIF(R101:R104,\"SI\")+COUNTIF(R101:R104,\"NO\")","v":0},null,null,{"$f":"COUNTIF(U101:U104,\"SI\")+COUNTIF(U101:U104,\"NO\")","v":0},"",""]
[null,null,null,null,null,null,null,"No tiene información de cómo conformarlo"]
[null,null,null,null,null,null,null,"Otros","",null,null,null,null,"811. ESTE CEBA, ¿PARTICIPÓ EN LOS SIMULACROS CONVOCADOS POR MINEDU Y/O INDECI?"]
[]
[null,null,"808. LA BRIGADA DE AUTOPROTECCIÓN ESCOLAR (BAPES), ¿CUENTA CON LA ASISTENCIA DE LA"]
[null,null,null,"OFICINA DE PARTICIPACIÓN CIUDADANA (OPC) DE LA COMISARÍA DE SU JURISDICCIÓN?",null,null,null,null,null,null,null,null,null,null,"Sí  ",null,null,null,"No  "]
[]
[null,null,null,"Sí",null,null,null,"No  "]
[null,null,null,null,null,null,null,null,null,null,null,null,null,null,null,null,"Complete la tabla"]
[]
[null,null,null,null,"¿Qué actividades desarrolló o tiene planificadas desarrollar?",null,null,null,null,null,null,null,null,null,null,null,null,"ITEMS",null,null,"Marcar con X"]
[null,null,null,null,"Marque con una “X”, una opción",null,null,null,null,null,null,null,null,null,null,null,"Primer Simulacro"]
[null,null,null,null,null,"Taller con los integrantes de las BAPES",null,null,null,null,null,null,null,null,null,null,"Segundo Simulacro"]
[null,null,null,null,null,"Actividades de sensibilización dirigidos a la comunidad educativa.",null,null,null,null,null,null,null,null,null,null,"Tercer Simulacro"]
[null,null,null,null,null,"Formulación de protocolos para la actuación ante riesgos identificados."]
[null,null,null,null,null,"Otras",""]
[]
[]
[null,null,"DATOS DEL DIRECTOR(A) / RESPONSABLE DEL LLENADO DE LA CÉDULA"]
[]
[null,null,"NOMBRES Y APELLIDOS",null,null,null,null,null,"CARGO",null,null,"CORREO ELECTRÓNICO",null,null,null,null,null,null,null,"TELÉFONO"]
[]
[]
[]
[]
[]
[]
[]
["DIRECTOR(A)"]
["SUB DIRECTOR(A)"]
["DOCENTE"]
["COORDINADOR(A)"]
["ASESOR"]
["ADMINISTRATIVO"]
["ASISTENTE"]
["AUXILIAR"]
["SECRETARIA(O)"]
["ESTADÍSTICO"]
["ESPECIALISTA"]
["BIBLIOTECARIO"]
["CARE"]
["COMANDANTE PNP"]
["CONTADOR"]
["DAIP"]
["DIGITADOR(A)"]
["GERENTE"]
["JEFE ACADÉMICO"]
["JEFE ADMINISTRATIVO"]
["JEFE DE ÁREA"]
["JEFE DE LABORATORIO"]
["JEFE DE PERSONAL"]
["JEFE DE SEDE"]
["JEFE DE UNIDAD"]
["OFICINISTA"]
["OPERADOR DE SISTEMAS"]
["PERSONAL DE SERVICIO"]
["PROGRAMADOR"]
["PROMOTOR(A)"]
["PSICOLOGO"]
["REGISTRADOR(A)"]
["REPRESENTANTE LEGAL"]
["SOPORTE TECNOLOGICO"]
["TÉCNICO ADMINISTRATIVO"]
["TESORERO(A)"]
["TRABAJADOR SOCIAL"]
["TUTOR"]
["OTROS"]

{"sheet":"Enviar","index":11,"n_rows":9,"n_cols":4,"rows_kept":9,"cut":false,"hidden":false,"merged":[[0,1,0,4],[1,1,1,4]]}
[null,"CENSO EDUCATIVO 2024"]
[null,"MATRÍCULA, DOCENTES Y RECURSOS"]
[]
[]
[null,null,"Paso 1:","Realice el ENVÍO con su clave EOL."]
[]
[null,null,"Paso 2:","Una vez realizado el ENVÍO,  Revise su constancia de envio."]
[]
[null,null,"  ADVERTENCIA","ASEGÚRESE DE REGISTRAR TODA LA INFORMACIÓN DEL NIVEL INFORMANTE"]